Workbook

Sheet Summary
F1: LIBOR transition on the PM12 Libor Linked Assets
F2: The Mortgage Trust Limited (MTL) and the Paragon Mortgages Limited (PML) originated mortgages transitioned to a term SONIA basis on 1st June 2021 and 1st July 2021 respectively. For further details, please use the below link.
A3: Paragon Mortgages (No.12) PLC | F3: libor-mortgages-transition-july-19 (paragonbankinggroup.co.uk)
A5: Information as at the Principal Determination Date | B5: 2006-10-31 | C5: 2007-01-31 | D5: 2007-04-30 | E5: 2007-07-31 | F5: 2007-10-31 | G5: 2008-01-31 | H5: 2008-04-30 | I5: 2008-07-31 | J5: 2008-10-31 | K5: 2009-01-30 | L5: 2009-04-30 | M5: 2009-07-31 | N5: 2009-10-30 | O5: 2010-01-29 | P5: 2010-04-30 | Q5: 2010-07-30 | R5: 2010-10-29 | S5: 2011-01-31 | T5: 2011-04-28 | U5: 2011-07-29 | V5: 2011-10-31 | W5: 2012-01-31 | X5: 2012-04-30 | Y5: 2012-07-31 | Z5: 2012-10-31 | AA5: 2013-01-31 | AB5: 2013-04-30 | AC5: 2013-07-31 | AD5: 2013-10-31 | AE5: 2014-01-31 | AF5: 2014-04-30 | AG5: 2014-07-31 | AH5: 2014-10-31 | AI5: 2015-01-30 | AJ5: 2015-04-30 | AK5: 2015-07-31 | AL5: 2015-10-30 | AM5: 2016-01-29 | AN5: 2016-04-29 | AO5: 2016-07-29 | AP5: 2016-10-31 | AQ5: 2017-01-31 | AR5: 2017-04-28 | AS5: 2017-07-31 | AT5: 2017-10-31 | AU5: 2018-01-31 | AV5: 2018-04-30 | AW5: 2018-07-31 | AX5: 2018-10-31 | AY5: 2019-01-31 | AZ5: 2019-04-30 | BA5: 2019-07-31 | BB5: 2019-10-31 | BC5: 2020-01-31 | BD5: 2020-04-30 | BE5: 2020-07-31 | BF5: 2020-10-30 | BG5: 2021-01-29 | BH5: 2021-04-30 | BI5: 2021-07-30 | BJ5: 2021-10-29 | BK5: 2022-01-31 | BL5: 2022-04-29 | BM5: 2022-07-29 | BN5: 2022-10-31 | BO5: 2023-01-31 | BP5: 2023-04-28 | BQ5: 2023-07-31 | BR5: 2023-10-31 | BS5: 2024-01-31
A6: Mortgage Asset Balance | B6: 1475202 | C6: 1452056 | D6: 1423468 | E6: 1398734 | F6: 1372734 | G6: 1350386 | H6: 1262221 | I6: 1141187 | J6: 1096269 | K6: 1078766 | L6: 1069098 | M6: 1059907 | N6: 1054577 | O6: 1047847 | P6: 1039490 | Q6: 1031753 | R6: 1023583 | S6: 1015503 | T6: 1009088 | U6: 1003700 | V6: 998237 | W6: 991483 | X6: 987594 | Y6: 982858 | Z6: 977873 | AA6: 970797 | AB6: 964489 | AC6: 957357 | AD6: 950795 | AE6: 941885 | AF6: 931987 | AG6: 923068 | AH6: 913507 | AI6: 905468 | AJ6: 897606.5389 | AK6: 881862.5759 | AL6: 871282.0721 | AM6: 859256.536 | AN6: 835229.6106 | AO6: 820865.9478 | AP6: 810415.4646 | AQ6: 800477.7507 | AR6: 790812.5619 | AS6: 778460 | AT6: =767011 -> 767011 | AU6: 751988.9524 | AV6: 740150.9414 | AW6: 729444.3559 | AX6: 716164.8339 | AY6: 704807.7443 | AZ6: 691470 | BA6: 678581.1802 | BB6: 666367.2768 | BC6: 653392.2224 | BD6: 642608.8419 | BE6: 634616.7582 | BF6: 623161.5132 | BG6: 602167 | BH6: 575245 | BI6: 551517.0538 | BJ6: 536042.9814 | BK6: 522506.5201 | BL6: 503730 | BM6: 482631.2231 | BN6: 446599.6038 | BO6: 420030.7461 | BP6: 400355.769 | BQ6: 369449.9325 | BR6: 349020.1462 | BS6: 336071.5884
A7: Total Notes | B7: =SUM(B8:B15) -> 1475202 | C7: 1452056 | D7: 1423468 | E7: 1398734 | F7: 1372734 | G7: 1350386 | H7: =SUM(H8:H15)-1 -> 1262221 | I7: =SUM(I8:I15)-1 -> 1141187 | J7: =SUM(J8:J15)+1 -> 1096269 | K7: =SUM(K8:K15) -> 1078766 | L7: =SUM(L8:L15)-1 -> 1069098 | M7: =SUM(M8:M15)-1 -> 1059907 | N7: =SUM(N8:N15)-1 -> 1054577 | O7: =SUM(O8:O15) -> 1047847 | P7: =SUM(P8:P15) -> 1039490 | Q7: =SUM(Q8:Q15)+1 -> 1031753 | R7: =SUM(R8:R15) -> 1023583 | S7: =SUM(S8:S15)+1 -> 1015503 | T7: =SUM(T8:T15)-1 -> 1009088 | U7: =SUM(U8:U15) -> 1003700 | V7: =SUM(V8:V15) -> 998237 | W7: =SUM(W8:W15)-1 -> 991483 | X7: =SUM(X8:X15)-1 -> 987594 | Y7: =SUM(Y8:Y15)-1 -> 982858 | Z7: =SUM(Z8:Z15) -> 977873 | AA7: =SUM(AA8:AA15)-1 -> 970797 | AB7: =SUM(AB8:AB15)-2 -> 964489 | AC7: =SUM(AC8:AC15)-1 -> 957357 | AD7: =SUM(AD8:AD15) -> 950795 | AE7: =SUM(AE8:AE15)-1 -> 941885 | AF7: =SUM(AF8:AF15)-1 -> 931987 | AG7: =SUM(AG8:AG15)-1 -> 923068 | AH7: =SUM(AH8:AH15) -> 913507 | AI7: =SUM(AI8:AI15)+1 -> 905468 | AJ7: =SUM(AJ8:AJ15) -> 897607 | AK7: =SUM(AK8:AK15) -> 881863 | AL7: =SUM(AL8:AL15) -> 871282 | AM7: =SUM(AM8:AM15)-1 -> 859257 | AN7: =SUM(AN8:AN15)+1 -> 835230 | AO7: =SUM(AO8:AO15) -> 820866 | AP7: =SUM(AP8:AP15)-2 -> 810415 | AQ7: =SUM(AQ8:AQ15) -> 800478 | AR7: =SUM(AR8:AR15)+1 -> 790813 | AS7: =SUM(AS8:AS15)-1 -> 778460 | AT7: =SUM(AT8:AT15)+1 -> 767011 | AU7: =SUM(AU8:AU15) -> 751989 | AV7: =SUM(AV8:AV15)-1 -> 740151 | AW7: =SUM(AW8:AW15)-1 -> 729444 | AX7: =SUM(AX8:AX15) -> 716165 | AY7: =SUM(AY8:AY15) -> 704808 | AZ7: =SUM(AZ8:AZ15)-1 -> 691470 | BA7: =SUM(BA8:BA15) -> 678581 | BB7: =SUM(BB8:BB15)-1 -> 666367 | BC7: =SUM(BC8:BC15) -> 653392 | BD7: =SUM(BD8:BD15) -> 642609 | BE7: =SUM(BE8:BE15)-1 -> 634617 | BF7: =SUM(BF8:BF15) -> 623162 | BG7: =SUM(BG8:BG15)+1 -> 602167 | BH7: =SUM(BH8:BH15)+1 -> 575245 | BI7: =SUM(BI8:BI15) -> 551517 | BJ7: =SUM(BJ8:BJ15)-1 -> 536043 | BK7: =SUM(BK8:BK15) -> 522507 | BL7: =SUM(BL8:BL15)+1 -> 503730 | BM7: =SUM(BM8:BM15)-1 -> 482631 | BN7: =SUM(BN8:BN15)+1 -> 446600 | BO7: =SUM(BO8:BO15)-1 -> 420031 | BP7: =SUM(BP8:BP15) -> 400356 | BQ7: =SUM(BQ8:BQ15)-1 -> 369450 | BR7: =SUM(BR8:BR15)+1 -> 349020 | BS7: =SUM(BS8:BS15) -> 336072
A8: Class A1 Notes | B8: 799516 | C8: 784982 | D8: 767030 | E8: 751498 | F8: 735171 | G8: 721137 | H8: 665774 | I8: 589770 | J8: 561562 | K8: 550572 | L8: 544501 | M8: 538729 | N8: 535382 | O8: 531156 | P8: 525908 | Q8: 521049 | R8: 515919 | S8: 510845 | T8: 506817 | U8: 503433 | V8: 500003 | W8: 495762 | X8: 493320 | Y8: 490346 | Z8: 487215 | AA8: 482772 | AB8: 478811 | AC8: 474332 | AD8: 470211 | AE8: 464616 | AF8: 458401 | AG8: 452800 | AH8: 446796 | AI8: 441747 | AJ8: 436811 | AK8: 426924 | AL8: 420280 | AM8: 412729 | AN8: 397641 | AO8: 388621 | AP8: 382059 | AQ8: 375818 | AR8: 369749 | AS8: 361992 | AT8: 354802 | AU8: 345369 | AV8: 337936 | AW8: 334841 | AX8: 328745 | AY8: 323532 | AZ8: 317409 | BA8: 311493 | BB8: 305886 | BC8: 299930 | BD8: 294980 | BE8: 291312 | BF8: 286053 | BG8: 276416 | BH8: 264058 | BI8: 253166 | BJ8: 246063 | BK8: 239849 | BL8: 231230 | BM8: 221545 | BN8: 205005 | BO8: 192809 | BP8: 183777 | BQ8: 169590 | BR8: 160212 | BS8: 154268
A9: Class A2a Notes | B9: 142207 | C9: 139622 | D9: 136429 | E9: 133666 | F9: 130762 | G9: 128266 | H9: 118419 | I9: 104900 | J9: 99883 | K9: 97928 | L9: 96849 | M9: 95822 | N9: 95227 | O9: 94475 | P9: 93542 | Q9: 92677 | R9: 91765 | S9: 90862 | T9: 90146 | U9: 89544 | V9: 88934 | W9: 88180 | X9: 87745 | Y9: 87216 | Z9: 86659 | AA9: 85869 | AB9: 85165 | AC9: 84368 | AD9: 83635 | AE9: 82640 | AF9: 81534 | AG9: 80538 | AH9: 79470 | AI9: 78572 | AJ9: 77694 | AK9: 75936 | AL9: 74754 | AM9: 73411 | AN9: 70727 | AO9: 69123 | AP9: 67956 | AQ9: 66846 | AR9: 65766 | AS9: 64387 | AT9: 63108 | AU9: 61430 | AV9: 60108 | AW9: 59557 | AX9: 58473 | AY9: 57546 | AZ9: 56457 | BA9: 55405 | BB9: 54407 | BC9: 53348 | BD9: 52468 | BE9: 51815 | BF9: 50880 | BG9: 49166 | BH9: 46967 | BI9: 45030 | BJ9: 43767 | BK9: 42662 | BL9: 41128 | BM9: 39406 | BN9: 36464 | BO9: 34295 | BP9: 32688 | BQ9: 30165 | BR9: 28497 | BS9: 27440
A10: Class A2b Notes | B10: 165712 | C10: 162699 | D10: 158978 | E10: 155759 | F10: 152375 | G10: 149467 | H10: 137992 | I10: 122239 | J10: 116392 | K10: 114114 | L10: 112856 | M10: 111660 | N10: 110966 | O10: 110090 | P10: 109002 | Q10: 107995 | R10: 106932 | S10: 105880 | T10: 105046 | U10: 104344 | V10: 103633 | W10: 102754 | X10: 102248 | Y10: 101632 | Z10: 100983 | AA10: 100062 | AB10: 99241 | AC10: 98313 | AD10: 97458 | AE10: 96299 | AF10: 95011 | AG10: 93850 | AH10: 92605 | AI10: 91559 | AJ10: 90536 | AK10: 88487 | AL10: 87110 | AM10: 85545 | AN10: 82417 | AO10: 80548 | AP10: 79188 | AQ10: 77894 | AR10: 76636 | AS10: 75029 | AT10: 73538 | AU10: 71583 | AV10: 70043 | AW10: 69401 | AX10: 68138 | AY10: 67057 | AZ10: 65788 | BA10: 64562 | BB10: 63400 | BC10: 62165 | BD10: 61140 | BE10: 60379 | BF10: 59289 | BG10: 57292 | BH10: 54730 | BI10: 52473 | BJ10: 51001 | BK10: 49713 | BL10: 47926 | BM10: 45919 | BN10: 42491 | BO10: 39963 | BP10: 38091 | BQ10: 35151 | BR10: 33207 | BS10: 31975
A11: Class A2c Notes | B11: 165767 | C11: 162753 | D11: 159031 | E11: 155811 | F11: 152426 | G11: 149516 | H11: 138037 | I11: 122279 | J11: 116431 | K11: 114152 | L11: 112893 | M11: 111697 | N11: 111003 | O11: 110126 | P11: 109038 | Q11: 108031 | R11: 106967 | S11: 105915 | T11: 105080 | U11: 104379 | V11: 103667 | W11: 102788 | X11: 102282 | Y11: 101665 | Z11: 101016 | AA11: 100095 | AB11: 99274 | AC11: 98345 | AD11: 97491 | AE11: 96331 | AF11: 95042 | AG11: 93881 | AH11: 92636 | AI11: 91589 | AJ11: 90566 | AK11: 88516 | AL11: 87138 | AM11: 85573 | AN11: 82444 | AO11: 80574 | AP11: 79214 | AQ11: 77920 | AR11: 76661 | AS11: 75053 | AT11: 73562 | AU11: 71607 | AV11: 70065 | AW11: 69424 | AX11: 68160 | AY11: 67079 | AZ11: 65810 | BA11: 64583 | BB11: 63421 | BC11: 62186 | BD11: 61159 | BE11: 60399 | BF11: 59309 | BG11: 57310 | BH11: 54748 | BI11: 52490 | BJ11: 51017 | BK11: 49729 | BL11: 47942 | BM11: 45934 | BN11: 42504 | BO11: 39976 | BP11: 38103 | BQ11: 35162 | BR11: 33217 | BS11: 31985
A12: Class B1a Notes | B12: 25000 | C12: 25000 | D12: 25000 | E12: 25000 | F12: 25000 | G12: 25000 | H12: 25000 | I12: 25000 | J12: 25000 | K12: 25000 | L12: 25000 | M12: 25000 | N12: 25000 | O12: 25000 | P12: 25000 | Q12: 25000 | R12: 25000 | S12: 25000 | T12: 25000 | U12: 25000 | V12: 25000 | W12: 25000 | X12: 25000 | Y12: 25000 | Z12: 25000 | AA12: 25000 | AB12: 25000 | AC12: 25000 | AD12: 25000 | AE12: 25000 | AF12: 25000 | AG12: 25000 | AH12: 25000 | AI12: 25000 | AJ12: 25000 | AK12: 25000 | AL12: 25000 | AM12: 25000 | AN12: 25000 | AO12: 25000 | AP12: 25000 | AQ12: 25000 | AR12: 25000 | AS12: 25000 | AT12: 25000 | AU12: 25000 | AV12: 25000 | AW12: 24285 | AX12: 23843 | AY12: 23465 | AZ12: 23021 | BA12: 22591 | BB12: 22185 | BC12: 21753 | BD12: 21394 | BE12: 21128 | BF12: 20746 | BG12: 20047 | BH12: 19151 | BI12: 18361 | BJ12: 17846 | BK12: 17395 | BL12: 16770 | BM12: 16068 | BN12: 14868 | BO12: 13984 | BP12: 13329 | BQ12: 12300 | BR12: 11620 | BS12: 11189
A13: Class B1b Notes | B13: 86897 | C13: 86897 | D13: 86897 | E13: 86897 | F13: 86897 | G13: 86897 | H13: 86897 | I13: 86897 | J13: 86897 | K13: 86897 | L13: 86897 | M13: 86897 | N13: 86897 | O13: 86897 | P13: 86897 | Q13: 86897 | R13: 86897 | S13: 86897 | T13: 86897 | U13: 86897 | V13: 86897 | W13: 86897 | X13: 86897 | Y13: 86897 | Z13: 86897 | AA13: 86897 | AB13: 86897 | AC13: 86897 | AD13: 86897 | AE13: 86897 | AF13: 86897 | AG13: 86897 | AH13: 86897 | AI13: 86897 | AJ13: 86897 | AK13: 86897 | AL13: 86897 | AM13: 86897 | AN13: 86897 | AO13: 86897 | AP13: 86897 | AQ13: 86897 | AR13: 86897 | AS13: 86897 | AT13: 86897 | AU13: 86897 | AV13: 86897 | AW13: 84411 | AX13: 82874 | AY13: 81560 | AZ13: 80017 | BA13: 78525 | BB13: 77112 | BC13: 75610 | BD13: 74362 | BE13: 73438 | BF13: 72112 | BG13: 69682 | BH13: 66567 | BI13: 63821 | BJ13: 62031 | BK13: 60464 | BL13: 58291 | BM13: 55850 | BN13: 51680 | BO13: 48606 | BP13: 46329 | BQ13: 42753 | BR13: 40388 | BS13: 38890
A14: Class Cla Notes | B14: 17000 | C14: 17000 | D14: 17000 | E14: 17000 | F14: 17000 | G14: 17000 | H14: 17000 | I14: 17000 | J14: 17000 | K14: 17000 | L14: 17000 | M14: 17000 | N14: 17000 | O14: 17000 | P14: 17000 | Q14: 17000 | R14: 17000 | S14: 17000 | T14: 17000 | U14: 17000 | V14: 17000 | W14: 17000 | X14: 17000 | Y14: 17000 | Z14: 17000 | AA14: 17000 | AB14: 17000 | AC14: 17000 | AD14: 17000 | AE14: 17000 | AF14: 17000 | AG14: 17000 | AH14: 17000 | AI14: 17000 | AJ14: 17000 | AK14: 17000 | AL14: 17000 | AM14: 17000 | AN14: 17000 | AO14: 17000 | AP14: 17000 | AQ14: 17000 | AR14: 17000 | AS14: 17000 | AT14: 17000 | AU14: 17000 | AV14: 17000 | AW14: 16514 | AX14: 16213 | AY14: 15956 | AZ14: 15654 | BA14: 15362 | BB14: 15086 | BC14: 14792 | BD14: 14548 | BE14: 14367 | BF14: 14108 | BG14: 13632 | BH14: 13023 | BI14: 12486 | BJ14: 12135 | BK14: 11829 | BL14: 11404 | BM14: 10926 | BN14: 10110 | BO14: 9509 | BP14: 9064 | BQ14: 8364 | BR14: 7901 | BS14: 7608
A15: Class C1b Notes | B15: 73103 | C15: 73103 | D15: 73103 | E15: 73103 | F15: 73103 | G15: 73103 | H15: 73103 | I15: 73103 | J15: 73103 | K15: 73103 | L15: 73103 | M15: 73103 | N15: 73103 | O15: 73103 | P15: 73103 | Q15: 73103 | R15: 73103 | S15: 73103 | T15: 73103 | U15: 73103 | V15: 73103 | W15: 73103 | X15: 73103 | Y15: 73103 | Z15: 73103 | AA15: 73103 | AB15: 73103 | AC15: 73103 | AD15: 73103 | AE15: 73103 | AF15: 73103 | AG15: 73103 | AH15: 73103 | AI15: 73103 | AJ15: 73103 | AK15: 73103 | AL15: 73103 | AM15: 73103 | AN15: 73103 | AO15: 73103 | AP15: 73103 | AQ15: 73103 | AR15: 73103 | AS15: 73103 | AT15: 73103 | AU15: 73103 | AV15: 73103 | AW15: 71012 | AX15: 69719 | AY15: 68613 | AZ15: 67315 | BA15: 66060 | BB15: 64871 | BC15: 63608 | BD15: 62558 | BE15: 61780 | BF15: 60665 | BG15: 58621 | BH15: 56000 | BI15: 53690 | BJ15: 52184 | BK15: 50866 | BL15: 49038 | BM15: 46984 | BN15: 43477 | BO15: 40890 | BP15: 38975 | BQ15: 35966 | BR15: 33977 | BS15: 32717
A16: Class B and C Notes as a % of the Total Notes | B16: =SUM(B12:B15)/B7 -> 0.1369304 | C16: 0.1391130921 | D16: 0.1419069484 | E16: 0.1444163079 | F16: 0.1471515967 | G16: 0.1495868589 | H16: 0.1600353662 | I16: 0.1770086761 | J16: 0.1842613446 | K16: 0.1872509886 | L16: 0.188944325 | M16: 0.1905827587 | N16: 0.1915459943 | O16: 0.1927762355 | P16: 0.1943260637 | Q16: 0.1957832931 | R16: 0.1973459895 | S16: 0.1989162021 | T16: 0.2001807573 | U16: 0.2012553552 | V16: 0.202356755 | W16: =SUM(W12:W15)/W7 -> 0.2037352128 | X16: 0.2045374921 | Y16: 0.2055230766 | Z16: 0.2065707919 | AA16: 0.2080764568 | AB16: 0.209437329 | AC16: =SUM(AC12:AC15)/AC7 -> 0.2109975693 | AD16: 0.2124537887 | AE16: 0.2144635492 | AF16: 0.2167412206 | AG16: 0.2188354487 | AH16: 0.221125837 | AI16: =SUM(AI12:AI15)/AI7 -> 0.2230890545 | AJ16: 0.2250428083 | AK16: =SUM(AK12:AK15)/AK7 -> 0.229060523 | AL16: 0.2318422738 | AM16: =SUM(AM12:AM15)/AM7 -> 0.235086825 | AN16: 0.2418495504 | AO16: =SUM(AO12:AO15)/AO7 -> 0.2460815773 | AP16: 0.2492550113 | AQ16: =SUM(AQ12:AQ15)/AQ7 -> 0.2523492213 | AR16: 0.2554333325 | AS16: =SUM(AS12:AS15)/AS7 -> 0.2594866788 | AT16: 0.2633599779 | AU16: =SUM(AU12:AU15)/AU7 -> 0.2686209506 | AV16: =SUM(AV12:AV15)/AV7 -> 0.2729172831 | AW16: 0.2690021441 | AX16: 0.2690008587 | AY16: 0.2690009194 | AZ16: 0.2690022705 | BA16: 0.2689995741 | BB16: =SUM(BB12:BB15)/BB7 -> 0.2690019164 | BC16: 0.2690008448 | BD16: =SUM(BD12:BD15)/BD7 -> 0.2690002786 | BE16: 0.2690016183 | BF16: =SUM(BF12:BF15)/BF7 -> 0.2690006772 | BG16: 0.2689984672 | BH16: =SUM(BH12:BH15)/BH7 -> 0.2690001651 | BI16: 0.2689998676 | BJ16: =SUM(BJ12:BJ15)/BJ7 -> 0.2690008078 | BK16: 0.268999267 | BL16: =SUM(BL12:BL15)/BL7 -> 0.2689992655 | BM16: 0.2690005408 | BN16: =SUM(BN12:BN15)/BN7 -> 0.2689991043 | BO16: 0.2690015737 | BP16: =SUM(BP12:BP15)/BP7 -> 0.2690030873 | BQ16: 0.2690025714 | BR16: =SUM(BR12:BR15)/BR7 -> 0.2689989112 | BS16: 0.2690018805
A17: Overall Lifetime Redemption Rate | B17: 0.0771 | C17: 0.0789 | D17: 0.0831 | E17: 0.0837 | F17: 0.0845 | G17: 0.0825 | H17: 0.1077 | I17: 0.1407 | J17: 0.1421 | K17: 0.1347 | L17: 0.1265 | M17: 0.1194 | N17: 0.1126 | O17: 0.1068 | P17: 0.1021 | Q17: 0.0977 | R17: 0.094 | S17: 0.0907 | T17: 0.0875 | U17: 0.0843 | V17: 0.0815 | W17: 0.0791 | X17: 0.0764 | Y17: 0.0742 | Z17: 0.0721 | AA17: 0.0705 | AB17: 0.0689 | AC17: 0.0675 | AD17: 0.0662 | AE17: 0.0653 | AF17: 0.0646 | AG17: 0.0638 | AH17: 0.0631 | AI17: 0.0623 | AJ17: 0.0615 | AK17: 0.0618 | AL17: 0.0614 | AM17: 0.0613 | AN17: 0.0626 | AO17: 0.0627 | AP17: 0.0626 | AQ17: 0.0622 | AR17: 0.0619 | AS17: 0.0619 | AT17: 0.0618 | AU17: 0.0622 | AV17: 0.0623 | AW17: 0.0622 | AX17: 0.0624 | AY17: 0.0624 | AZ17: 0.0626 | BA17: 0.0628 | BB17: 0.063 | BC17: 0.0632 | BD17: 0.0632 | BE17: 0.063 | BF17: 0.0631 | BG17: 0.0643 | BH17: 0.0661 | BI17: 0.0676 | BJ17: 0.0683 | BK17: 0.0688 | BL17: 0.0699 | BM17: 0.0713 | BN17: 0.0747 | BO17: 0.077 | BP17: 0.0786 | BQ17: 0.0818 | BR17: 0.0837 | BS17: 0.0845
A18: Quarterly Redemption Rate | B18: 0.0226 | C18: 0.0209 | D18: 0.0238 | E18: 0.0221 | F18: 0.0227 | G18: 0.0186 | H18: 0.0689 | I18: 0.0999 | J18: 0.0408 | K18: 0.0165 | L18: 0.0102 | M18: 0.0096 | N18: 0.0066 | O18: 0.0068 | P18: 0.0085 | Q18: 0.0076 | R18: 0.0083 | S18: 0.008 | T18: 0.0068 | U18: 0.0056 | V18: 0.0055 | W18: 0.0068 | X18: 0.004 | Y18: 0.0053 | Z18: 0.0052 | AA18: 0.0073 | AB18: 0.0065 | AC18: 0.0076 | AD18: 0.0071 | AE18: 0.0095 | AF18: 0.0109 | AG18: 0.0098 | AH18: 0.0104 | AI18: 0.009 | AJ18: 0.009 | AK18: 0.018 | AL18: 0.0125 | AM18: 0.0141 | AN18: 0.0292 | AO18: 0.0174 | AP18: 0.0143 | AQ18: 0.0123 | AR18: 0.0123 | AS18: 0.0159 | AT18: 0.015 | AU18: 0.0204 | AV18: 0.0168 | AW18: 0.015 | AX18: 0.0186 | AY18: 0.0159 | AZ18: 0.0189 | BA18: 0.0186 | BB18: 0.018 | BC18: 0.0195 | BD18: 0.0165 | BE18: 0.0124 | BF18: 0.0181 | BG18: 0.0337 | BH18: 0.0447 | BI18: 0.0412 | BJ18: 0.0281 | BK18: 0.0253 | BL18: 0.0359 | BM18: 0.0419 | BN18: 0.0747 | BO18: 0.0595 | BP18: 0.0468 | BQ18: 0.0772 | BR18: 0.0553 | BS18: 0.0371
A19: Further Advances released in the quarter | B19: 5154 | C19: 6375 | D19: 5524 | E19: 6236 | F19: 5716 | G19: 2899 | H19: 4362 | I19: 4655 | J19: 1359 | K19: 319 | L19: 1311 | M19: 890 | N19: 1588 | O19: 403 | P19: 502 | Q19: 95 | R19: 386 | S19: 70 | T19: 428 | U19: 156 | V19: 55 | W19: 0 | X19: 41 | Y19: 515 | Z19: 69 | AA19: 45 | AB19: 20 | AC19: 187 | AD19: 158 | AE19: 81 | AF19: 414 | AG19: 250 | AH19: 85 | AI19: 141 | AJ19: 289 | AK19: 380 | AL19: 439 | AM19: 222 | AN19: 1051 | AO19: 171 | AP19: 1255 | AQ19: 56 | AR19: 141 | AS19: 192 | AT19: 233 | AU19: 633 | AV19: 825 | AW19: 396 | AX19: 306 | AY19: 0 | AZ19: 0 | BA19: 0 | BB19: 0 | BC19: 0 | BD19: 0 | BE19: 0 | BF19: 0 | BG19: 0 | BH19: 0 | BI19: 0 | BJ19: 0 | BK19: 0 | BL19: 0 | BM19: 0 | BN19: 0 | BO19: 0 | BP19: 0 | BQ19: 0 | BR19: 0 | BS19: 0
A20: First Loss Fund Balance | B20: 28504 | C20: 28504 | D20: 28504 | E20: 28504 | F20: 28504 | G20: 28504 | H20: 28504 | I20: 28504 | J20: 28504 | K20: 28504 | L20: 28504 | M20: 28504 | N20: 28504 | O20: 28504 | P20: 28504 | Q20: 28504 | R20: 28504 | S20: 28504 | T20: 28504 | U20: 28504 | V20: 28504 | W20: 28504 | X20: 28504 | Y20: 28504 | Z20: 28504 | AA20: 28504 | AB20: 28504 | AC20: 28504 | AD20: 28504 | AE20: 28504 | AF20: 28504 | AG20: 28504 | AH20: 28504 | AI20: 28504 | AJ20: 28504 | AK20: 28504 | AL20: 28504 | AM20: 28504 | AN20: 28504 | AO20: 28504 | AP20: 28504 | AQ20: 28504 | AR20: 28504 | AS20: 28504 | AT20: 28504 | AU20: 28504 | AV20: 28504 | AW20: 28504 | AX20: 28504 | AY20: 28504 | AZ20: 28504 | BA20: 28504 | BB20: 20504 | BC20: 20504 | BD20: 20504 | BE20: 20504 | BF20: 20504 | BG20: 20504 | BH20: 20504 | BI20: 20504 | BJ20: 20504 | BK20: 20504 | BL20: 20504 | BM20: 20504 | BN20: 20504 | BO20: 20504 | BP20: 20504 | BQ20: 20504 | BR20: =20504+1025 -> 21529 | BS20: 22510
A21: First Loss Fund as a % of the Mortgages | B21: =+B20/B6 -> 0.01932209962 | C21: 0.01963009691 | D21: 0.02002433493 | E21: 0.02037842792 | F21: 0.02076440155 | G21: 0.02110803874 | H21: 0.02258241623 | I21: 0.0249775015 | J21: 0.02600091766 | K21: 0.02642278307 | L21: 0.02666172792 | M21: 0.02689292551 | N21: 0.02702884664 | O21: 0.02720244463 | P21: 0.02742113921 | Q21: 0.02762676726 | R21: 0.02784727765 | S21: 0.02806884864 | T21: 0.02824728864 | U21: 0.02839892398 | V21: 0.0285543413 | W21: =+W20/W6 -> 0.02874885399 | X21: 0.02886206275 | Y21: 0.0290011375 | Z21: 0.02914897947 | AA21: 0.0293614422 | AB21: 0.02955347339 | AC21: =+AC20/AC6 -> 0.02977363721 | AD21: 0.02997912273 | AE21: 0.03026271785 | AF21: 0.03058411759 | AG21: 0.03087963184 | AH21: 0.03120282603 | AI21: =+AI20/AI6 -> 0.03147985351 | AJ21: 0.03175556189 | AK21: =+AK20/AK6 -> 0.03232249647 | AL21: 0.03271500805 | AM21: =+AM20/AM6 -> 0.03317286376 | AN21: 0.03412714257 | AO21: =+AO20/AO6 -> 0.03472430557 | AP21: 0.03517208302 | AQ21: =+AQ20/AQ6 -> 0.03560873488 | AR21: 0.03604393933 | AS21: =+AS20/AS6 -> 0.03661588264 | AT21: 0.03716243965 | AU21: =+AU20/AU6 -> 0.03790481218 | AV21: 0.03851106363 | AW21: =+AW20/AW6 -> 0.03907631853 | AX21: 0.03980089311 | AY21: =+AY20/AY6 -> 0.0404422344 | AZ21: 0.04122232346 | BA21: =+BA20/BA6 -> 0.04200529109 | BB21: =+BB20/BB6 -> 0.03076981826 | BC21: 0.03138084491 | BD21: 0.03190743523 | BE21: 0.0323092634 | BF21: 0.03290318732 | BG21: 0.0340503548 | BH21: =+BH20/BH6 -> 0.03564394302 | BI21: 0.03717745419 | BJ21: 0.03825066406 | BK21: 0.03924161558 | BL21: 0.04070434558 | BM21: 0.04248378269 | BN21: =+BN20/BN6 -> 0.04591137078 | BO21: 0.04881547409 | BP21: =+BP20/BP6 -> 0.05121444872 | BQ21: 0.05549872445 | BR21: =+BR20/BR6 -> 0.06168411834 | BS21: 0.06697977687
A22: Opening PDL Balance | B22: 0 | C22: 0 | D22: 0 | E22: 0 | F22: 0 | G22: 0 | H22: 0 | I22: 0 | J22: 0 | K22: 0 | L22: 0 | M22: 0 | N22: 0 | O22: 0 | P22: 0 | Q22: 0 | R22: 0 | S22: 0 | T22: 0 | U22: 0 | V22: 0 | W22: 0 | X22: 0 | Y22: 0 | Z22: 0 | AA22: 0 | AB22: 0 | AC22: 0 | AD22: 0 | AE22: 0 | AF22: 0 | AG22: 0 | AH22: 0 | AI22: 0 | AJ22: 0 | AK22: 0 | AL22: 0 | AM22: 0 | AN22: 0 | AO22: 0 | AP22: 0 | AQ22: 0 | AR22: 0 | AS22: 0 | AT22: 0 | AU22: 0 | AV22: 0 | AW22: 0 | AX22: 0 | AY22: 0 | AZ22: 0 | BA22: 0 | BB22: 0 | BC22: 0 | BD22: 0 | BE22: 0 | BF22: 0 | BG22: 0 | BH22: 0 | BI22: 0 | BJ22: 0 | BK22: 0 | BL22: 0 | BM22: 0 | BN22: 0 | BO22: 0 | BP22: 0 | BQ22: 0 | BR22: 0 | BS22: 0
A23: Quarterly Losses | B23: 0 | C23: =SUM(C93+C125) -> 0 | D23: 0 | E23: 20 | F23: 62 | G23: 9 | H23: 51 | I23: =SUM(I93+I125) -> 1 | J23: 168 | K23: 52 | L23: 319 | M23: 220 | N23: 258 | O23: =SUM(O93+O125) -> 240 | P23: 234 | Q23: 200 | R23: 536 | S23: 461 | T23: 191 | U23: =SUM(U93+U125) -> 38 | V23: 114 | W23: 284 | X23: 305 | Y23: 150 | Z23: 4 | AA23: =SUM(AA93+AA125) -> 425 | AB23: 361 | AC23: 199 | AD23: 285 | AE23: 413 | AF23: 889 | AG23: 56 | AH23: =SUM(AH93+AH125) -> 16 | AI23: 235 | AJ23: =SUM(AJ93+AJ125) -> 229 | AK23: 17 | AL23: =SUM(AL93+AL125) -> 53 | AM23: 196 | AN23: -297 | AO23: =SUM(AO93+AO125) -> 100 | AP23: 77 | AQ23: =SUM(AQ93+AQ125) -> -66 | AR23: 43 | AS23: =SUM(AS93+AS125) -> -39 | AT23: -9 | AU23: =SUM(AU93+AU125) -> 80 | AV23: 62 | AW23: =SUM(AW93+AW125) -> -9 | AX23: 159 | AY23: =SUM(AY93+AY125) -> 205 | AZ23: 65 | BA23: =SUM(BA93+BA125) -> 47 | BB23: 90 | BC23: =SUM(BC93+BC125) -> -65 | BD23: 859 | BE23: =SUM(BE93+BE125) -> -21 | BF23: 59 | BG23: =SUM(BG93+BG125) -> 66 | BH23: 127 | BI23: =SUM(BI93+BI125) -> 25 | BJ23: 56 | BK23: =SUM(BK93+BK125) -> -1 | BL23: 19 | BM23: =SUM(BM93+BM125) -> 75 | BN23: -46 | BO23: =SUM(BO93+BO125) -> -14 | BP23: 82 | BQ23: =SUM(BQ93+BQ125) -> 378 | BR23: 159 | BS23: =SUM(BS93+BS125) -> 119
A24: Quarterly Loss Rate (annualised) | B24: 0 | C24: =1-(1-C23/C6)^4 -> 0 | D24: 0 | E24: 5.719335069e-05 | F24: 0.0001806491272 | G24: 2.665877764e-05 | H24: 0.0001616100797 | I24: 3.505117691e-06 | J24: 0.000612847342 | K24: 0.0001927989583 | L24: 0.001192995413 | M24: 0.0008300030584 | N24: 0.0009782323594 | O24: 0.0009158495765 | P24: 0.0009001375602 | Q24: 0.0007751539528 | R24: 0.002092958292 | S24: 0.001814612779 | T24: 0.0007569043658 | U24: 0.0001514310732 | V24: 0.0004567271021 | W24: =1-(1-W23/W6)^4 -> 0.001145266233 | X24: 0.001234753304 | Y24: 0.000610324848 | Z24: 1.636194253e-05 | AA24: 0.001749988901 | AB24: 0.001496325502 | AC24: =1-(1-AC23/AC6)^4 -> 0.0008311965597 | AD24: 0.00119845764 | AE24: 0.001752776356 | AF24: 0.003810048059 | AG24: 0.0002426469303 | AH24: 7.005783052e-05 | AI24: =1-(1-AI23/AI6)^4 -> 0.001037733106 | AJ24: 0.001020101215 | AK24: =1-(1-AK23/AK6)^4 -> 7.71072904e-05 | AL24: 0.0002432973932 | AM24: =1-(1-AM23/AM6)^4 -> 0.0009121045433 | AN24: 0 | AO24: 0.0004872012458 | AP24: =1-(1-AP23/AP6)^4 -> 0.0003799978162 | AQ24: 0 | AR24: 0.0002174800707 | AS24: 0 | AT24: -4.693626771e-05 | AU24: =1-(1-AU23/AU6)^4 -> 0.0004254702653 | AV24: 0.0003350246911 | AW24: =1-(1-AW23/AW6)^4 -> -4.935354695e-05 | AX24: 0.0008877680083 | AY24: =1-(1-AY23/AY6)^4 -> 0.001162930344 | AZ24: 0.0003759575126 | BA24: =1-(1-BA23/BA6)^4 -> 0.000277019868 | BB24: 0.0005401331763 | BC24: 0 | BD24: 0.00533624246 | BE24: 0 | BF24: =1-(1-BF23/BF6)^4 -> 0.0003786602364 | BG24: 0.0004383445123 | BH24: 0.0008828095748 | BI24: 0.0001813057277 | BJ24: 0.0004178114602 | BK24: -7.65542884e-06 | BL24: =1-(1-BL23/BL6)^4 -> 0.0001508659405 | BM24: 0.0006214477301 | BN24: 0 | BO24: 0 | BP24: 0.000819019654 | BQ24: =1-(1-BQ23/BQ6)^4 -> 0.004086294142 | BR24: 0.001820999543 | BS24: =1-(1-BS23/BS6)^4 -> 0.001415612789
A25: PDL Replenishment made during the quarter (-ve = recoveries) | B25: 0 | C25: 0 | D25: 0 | E25: 20 | F25: 62 | G25: 9 | H25: 51 | I25: 1 | J25: 168 | K25: 52 | L25: 319 | M25: 220 | N25: 258 | O25: 240 | P25: 234 | Q25: 200 | R25: 536 | S25: 461 | T25: 191 | U25: 38 | V25: 114 | W25: 284 | X25: 305 | Y25: 150 | Z25: 4 | AA25: 425 | AB25: 361 | AC25: 199 | AD25: 285 | AE25: 413 | AF25: 889 | AG25: 56 | AH25: 16 | AI25: 235 | AJ25: 229 | AK25: 17 | AL25: 53 | AM25: 196 | AN25: -297 | AO25: 100 | AP25: 77 | AQ25: -66 | AR25: 43 | AS25: -39 | AT25: -9 | AU25: 80 | AV25: 62 | AW25: -9 | AX25: 159 | AY25: 205 | AZ25: 65 | BA25: 47 | BB25: 90 | BC25: -65 | BD25: 859 | BE25: -21 | BF25: 59 | BG25: 66 | BH25: 127 | BI25: 25 | BJ25: 56 | BK25: -1 | BL25: 19 | BM25: 75 | BN25: -46 | BO25: -14 | BP25: 82 | BQ25: 378 | BR25: 159 | BS25: 119
A26: Outstanding PDL at end of the quarter | B26: =B22+B23-B25 -> 0 | C26: 0 | D26: 0 | E26: 0 | F26: 0 | G26: 0 | H26: 0 | I26: 0 | J26: 0 | K26: 0 | L26: 0 | M26: 0 | N26: 0 | O26: 0 | P26: 0 | Q26: 0 | R26: 0 | S26: 0 | T26: 0 | U26: 0 | V26: 0 | W26: =W22+W23-W25 -> 0 | X26: 0 | Y26: 0 | Z26: 0 | AA26: 0 | AB26: 0 | AC26: =AC22+AC23-AC25 -> 0 | AD26: 0 | AE26: 0 | AF26: 0 | AG26: 0 | AH26: 0 | AI26: =AI22+AI23-AI25 -> 0 | AJ26: 0 | AK26: =AK22+AK23-AK25 -> 0 | AL26: 0 | AM26: =AM22+AM23-AM25 -> 0 | AN26: 0 | AO26: =AO22+AO23-AO25 -> 0 | AP26: 0 | AQ26: =AQ22+AQ23-AQ25 -> 0 | AR26: 0 | AS26: =AS22+AS23-AS25 -> 0 | AT26: 0 | AU26: =AU22+AU23-AU25 -> 0 | AV26: 0 | AW26: =AW22+AW23-AW25 -> 0 | AX26: 0 | AY26: =AY22+AY23-AY25 -> 0 | AZ26: 0 | BA26: =BA22+BA23-BA25 -> 0 | BB26: 0 | BC26: =BC22+BC23-BC25 -> 0 | BD26: 0 | BE26: =BE22+BE23-BE25 -> 0 | BF26: 0 | BG26: =BG22+BG23-BG25 -> 0 | BH26: 0 | BI26: =BI22+BI23-BI25 -> 0 | BJ26: 0 | BK26: =BK22+BK23-BK25 -> 0 | BL26: 0 | BM26: =BM22+BM23-BM25 -> 0 | BN26: 0 | BO26: =BO22+BO23-BO25 -> 0 | BP26: 0 | BQ26: =BQ22+BQ23-BQ25 -> 0 | BR26: 0 | BS26: =BS22+BS23-BS25 -> 0
A27: Spread Trap repayment in the quarter | B27: N/A | C27: N/A | D27: N/A | E27: N/A | F27: N/A | G27: N/A | H27: N/A | I27: N/A | J27: N/A | K27: N/A | L27: N/A | M27: N/A | N27: N/A | O27: N/A | P27: N/A | Q27: N/A | R27: N/A | S27: N/A | T27: N/A | U27: N/A | V27: N/A | W27: N/A | X27: N/A | Y27: N/A | Z27: N/A | AA27: N/A | AB27: N/A | AC27: N/A | AD27: N/A | AE27: N/A | AF27: N/A | AG27: N/A | AH27: N/A | AI27: N/A | AJ27: N/A | AK27: N/A | AL27: N/A | AM27: N/A | AN27: N/A | AO27: N/A | AP27: N/A | AQ27: N/A | AR27: N/A | AS27: N/A | AT27: N/A | AU27: N/A | AV27: N/A | AW27: N/A | AX27: N/A | AY27: N/A | AZ27: N/A | BA27: N/A | BB27: N/A | BC27: N/A | BD27: N/A | BE27: N/A | BF27: N/A | BG27: N/A | BH27: N/A | BI27: N/A | BJ27: N/A | BK27: N/A | BL27: N/A | BM27: N/A | BN27: N/A | BO27: N/A | BP27: N/A | BQ27: N/A | BR27: N/A | BS27: N/A
A28: Spread % (WA Funding Rate less WA Interest Rate) | B28: 0.0038 | C28: -0.0005 | D28: -0.003 | E28: -0.0043 | F28: -0.01 | G28: -0.0098 | H28: -0.0015 | I28: -0.0008 | J28: 0.0007 | K28: 0.0052 | L28: 0.0164 | M28: 0.0181 | N28: 0.0184 | O28: 0.0201 | P28: 0.0185 | Q28: 0.017 | R28: 0.0167 | S28: 0.0162 | T28: 0.016 | U28: 0.0154 | V28: 0.0148 | W28: 0.0143 | X28: 0.0137 | Y28: 0.0124 | Z28: 0.0126 | AA28: 0.0138 | AB28: 0.0138 | AC28: 0.0137 | AD28: 0.0137 | AE28: 0.0136 | AF28: 0.0136 | AG28: 0.0136 | AH28: 0.0134 | AI28: 0.0134 | AJ28: 0.0134 | AK28: 0.0133 | AL28: 0.0132 | AM28: 0.0133 | AN28: 0.0132 | AO28: 0.0133 | AP28: 0.0134 | AQ28: 0.0132 | AR28: 0.0135 | AS28: 0.0139 | AT28: 0.014 | AU28: 0.0137 | AV28: 0.0148 | AW28: 0.0136 | AX28: 0.014 | AY28: 0.014 | AZ28: 0.0135 | BA28: 0.0135 | BB28: 0.0137 | BC28: 0.0136 | BD28: 0.0117 | BE28: 0.0126 | BF28: 0.0137 | BG28: 0.0139 | BH28: 0.0139 | BI28: 0.01338013513 | BJ28: 0.013592635 | BK28: 0.0148 | BL28: 0.01519099423 | BM28: 0.0159 | BN28: 0.021967577 | BO28: 0.01633438052 | BP28: 0.01382576814 | BQ28: 0.015909471 | BR28: 0.01303402047 | BS28: 0.0123
A29: Total Income as a % of the Mortgages | B29: 0.0185 | C29: 0.017 | D29: 0.0176 | E29: 0.0185 | F29: 0.02 | G29: 0.0191 | H29: 0.0184 | I29: 0.0185 | J29: 0.0178 | K29: 0.0143 | L29: 0.012 | M29: 0.0098 | N29: 0.008 | O29: 0.0073 | P29: 0.0074 | Q29: 0.0071 | R29: 0.0065 | S29: 0.007 | T29: 0.0068 | U29: 0.0064 | V29: 0.0071 | W29: 0.0082 | X29: 0.0069 | Y29: 0.0077 | Z29: 0.0072 | AA29: 0.0065 | AB29: 0.0063 | AC29: 0.0065 | AD29: 0.0058 | AE29: 0.0064 | AF29: 0.007 | AG29: 0.0064 | AH29: 0.0066 | AI29: 0.0065 | AJ29: 0.0064 | AK29: 0.0065 | AL29: 0.0065 | AM29: 0.0065 | AN29: 0.0065 | AO29: 0.0066 | AP29: 0.0061 | AQ29: 0.0062 | AR29: 0.0061 | AS29: 0.0057 | AT29: 0.0062 | AU29: 0.0061 | AV29: 0.0062 | AW29: 0.0067 | AX29: 0.0072 | AY29: 0.0074 | AZ29: 0.0072 | BA29: 0.007 | BB29: 0.007 | BC29: 0.007 | BD29: 0.0065 | BE29: 0.005 | BF29: 0.005 | BG29: 0.0053 | BH29: 0.0054 | BI29: 0.005409868838 | BJ29: 0.005363388617 | BK29: 0.0054 | BL29: 0.006912826048 | BM29: 0.0082 | BN29: 0.01095246679 | BO29: 0.01279892521 | BP29: 0.01507031624 | BQ29: 0.01770923878 | BR29: 0.01818107998 | BS29: 0.0183
A30: Quarterly surplus income to the Issuer (from 31st October 2023, diverted to the PM12 First Loss Fund) | B30: 2193 | C30: 4235 | D30: 4563 | E30: 4250 | F30: 3930 | G30: 2884 | H30: 4608 | I30: 3127 | J30: 1760 | K30: 1034 | L30: 1899 | M30: 2484 | N30: 2814 | O30: 2464 | P30: 2499 | Q30: 2638 | R30: 1899 | S30: 2956 | T30: 2881 | U30: 2734 | V30: 3092 | W30: 3593 | X30: 2150 | Y30: 3097 | Z30: 3466 | AA30: 2765 | AB30: 2763 | AC30: 3022 | AD30: 2284 | AE30: 2663 | AF30: 2908 | AG30: 3029 | AH30: 3027 | AI30: 2729 | AJ30: 2701 | AK30: 2828 | AL30: 2823 | AM30: 2650 | AN30: 3050 | AO30: 2679 | AP30: 2626 | AQ30: 2759 | AR30: 2596 | AS30: 2526 | AT30: 2770 | AU30: 2109 | AV30: 2184 | AW30: 2442 | AX30: 2219 | AY30: 2146 | AZ30: 2273 | BA30: 2163 | BB30: 2081 | BC30: 2114 | BD30: 1042 | BE30: 1551 | BF30: 1886 | BG30: 1955 | BH30: 1929 | BI30: 1911 | BJ30: 1796 | BK30: 1751 | BL30: 1682 | BM30: 1558 | BN30: 1851 | BO30: 1080 | BP30: 1183 | BQ30: 1053 | BR30: 0 | BS30: 0
A31: Surplus Income as a % of the Mortgages | B31: =B30/1500000 -> 0.001462 | C31: =C30/B6 -> 0.002870793288 | D31: 0.003142440787 | E31: 0.002985665993 | F31: 0.002809683614 | G31: 0.002100916856 | H31: 0.003412357652 | I31: 0.002477379159 | J31: 0.001542253811 | K31: 0.0009431991601 | L31: 0.00176034469 | M31: 0.002323453977 | N31: 0.002654949915 | O31: 0.002336481831 | P31: 0.00238489016 | Q31: 0.002537782951 | R31: 0.0018405568 | S31: 0.002887894777 | T31: 0.002837017714 | U31: 0.00270937718 | V31: 0.003080601773 | W31: 0.003599345646 | X31: 0.002168468849 | Y31: 0.003135904025 | Z31: 0.003526450413 | AA31: 0.002827565543 | AB31: 0.002846115099 | AC31: 0.003133265387 | AD31: 0.002385734893 | AE31: 0.002800814056 | AF31: 0.003087425747 | AG31: 0.003250045333 | AH31: 0.0032792817 | AI31: 0.002987388165 | AJ31: 0.002982987803 | AK31: 0.003150600934 | AL31: 0.003201179047 | AM31: 0.003041494924 | AN31: 0.003549580215 | AO31: 0.003207501226 | AP31: 0.003199060708 | AQ31: 0.003404426643 | AR31: 0.00324306328 | AS31: 0.003194182948 | AT31: 0.003558307427 | AU31: 0.002749634621 | AV31: 0.002904297986 | AW31: 0.00329932702 | AX31: 0.003042041497 | AY31: 0.002996516861 | AZ31: 0.003224992941 | BA31: 0.003128118357 | BB31: 0.003066692771 | BC31: 0.003172424688 | BD31: 0.001594754214 | BE31: 0.00241359891 | BF31: 0.002971872356 | BG31: 0.003137228405 | BH31: 0.003203430278 | BI31: 0.003322062773 | BJ31: 0.003256472284 | BK31: 0.003266529105 | BL31: 0.003219098586 | BM31: 0.003092926766 | BN31: 0.003835226383 | BO31: 0.002418273529 | BP31: 0.002816460488 | BQ31: 0.002630160676 | BR31: 0 | BS31: 0
A32: Payment Holidays as a percentage of the Mortgages | B32: N/A | C32: N/A | D32: N/A | E32: N/A | F32: N/A | G32: N/A | H32: N/A | I32: N/A | J32: N/A | K32: N/A | L32: N/A | M32: N/A | N32: N/A | O32: N/A | P32: N/A | Q32: N/A | R32: N/A | S32: N/A | T32: N/A | U32: N/A | V32: N/A | W32: N/A | X32: N/A | Y32: N/A | Z32: N/A | AA32: N/A | AB32: N/A | AC32: N/A | AD32: N/A | AE32: N/A | AF32: N/A | AG32: N/A | AH32: N/A | AI32: N/A | AJ32: N/A | AK32: N/A | AL32: N/A | AM32: N/A | AN32: N/A | AO32: N/A | AP32: N/A | AQ32: N/A | AR32: N/A | AS32: N/A | AT32: N/A | AU32: N/A | AV32: N/A | AW32: N/A | AX32: N/A | AY32: N/A | AZ32: N/A | BA32: N/A | BB32: N/A | BC32: N/A | BD32: 0.1960680073 | BE32: 0.09391387814 | BF32: 0.008690704858 | BG32: 0.009731154247 | BH32: 0.006026081288 | BI32: 0 | BJ32: 0 | BK32: 0 | BL32: 0 | BM32: 0 | BN32: 0 | BO32: 0 | BP32: 0 | BQ32: 0 | BR32: 0 | BS32: 0
A33: Losses as a % of the Mortgages | B33: =+B23/1500000 -> 0 | C33: =+C23/B6 -> 0 | D33: 0 | E33: 1.405019291e-05 | F33: 4.432579747e-05 | G33: 6.556259261e-06 | H33: 3.776697922e-05 | I33: 7.922542883e-07 | J33: 0.0001472151365 | K33: 4.743361347e-05 | L33: 0.0002957082444 | M33: 0.0002057809481 | N33: 0.0002434175829 | O33: 0.0002275793991 | P33: 0.000223315045 | Q33: 0.0001924020433 | R33: 0.0005195041837 | S33: 0.0004503787187 | T33: 0.0001880841317 | U33: 3.765776622e-05 | V33: 0.0001135797549 | W33: 0.0002845015763 | X33: 0.0003076199995 | Y33: 0.0001518842763 | Z33: 4.069763893e-06 | AA33: 0.0004346167652 | AB33: 0.0003718594104 | AC33: 0.0002063268736 | AD33: 0.0002976945904 | AE33: 0.0004343733402 | AF33: 0.0009438519564 | AG33: 6.008667503e-05 | AH33: 1.733350089e-05 | AI33: 0.000257250355 | AJ33: 0.0002529078885 | AK33: 1.893925597e-05 | AL33: 6.010006712e-05 | AM33: 0.000224955851 | AN33: 0 | AO33: =+AO23/AN6 -> 0.000119727556 | AP33: 9.380337948e-05 | AQ33: 0 | AR33: =+AR23/AQ6 -> 5.371792028e-05 | AS33: -4.93163638e-05 | AT33: -1.156128767e-05 | AU33: 0.0001043009813 | AV33: 8.244801975e-05 | AW33: -1.215968189e-05 | AX33: 0.0002179741316 | AY33: 0.0002862469508 | AZ33: 9.222373126e-05 | BA33: 6.797113396e-05 | BB33: 0.0001326296729 | BC33: 0 | BD33: =+BD23/BC6 -> 0.001314677418 | BE33: -3.267928891e-05 | BF33: 9.296949575e-05 | BG33: 0.0001059115472 | BH33: 0.0002109049483 | BI33: 4.345974324e-05 | BJ33: 0.0001015381113 | BK33: -1.865522047e-06 | BL33: 3.63631826e-05 | BM33: 0.0001488892859 | BN33: 0 | BO33: =+BO23/BN6 -> -3.134799019e-05 | BP33: =+BP23/BO6 -> 0.0001952238039 | BQ33: 0.0009441602427 | BR33: 0.0004303695468 | BS33: 0.0003409545303
A34: Number of Properties in Possession | B34: 0 | C34: =SUM(C91+C123) -> 0 | D34: 0 | E34: 0 | F34: =SUM(F91+F123) -> 0 | G34: 0 | H34: 0 | I34: =SUM(I91+I123) -> 0 | J34: 0 | K34: 0 | L34: =SUM(L91+L123) -> 0 | M34: 0 | N34: 0 | O34: =SUM(O91+O123) -> 0 | P34: 0 | Q34: 0 | R34: =SUM(R91+R123) -> 0 | S34: 0 | T34: 0 | U34: =SUM(U91+U123) -> 0 | V34: 0 | W34: 0 | X34: =SUM(X91+X123) -> 1 | Y34: 2 | Z34: 3 | AA34: =SUM(AA91+AA123) -> 3 | AB34: 2 | AC34: 1 | AD34: =SUM(AD91+AD123) -> 0 | AE34: 0 | AF34: 0 | AG34: =SUM(AG91+AG123) -> 0 | AH34: 2 | AI34: =SUM(AI91+AI123) -> 3 | AJ34: 1 | AK34: 1 | AL34: =SUM(AL91+AL123) -> 1 | AM34: 0 | AN34: 0 | AO34: 0 | AP34: =SUM(AP91+AP123) -> 0 | AQ34: 0 | AR34: =SUM(AR91+AR123) -> 1 | AS34: 0 | AT34: =SUM(AT91+AT123) -> 0 | AU34: 0 | AV34: =SUM(AV91+AV123) -> 0 | AW34: 0 | AX34: =SUM(AX91+AX123) -> 0 | AY34: 0 | AZ34: =SUM(AZ91+AZ123) -> 0 | BA34: 1 | BB34: =SUM(BB91+BB123) -> 0 | BC34: 0 | BD34: =SUM(BD91+BD123) -> 0 | BE34: 0 | BF34: =SUM(BF91+BF123) -> 0 | BG34: 0 | BH34: =SUM(BH91+BH123) -> 0 | BI34: 0 | BJ34: =SUM(BJ91+BJ123) -> 0 | BK34: 0 | BL34: =SUM(BL91+BL123) -> 0 | BM34: 0 | BN34: =SUM(BN91+BN123) -> 0 | BO34: 0 | BP34: =SUM(BP91+BP123) -> 0 | BQ34: 0 | BR34: =SUM(BR91+BR123) -> 0 | BS34: 18
A35: Appointment of a Receiver of Rent | B35: 7 | C35: 10 | D35: 11 | E35: 16 | F35: 15 | G35: 19 | H35: 26 | I35: 76 | J35: 136 | K35: 165 | L35: 190 | M35: 191 | N35: 194 | O35: 189 | P35: 157 | Q35: 149 | R35: 141 | S35: 144 | T35: 138 | U35: 131 | V35: 138 | W35: 149 | X35: 148 | Y35: 146 | Z35: 148 | AA35: 137 | AB35: 128 | AC35: 141 | AD35: 133 | AE35: 126 | AF35: 116 | AG35: =SUM(AG92+AG124) -> 112 | AH35: 109 | AI35: =SUM(AI92+AI124) -> 105 | AJ35: 98 | AK35: 94 | AL35: =SUM(AL92+AL124) -> 91 | AM35: 92 | AN35: 90 | AO35: 89 | AP35: 87 | AQ35: =SUM(AQ92+AQ124) -> 89 | AR35: 87 | AS35: =SUM(AS92+AS124) -> 84 | AT35: 84 | AU35: =SUM(AU92+AU124) -> 78 | AV35: 77 | AW35: =SUM(AW92+AW124) -> 77 | AX35: 77 | AY35: =SUM(AY92+AY124) -> 75 | AZ35: 79 | BA35: =SUM(BA92+BA124) -> 80 | BB35: 75 | BC35: =SUM(BC92+BC124) -> 75 | BD35: 71 | BE35: =SUM(BE92+BE124) -> 72 | BF35: 70 | BG35: =SUM(BG92+BG124) -> 69 | BH35: 64 | BI35: =SUM(BI92+BI124) -> 63 | BJ35: 65 | BK35: =SUM(BK92+BK124) -> 76 | BL35: 76 | BM35: =SUM(BM92+BM124) -> 72 | BN35: 39 | BO35: =SUM(BO92+BO124) -> 39 | BP35: 41 | BQ35: =SUM(BQ92+BQ124) -> 44 | BR35: 42 | BS35: =SUM(BS92+BS124) -> 43
A36: Average Number of months (Possessions) in Arrears at the Sale Date | B36: 0 | C36: 0 | D36: 0 | E36: 0 | F36: 0 | G36: 0 | H36: 0 | I36: 0 | J36: 0 | K36: 0 | L36: 12.39 | M36: 0 | N36: 0 | O36: 0 | P36: 0 | Q36: 0 | R36: 0 | S36: 0 | T36: 0 | U36: 0 | V36: 0 | W36: 0 | X36: 0 | Y36: 4.78 | Z36: 0 | AA36: 0 | AB36: 25.55 | AC36: 26.04 | AD36: 16.37 | AE36: 0 | AF36: 0 | AG36: 0 | AH36: 0 | AI36: 0 | AJ36: 23.34 | AK36: 0 | AL36: 0 | AM36: 23.15 | AN36: 0 | AO36: 0 | AP36: 0 | AQ36: 0 | AR36: 0 | AS36: 17.05 | AT36: 0 | AU36: 0 | AV36: 0 | AW36: 0 | AX36: 0 | AY36: 0 | AZ36: 0 | BA36: 0 | BB36: 10.67 | BC36: 0 | BD36: 0 | BE36: 0 | BF36: 0 | BG36: 0 | BH36: 0 | BI36: 0 | BJ36: 0 | BK36: 0 | BL36: 0 | BM36: 0 | BN36: 0 | BO36: 0 | BP36: 0 | BQ36: 0 | BR36: 0 | BS36: 0
A37: Average Number of months (RoR) in Arrears at the Sale Date | B37: 0 | C37: 2.05 | D37: 4.02 | E37: 2.01 | F37: 4.85 | G37: 1.78 | H37: 5.28 | I37: 2.48 | J37: 9.36 | K37: 4.84 | L37: 9.81 | M37: 14.29 | N37: 10.79 | O37: 11.87 | P37: 11.58 | Q37: 5.94 | R37: 4.02 | S37: 5.03 | T37: 16.88 | U37: 0.06 | V37: 9.53 | W37: 8.99 | X37: 14.84 | Y37: 2.51 | Z37: 3.93 | AA37: 12.69 | AB37: 3.68 | AC37: 0.41 | AD37: 8.97 | AE37: 1.96 | AF37: 1.91 | AG37: 0.93 | AH37: 1.07 | AI37: 1.55 | AJ37: 3.17 | AK37: 0.75 | AL37: 0 | AM37: 0 | AN37: 31.46 | AO37: 0 | AP37: 1.49 | AQ37: 0 | AR37: 3.08 | AS37: 0.44 | AT37: 0 | AU37: 1.13 | AV37: 2.06 | AW37: 0 | AX37: 2.71 | AY37: 0 | AZ37: 14.9 | BA37: 5.62 | BB37: 6.91 | BC37: 0 | BD37: 3.36 | BE37: 0 | BF37: 0 | BG37: 0 | BH37: 0 | BI37: 2.73 | BJ37: 0 | BK37: 0 | BL37: 0 | BM37: 0 | BN37: 0 | BO37: 0 | BP37: 0 | BQ37: 0 | BR37: 0 | BS37: 0
A38: Arrears excluding Receiver of Rent and Possession Cases
A39: Performing Loans | B39: 0.9966 | C39: 0.996 | D39: 0.9961 | E39: 0.9938 | F39: 0.9941 | G39: 0.9897 | H39: 0.9917 | I39: 0.9909 | J39: 0.9833 | K39: 0.9745 | L39: 0.9774 | M39: 0.9718 | N39: 0.9772 | O39: 0.9787 | P39: 0.9944 | Q39: 0.9954 | R39: 0.9938 | S39: 0.9943 | T39: 0.9936 | U39: 0.991 | V39: 0.9931 | W39: 0.9891 | X39: 0.9851 | Y39: 0.9884 | Z39: 0.9884 | AA39: 0.9885 | AB39: 0.991 | AC39: 0.998 | AD39: 0.9973 | AE39: 0.9975 | AF39: 0.9973 | AG39: 0.9973 | AH39: 0.9975340869 | AI39: 0.9992675185 | AJ39: 0.9986840111 | AK39: 0.9985646438 | AL39: 0.9988142458 | AM39: 0.9986801224 | AN39: 0.99878901 | AO39: 0.9989451579 | AP39: 0.9990222491 | AQ39: 0.9993264221 | AR39: 0.9992687784 | AS39: 0.9999440835 | AT39: 0.9993249274 | AU39: 0.9988639051 | AV39: 0.9990120189 | AW39: 0.9827471766 | AX39: 0.9977950928 | AY39: 0.9977738859 | AZ39: 0.980003548 | BA39: 0.9938620523 | BB39: 0.995125242 | BC39: 0.9966170595 | BD39: 0.9824112628 | BE39: 0.9948148755 | BF39: 0.9947549873 | BG39: 0.9898696994 | BH39: 0.9894039396 | BI39: 0.9919913953 | BJ39: 0.993165702 | BK39: 0.9928718248 | BL39: 0.9922549941 | BM39: 0.9916008364 | BN39: 0.9956500352 | BO39: 0.9802306926 | BP39: 0.9760211432 | BQ39: 0.9614222783 | BR39: 0.9577336985 | BS39: 0.9547264883
A40: >1 to 2 months arrears | B40: 0.0019 | C40: 0.0024 | D40: 0.0027 | E40: 0.0055 | F40: 0.005 | G40: 0.0065 | H40: 0.0045 | I40: 0.0046 | J40: 0.0105 | K40: 0.0127 | L40: 0.0121 | M40: 0.0175 | N40: 0.016 | O40: 0.0146 | P40: 0.0031 | Q40: 0.0039 | R40: 0.0048 | S40: 0.0043 | T40: 0.0048 | U40: 0.0063 | V40: 0.0056 | W40: 0.0087 | X40: 0.013 | Y40: 0.0098 | Z40: 0.0103 | AA40: 0.0101 | AB40: 0.0071 | AC40: 0.0004 | AD40: 0.0011 | AE40: 0.0015 | AF40: 0.0015 | AG40: 0.0016 | AH40: 0.001542013535 | AI40: 0.0007324814655 | AJ40: 0.001315988912 | AK40: 0.001287077233 | AL40: 0.001185754228 | AM40: 0.001319877631 | AN40: 0.0009191457678 | AO40: 0.0007722133782 | AP40: 0.000777348271 | AQ40: 0.0005472836939 | AR40: 0.0006657422228 | AS40: 0 | AT40: 0.0006750725565 | AU40: 0.0004046867937 | AV40: 0.0003795779695 | AW40: 0.003467472135 | AX40: 0.001041782482 | AY40: 0.000369091129 | AZ40: 0.008063366268 | BA40: 0.002379948843 | BB40: 0.002378158587 | BC40: 0.001512668036 | BD40: 0.01262167957 | BE40: 0.002262228181 | BF40: 0.002272286737 | BG40: 0.007697566159 | BH40: 0.004662664324 | BI40: 0.00172495906 | BJ40: 0.0005563449544 | BK40: 0.001151303295 | BL40: 0.006307548535 | BM40: 0.00661137504 | BN40: 0.003214485345 | BO40: 0.00970246962 | BP40: 0.007738198995 | BQ40: 0.02706137243 | BR40: 0.01047571968 | BS40: 0.007188371437
A41: >2 to 3 months arrears | B41: 0.0008 | C41: 0.001 | D41: 0.0011 | E41: 0.0004 | F41: 0.0004 | G41: 0.0028 | H41: 0.0035 | I41: 0.0042 | J41: 0.0051 | K41: 0.008 | L41: 0.0068 | M41: 0.0066 | N41: 0.0032 | O41: 0.0017 | P41: 0.0016 | Q41: 0.0003 | R41: 0.0007 | S41: 0.0006 | T41: 0.0011 | U41: 0.0013 | V41: 0.0004 | W41: 0.0013 | X41: 0.0005 | Y41: 0.001 | Z41: 0.0004 | AA41: 0.0005 | AB41: 0.0008 | AC41: 0 | AD41: 0 | AE41: 0 | AF41: 0 | AG41: 0 | AH41: 0.0001633716171 | AI41: 0 | AJ41: 0 | AK41: 0.0001482789223 | AL41: 0 | AM41: 0 | AN41: 0.0001829491741 | AO41: 0 | AP41: 0 | AQ41: 0 | AR41: 0 | AS41: 0 | AT41: 0 | AU41: 0.0007314080918 | AV41: 0.0006084031011 | AW41: 0.01259474222 | AX41: 0.001163124755 | AY41: 0.001075415355 | AZ41: 0.006284989781 | BA41: 0.0005444615733 | BB41: 0.0009706801591 | BC41: 0.00146615425 | BD41: 0.003828442991 | BE41: 0.001313256776 | BF41: 0.001690951987 | BG41: 0.0008430176718 | BH41: 0.0001653842639 | BI41: 0.0001186500911 | BJ41: 0.005010033794 | BK41: 0 | BL41: 0.0001472312339 | BM41: 0.0009629065112 | BN41: 0.000255368415 | BO41: 0.00636076584 | BP41: 0.009684666699 | BQ41: 0.009188507876 | BR41: 0.02225985976 | BS41: 0.01201317454
A42: >3 months arrears | B42: 0.0007 | C42: 0.0006 | D42: 0.0001 | E42: 0.0003 | F42: 0.0005 | G42: 0.001 | H42: 0.0003 | I42: 0.0003 | J42: 0.0011 | K42: 0.0048 | L42: 0.0037 | M42: 0.0041 | N42: 0.0036 | O42: 0.005 | P42: 0.0009 | Q42: 0.0004 | R42: 0.0007 | S42: 0.0008 | T42: 0.0005 | U42: 0.0014 | V42: 0.0009 | W42: 0.0009 | X42: 0.0014 | Y42: 0.0008 | Z42: 0.0009 | AA42: 0.0009 | AB42: 0.0011 | AC42: 0.0016 | AD42: 0.0016 | AE42: 0.001 | AF42: 0.0012 | AG42: 0.0011 | AH42: 0.0007605279945 | AI42: 0 | AJ42: 0 | AK42: 0 | AL42: 0 | AM42: 0 | AN42: 0.0001088951029 | AO42: 0.0002826286963 | AP42: 0.0002004026776 | AQ42: 0.0001262942205 | AR42: 6.547933142e-05 | AS42: 5.591649462e-05 | AT42: 0 | AU42: 0 | AV42: 0 | AW42: 0.001190609016 | AX42: 0 | AY42: 0.0007816075989 | AZ42: 0.00564809594 | BA42: 0.003213537235 | BB42: 0.001525919261 | BC42: 0.0004041182289 | BD42: 0.001138614664 | BE42: 0.001609639577 | BF42: 0.001281773959 | BG42: 0.001589716754 | BH42: 0.005768011812 | BI42: 0.006164995526 | BJ42: 0.001267919255 | BK42: 0.005976871856 | BL42: 0.001290226113 | BM42: 0.0008248820815 | BN42: 0.0008801110044 | BO42: 0.003706071956 | BP42: 0.006555991064 | BQ42: 0.002327841358 | BR42: 0.009530722031 | BS42: 0.02607196569
A43: Total | B43: =SUM(B39:B42) -> 1 | C43: 1 | D43: 1 | E43: 1 | F43: 1 | G43: 1 | H43: 1 | I43: 1 | J43: 1 | K43: 1 | L43: 1 | M43: 1 | N43: 1 | O43: 1 | P43: 1 | Q43: 1 | R43: 1 | S43: 1 | T43: 1 | U43: 1 | V43: 1 | W43: =SUM(W39:W42) -> 1 | X43: 1 | Y43: 1 | Z43: 1 | AA43: 1 | AB43: 1 | AC43: =SUM(AC39:AC42) -> 1 | AD43: 1 | AE43: 1 | AF43: 1 | AG43: 1 | AH43: 1 | AI43: 1 | AJ43: 1 | AK43: 1 | AL43: 1 | AM43: 1 | AN43: 1 | AO43: 1 | AP43: 1 | AQ43: 1 | AR43: 1 | AS43: 1 | AT43: 1 | AU43: 1 | AV43: 1 | AW43: 1 | AX43: 1 | AY43: 1 | AZ43: 1 | BA43: 1 | BB43: 1 | BC43: 1 | BD43: 1 | BE43: 1 | BF43: 1 | BG43: 1 | BH43: 1 | BI43: =SUM(BI39:BI42) -> 1 | BJ43: 1 | BK43: 1 | BL43: 1 | BM43: 1 | BN43: 1 | BO43: 1 | BP43: 1 | BQ43: =SUM(BQ39:BQ42) -> 1 | BR43: =SUM(BR39:BR42) -> 1 | BS43: =SUM(BS39:BS42) -> 1
A44: Total Value of Arrears (£000's) | B44: 108 | C44: 156 | D44: 128 | E44: 224 | F44: 214 | G44: 300 | H44: 250 | I44: 387 | J44: 764 | K44: 1026 | L44: 957 | M44: 948 | N44: 807 | O44: 679 | P44: 483 | Q44: 393 | R44: 364 | S44: 319 | T44: 278 | U44: 279 | V44: 291 | W44: 295 | X44: 250 | Y44: 251 | Z44: 238 | AA44: 207 | AB44: 183 | AC44: 159 | AD44: 140 | AE44: 133 | AF44: 104 | AG44: 98 | AH44: 100 | AI44: 92 | AJ44: 72 | AK44: 66 | AL44: 65 | AM44: 26.36814886 | AN44: 6.620140845 | AO44: 10.3033302 | AP44: 74.95673891 | AQ44: 24.39343986 | AR44: 20.17079043 | AS44: 17.40376109 | AT44: 17.26191012 | AU44: 18.70595157 | AV44: 21.28901919 | AW44: 72.43030043 | AX44: 35.76961058 | AY44: 48.05781961 | AZ44: 100.460532 | BA44: 63.63783835 | BB44: 54.56524006 | BC44: 70.97482082 | BD44: 67.26847794 | BE44: 34.68933061 | BF44: 33.8315514 | BG44: 42.95457996 | BH44: 41.63905007 | BI44: 34.0372404 | BJ44: 34.66305982 | BK44: 45.8440702 | BL44: 45.69867906 | BM44: 49.37051917 | BN44: 69.00738756 | BO44: 229.5095816 | BP44: 263.1458666 | BQ44: 334.9016767 | BR44: 448.959206 | BS44: 604.4493926
A45: Total Value of Arrears as a % of the Notes Issued (£1,500,204,648) | B45: =+B44/1500205 -> 7.199016134e-05 | C45: =+C44/1500205 -> 0.0001039857886 | D45: 8.53216727e-05 | E45: 0.0001493129272 | F45: 0.0001426471716 | G45: 0.0001999726704 | H45: 0.000166643892 | I45: 0.0002579647448 | J45: 0.000509263734 | K45: 0.0006839065328 | L45: 0.0006379128186 | M45: 0.0006319136385 | N45: 0.0005379264834 | O45: 0.0004526048107 | P45: 0.0003219559993 | Q45: 0.0002619641982 | R45: 0.0002426335068 | S45: 0.0002126376062 | T45: 0.0001853080079 | U45: 0.0001859745835 | V45: 0.0001939734903 | W45: =+W44/1500205 -> 0.0001966397926 | X45: 0.000166643892 | Y45: 0.0001673104676 | Z45: 0.0001586449852 | AA45: 0.0001379811426 | AB45: 0.0001219833289 | AC45: =+AC44/1500205 -> 0.0001059855153 | AD45: 9.332057952e-05 | AE45: 8.865455054e-05 | AF45: 6.932385907e-05 | AG45: 6.532440566e-05 | AH45: 6.66575568e-05 | AI45: 6.132495226e-05 | AJ45: =+AJ44/1500205 -> 4.79934409e-05 | AK45: 4.399398749e-05 | AL45: =+AL44/1500205 -> 4.332741192e-05 | AM45: 1.757636381e-05 | AN45: =+AN44/1500205 -> 4.412824144e-06 | AO45: 6.867948183e-06 | AP45: =+AP44/1500205 -> 4.996433082e-05 | AQ45: 1.626007103e-05 | AR45: =+AR44/1500205 -> 1.344535609e-05 | AS45: 1.160092194e-05 | AT45: =+AT44/1500205 -> 1.150636755e-05 | AU45: 1.246893029e-05 | AV45: =+AV44/1500205 -> 1.419074006e-05 | AW45: 4.828026865e-05 | AX45: =+AX44/1500205 -> 2.384314849e-05 | AY45: 3.20341684e-05 | AZ45: =+AZ44/1500205 -> 6.696453617e-05 | BA45: 4.241942824e-05 | BB45: =+BB44/1500205 -> 3.637185589e-05 | BC45: 4.731008151e-05 | BD45: =+BD44/1500205 -> 4.483952389e-05 | BE45: 2.312306026e-05 | BF45: =+BF44/1500205 -> 2.255128559e-05 | BG45: 2.863247354e-05 | BH45: =+BH44/1500205 -> 2.775557345e-05 | BI45: 2.268839286e-05 | BJ45: =+BJ44/1500205 -> 2.310554879e-05 | BK45: 3.055853713e-05 | BL45: =+BL44/1500205 -> 3.046162295e-05 | BM45: 3.290918186e-05 | BN45: =+BN44/1500205 -> 4.599863856e-05 | BO45: 0.0001529854797 | BP45: =+BP44/1500205 -> 0.0001754066055 | BQ45: 0.0002232372754 | BR45: =+BR44/1500205 -> 0.0002992652377 | BS45: 0.0004029111972
A47: Underlying Assets - Overall | B47: 2006-10-31 | C47: 2007-01-31 | D47: 2007-04-30 | E47: 2007-07-31 | F47: 2007-10-31 | G47: 2008-01-31 | H47: 2008-04-30 | I47: 2008-07-31 | J47: 2008-10-31 | K47: 2009-01-30 | L47: 2009-04-30 | M47: 2009-07-31 | N47: 2009-10-30 | O47: 2010-01-29 | P47: 2010-04-30 | Q47: 2010-07-30 | R47: 2010-10-29 | S47: 2011-01-31 | T47: 2011-04-28 | U47: 2011-07-29 | V47: 2011-10-31 | W47: 2012-01-31 | X47: 2012-04-30 | Y47: 2012-07-31 | Z47: 2012-10-31 | AA47: 2013-01-31 | AB47: 2013-04-30 | AC47: 2013-07-31 | AD47: 2013-10-31 | AE47: 2014-01-31 | AF47: 2014-04-30 | AG47: 2014-07-31 | AH47: 2014-10-31 | AI47: 2015-01-30 | AJ47: 2015-04-30 | AK47: 2015-07-31 | AL47: =+AL5 -> 2015-10-30 | AM47: 2016-01-29 | AN47: 2016-04-29 | AO47: 2016-07-29 | AP47: 2016-10-31 | AQ47: 2017-01-31 | AR47: =+AR5 -> 2017-04-28 | AS47: 2017-07-31 | AT47: =+AT5 -> 2017-10-31 | AU47: 2018-01-31 | AV47: =+AV5 -> 2018-04-30 | AW47: 2018-07-31 | AX47: =+AX5 -> 2018-10-31 | AY47: 2019-01-31 | AZ47: =+AZ5 -> 2019-04-30 | BA47: 2019-07-31 | BB47: =+BB5 -> 2019-10-31 | BC47: 2020-01-31 | BD47: =+BD5 -> 2020-04-30 | BE47: 2020-07-31 | BF47: =+BF5 -> 2020-10-30 | BG47: 2021-01-29 | BH47: =+BH5 -> 2021-04-30 | BI47: 2021-07-30 | BJ47: =+BJ5 -> 2021-10-29 | BK47: 2022-01-31 | BL47: =+BL5 -> 2022-04-29 | BM47: 2022-07-29 | BN47: =+BN5 -> 2022-10-31 | BO47: 2023-01-31 | BP47: =+BP5 -> 2023-04-28 | BQ47: 2023-07-31 | BR47: =+BR5 -> 2023-10-31 | BS47: 2024-01-31
A48: Weighted Average LTV | B48: 0.7987 | C48: 0.7994 | D48: 0.7991 | E48: 0.7978 | F48: 0.7977 | G48: 0.7973 | H48: 0.7976 | I48: 0.799 | J48: 0.7986 | K48: 0.7991 | L48: 0.7986 | M48: 0.7981 | N48: 0.7978 | O48: 0.7973 | P48: 0.7967 | Q48: 0.7969 | R48: 0.7962 | S48: 0.7958 | T48: 0.7956 | U48: 0.7955 | V48: 0.7952 | W48: 0.7952 | X48: 0.7948 | Y48: 0.7945 | Z48: 0.7942 | AA48: 0.7938 | AB48: 0.7935 | AC48: 0.7935 | AD48: 0.7931 | AE48: 0.7928 | AF48: 0.7924 | AG48: 0.7918 | AH48: 0.7914160841 | AI48: 0.7912867113 | AJ48: 0.7908951667 | AK48: 0.7907127343 | AL48: 0.7902095021 | AM48: 0.7898098794 | AN48: 0.7894766587 | AO48: 0.7890688674 | AP48: 0.7870554393 | AQ48: 0.7863675742 | AR48: 0.7853791884 | AS48: 0.7847613799 | AT48: 0.7846122334 | AU48: 0.7842353207 | AV48: 0.7837358908 | AW48: 0.7833485272 | AX48: 0.7828782452 | AY48: 0.7825696939 | AZ48: 0.7816862026 | BA48: 0.7810966905 | BB48: 0.7805498846 | BC48: 0.7808696577 | BD48: 0.7803885548 | BE48: 0.7798097011 | BF48: 0.779563177 | BG48: 0.7805048214 | BH48: 0.7797908541 | BI48: 0.7792123848 | BJ48: 0.7785747034 | BK48: 0.777966467 | BL48: 0.7770084537 | BM48: 0.7755668326 | BN48: 0.7742391392 | BO48: 0.7713741457 | BP48: 0.7721998395 | BQ48: 0.7695456514 | BR48: 0.7686167135 | BS48: 0.7681171418
A49: Weighted Average Nationwide Indexed LTV | B49: 0.7476 | C49: 0.7357 | D49: 0.7238 | E49: 0.7027 | F49: 0.6968 | G49: 0.6987 | H49: 0.7184 | I49: 0.7449 | J49: 0.8069 | K49: 0.8347 | L49: 0.8716 | M49: 0.8481 | N49: 0.8183 | O49: 0.8069 | P49: 0.8024 | Q49: 0.7839 | R49: 0.7803 | S49: 0.7998 | T49: 0.7975 | U49: 0.7829 | V49: 0.7884 | W49: 0.7965 | X49: 0.8064 | Y49: 0.7961 | Z49: 0.7965 | AA49: 0.8038 | AB49: 0.8028 | AC49: 0.7887 | AD49: 0.7711 | AE49: 0.7544 | AF49: 0.7466 | AG49: 0.7136 | AH49: 0.7056521319 | AI49: 0.7076583437 | AJ49: 0.7071693638 | AK49: 0.6885729072 | AL49: 0.6849614343 | AM49: 0.6836127815 | AN49: 0.6818907896 | AO49: 0.6616569493 | AP49: 0.6566751446 | AQ49: 0.6583044751 | AR49: 0.6552867513 | AS49: 0.6435403297 | AT49: 0.6408703762 | AU49: 0.6431955121 | AV49: 0.6411212687 | AW49: 0.6345579937 | AX49: 0.6295602276 | AY49: 0.6351191133 | AZ49: 0.6400968954 | BA49: 0.6311556035 | BB49: 0.6300419034 | BC49: 0.635163098 | BD49: 0.625996892 | BE49: 0.6201780534 | BF49: 0.6068734157 | BG49: 0.593693291 | BH49: 0.5885285493 | BI49: 0.563334978 | BJ49: 0.554511207 | BK49: 0.5429206933 | BL49: 0.529226619 | BM49: 0.5189468958 | BN49: 0.5098137241 | BO49: 0.5258542952 | BP49: 0.5419171865 | BQ49: 0.5399284079 | BR49: 0.5494979649 | BS49: 0.5551041007
A50: Weighted Average Halifax Indexed LTV | B50: 0.7488 | C50: 0.7239 | D50: 0.706 | E50: 0.6896 | F50: 0.685 | G50: 0.687 | H50: 0.7163 | I50: 0.7386 | J50: 0.7967 | K50: 0.8547 | L50: 0.8781 | M50: 0.8798 | N50: 0.8563 | O50: 0.8376 | P50: 0.832 | Q50: 0.8215 | R50: 0.8313 | S50: 0.838 | T50: 0.8545 | U50: 0.848 | V50: 0.8432 | W50: 0.8499 | X50: 0.8492 | Y50: 0.8492 | Z50: 0.8524 | AA50: 0.8541 | AB50: 0.8386 | AC50: 0.8183 | AD50: 0.804 | AE50: 0.796 | AF50: 0.7825 | AG50: 0.7545 | AH50: 0.7313269435 | AI50: 0.740154195 | AJ50: 0.7192327167 | AK50: 0.6883572821 | AL50: 0.6812396874 | AM50: 0.6841375726 | AN50: 0.6617489522 | AO50: 0.6416693277 | AP50: n/a | AQ50: n/a | AR50: n/a | AS50: n/a | AT50: n/a | AU50: n/a | AV50: n/a | AW50: n/a | AX50: n/a | AY50: n/a | AZ50: n/a | BA50: n/a | BB50: n/a | BC50: n/a | BD50: n/a | BE50: n/a | BF50: n/a | BG50: n/a | BH50: n/a | BI50: n/a | BJ50: n/a | BK50: n/a | BL50: n/a | BM50: n/a | BN50: n/a | BO50: n/a | BP50: n/a | BQ50: n/a | BR50: n/a | BS50: n/a
A51: % of Variable Rate Mortgages | B51: 0.0665 | C51: 0.0775 | D51: 0.0817 | E51: 0.0835 | F51: 0.0917 | G51: 0.0931 | H51: 0.0867 | I51: 0.0797 | J51: 0.0773 | K51: 0.0779 | L51: 0.0539 | M51: 0.0544 | N51: 0.0543 | O51: 0.0545 | P51: 0.0546 | Q51: 0.0549 | R51: 0.0549 | S51: 0.0552 | T51: 0.0555 | U51: 0.0556 | V51: 0.0557 | W51: 0.0557 | X51: 0.0555 | Y51: 0.0555 | Z51: 0.0554 | AA51: 0.0557 | AB51: 0.0556 | AC51: 0.0552 | AD51: 0.0554 | AE51: 0.0556 | AF51: 0.0558 | AG51: 0.0558 | AH51: 0.05626494983 | AI51: 0.05671240851 | AJ51: 0.05648553373 | AK51: 0.05693471498 | AL51: 0.05704701587 | AM51: 0.05678560949 | AN51: 0.05702819666 | AO51: 0.05691726822 | AP51: 0.0569808409 | AQ51: 0.05598268381 | AR51: 0.05609977605 | AS51: 0.0564530183 | AT51: 0.05647758857 | AU51: 0.0557009298 | AV51: 0.05604302099 | AW51: 0.05585216752 | AX51: 0.05593154458 | AY51: 0.05598021072 | AZ51: 0.05583945671 | BA51: 0.05655982852 | BB51: 0.05608775809 | BC51: 0.05417412722 | BD51: 0.05427086138 | BE51: 0.05411184727 | BF51: 0.05459985116 | BG51: 0.05503761211 | BH51: 0.05555604683 | BI51: 0.05522140931 | BJ51: 0.05561138904 | BK51: 0.0555708173 | BL51: 0.0561751642 | BM51: 0.05800484845 | BN51: 0.05825303231 | BO51: 0.05817047123 | BP51: 0.05632258525 | BQ51: 0.05651110393 | BR51: 0.05719536823 | BS51: 0.05658063674
A52: % of Fixed Rate Mortgages | B52: 0.7765 | C52: 0.7811 | D52: 0.7825 | E52: 0.7751 | F52: 0.775 | G52: 0.7551 | H52: 0.7148 | I52: 0.6211 | J52: 0.6096 | K52: 0.6017 | L52: 0.2897 | M52: 0.2025 | N52: 0.165 | O52: 0.1633 | P52: 0.1116 | Q52: 0.0603 | R52: 0.0602 | S52: 0.0436 | T52: 0.0277 | U52: 0.0087 | V52: 0.0079 | W52: 0.0074 | X52: 0.0064 | Y52: 0.0063 | Z52: 0.0063 | AA52: 0.0064 | AB52: 0.0054 | AC52: 0 | AD52: 0 | AE52: 0 | AF52: 0 | AG52: 0 | AH52: 0 | AI52: 0 | AJ52: 0 | AK52: 0 | AL52: 0 | AM52: 0 | AN52: 0 | AO52: 0 | AP52: 0 | AQ52: 0 | AR52: 0 | AS52: 0 | AT52: 0 | AU52: 0 | AV52: 0 | AW52: 0 | AX52: 0.003500950565 | AY52: 0.003557363977 | AZ52: 0.003625984976 | BA52: 0.003694852957 | BB52: 0.003762576236 | BC52: 0.003837293426 | BD52: 0.00301138516 | BE52: 0.003049309217 | BF52: 0.003105363038 | BG52: 0.003213634932 | BH52: 0.003364035838 | BI52: 0.003508763177 | BJ52: 0.003610051427 | BK52: 0.003703576234 | BL52: 0.00384163194 | BM52: 0.004009568046 | BN52: 0.004333059666 | BO52: 0.004607145425 | BP52: 0.00483355775 | BQ52: 0 | BR52: 0 | BS52: 0
A53: % of Base Rate Mortgages | B53: 0 | C53: 0 | D53: 0 | E53: 0 | F53: 0 | G53: 0 | H53: 0 | I53: 0 | J53: 0 | K53: 0 | L53: 0 | M53: 0 | N53: 0 | O53: 0 | P53: 0 | Q53: 0 | R53: 0 | S53: 0 | T53: 0 | U53: 0 | V53: 0 | W53: 0 | X53: 0 | Y53: 0 | Z53: 0 | AA53: 0 | AB53: 0 | AC53: 0 | AD53: 0 | AE53: 0 | AF53: 0 | AG53: 0 | AH53: 0 | AI53: 0 | AJ53: 0 | AK53: 0 | AL53: 0 | AM53: 0 | AN53: 0 | AO53: 0 | AP53: 0 | AQ53: 0 | AR53: 0 | AS53: 0 | AT53: 0 | AU53: 0 | AV53: 0 | AW53: 0 | AX53: 0 | AY53: 0 | AZ53: 0 | BA53: 0 | BB53: 0 | BC53: 0 | BD53: 0 | BE53: 0 | BF53: 0 | BG53: 0 | BH53: 0 | BI53: 0 | BJ53: 0 | BK53: 0 | BL53: 0 | BM53: 0 | BN53: 0 | BO53: 0 | BP53: 0 | BQ53: 0 | BR53: 0 | BS53: 0
A54: % of Term SONIA Linked Mortgages - Libor linked prior to 1st June 2021/1st July 2021 | B54: 0.157 | C54: 0.1414 | D54: 0.1359 | E54: 0.1413 | F54: 0.1333 | G54: 0.1517 | H54: 0.1984 | I54: 0.2992 | J54: 0.313 | K54: 0.3204 | L54: 0.6564 | M54: 0.7431 | N54: 0.7807 | O54: 0.7822 | P54: 0.8338 | Q54: 0.8848 | R54: 0.8849 | S54: 0.9012 | T54: 0.9168 | U54: 0.9357 | V54: 0.9364 | W54: 0.9369 | X54: 0.9381 | Y54: 0.9383 | Z54: 0.9383 | AA54: 0.938 | AB54: 0.939 | AC54: 0.9448 | AD54: 0.9446 | AE54: 0.9444 | AF54: 0.9442 | AG54: 0.9442 | AH54: 0.9437350502 | AI54: 0.9432875915 | AJ54: 0.9435144663 | AK54: 0.943065285 | AL54: 0.9429529841 | AM54: 0.9432143905 | AN54: 0.9429718033 | AO54: 0.9430827318 | AP54: 0.9430191591 | AQ54: 0.9440173162 | AR54: 0.943900224 | AS54: 0.9435469817 | AT54: 0.9435224114 | AU54: 0.9442990702 | AV54: 0.943956979 | AW54: 0.9441478325 | AX54: 0.9405675049 | AY54: 0.9404624253 | AZ54: 0.9405345583 | BA54: 0.9397453185 | BB54: 0.9401496657 | BC54: 0.9419885794 | BD54: 0.9427177535 | BE54: 0.9428388435 | BF54: 0.9422947858 | BG54: 0.941748753 | BH54: 0.9410799173 | BI54: 0.9412698275 | BJ54: 0.9407785595 | BK54: 0.9407256065 | BL54: 0.9399832039 | BM54: 0.9379855835 | BN54: 0.937413908 | BO54: 0.9372223833 | BP54: 0.938843857 | BQ54: 0.9434888961 | BR54: 0.9428046318 | BS54: 0.9434193633
A55: Weighted Average Loan Size | B55: 131327.46 | C55: 132209.45 | D55: 132823.31 | E55: 133965.51 | F55: 134502.62 | G55: 134742.11 | H55: 135373.34 | I55: 135291.92 | J55: 134341.78 | K55: 135285.45 | L55: 135397.41 | M55: 135364.82 | N55: 135514.82 | O55: 135380.7 | P55: 135016.25 | Q55: 134887.29 | R55: 134717.36 | S55: 134343.46 | T55: 134187.24 | U55: 134202.45 | V55: 134063.56 | W55: 133893.76 | X55: 133747.84 | Y55: 133849.71 | Z55: 133717.01 | AA55: 133608.18 | AB55: 133622.77 | AC55: 133709.03 | AD55: 133763.98 | AE55: 133600.65 | AF55: 133274.27 | AG55: 133429.89 | AH55: 133456.0748 | AI55: 133451.3623 | AJ55: 133691.7693 | AK55: 133231.9952 | AL55: 133060.7929 | AM55: 132847.3309 | AN55: 132031.2378 | AO55: 131929.5962 | AP55: 132118.5955 | AQ55: 132070.2443 | AR55: 131956.0424 | AS55: 131830.5451 | AT55: 131720.8279 | AU55: 131558.5991 | AV55: 131793.2588 | AW55: 132073.9373 | AX55: 131914.6867 | AY55: 131567.6207 | AZ55: 131483.0589 | BA55: 131406.1155 | BB55: 131459.3168 | BC55: 131124.267 | BD55: 131064.4181 | BE55: 131092.0798 | BF55: 131219.5227 | BG55: 130169.979 | BH55: 130826.5604 | BI55: 131564.1827 | BJ55: 130933.801 | BK55: 130593.9815 | BL55: 130297.2949 | BM55: 130124.3524 | BN55: 129411.6499 | BO55: 128646.4766 | BP55: 128113.8461 | BQ55: 128325.7841 | BR55: 127986.8523 | BS55: 128369.5907
A56: Weighted Average Interest Rate | B56: 0.0523 | C56: 0.05265 | D56: 0.0532 | E56: 0.05416 | F56: 0.05484 | G56: 0.05461 | H56: 0.05595 | I56: 0.05933 | J56: 0.05999 | K56: 0.04844 | L56: 0.03876 | M56: 0.03337 | N56: 0.02774 | O56: 0.02797 | P56: 0.02663 | Q56: 0.02568 | R56: 0.02572 | S56: 0.02532 | T56: 0.02578 | U56: 0.02534 | V56: 0.02615 | W56: 0.02727 | X56: 0.02729 | Y56: 0.02594 | Z56: 0.02309 | AA56: 0.02248 | AB56: 0.02239 | AC56: 0.02227 | AD56: 0.0223 | AE56: 0.02233 | AF56: 0.02233 | AG56: 0.02237 | AH56: 0.0225244624 | AI56: 0.0224968892 | AJ56: 0.02253905484 | AK56: 0.02256103087 | AL56: 0.02261935772 | AM56: 0.022577405 | AN56: 0.02270926536 | AO56: 0.02284980439 | AP56: 0.02085581451 | AQ56: 0.02081315862 | AR56: 0.02071834301 | AS56: 0.02050960186 | AT56: 0.02050615486 | AU56: 0.02269326938 | AV56: 0.02400044813 | AW56: 0.02373425193 | AX56: 0.02573019725 | AY56: 0.02666054589 | AZ56: 0.02594941068 | BA56: 0.02518530172 | BB56: 0.02507234654 | BC56: 0.02516530694 | BD56: 0.02295855793 | BE56: 0.01918058515 | BF56: 0.01805518407 | BG56: 0.01802471787 | BH56: 0.01806043497 | BI56: 0.01789388869 | BJ56: 0.01795019269 | BK56: 0.01944066605 | BL56: 0.02604655942 | BM56: 0.03182070761 | BN56: 0.04670224213 | BO56: 0.05390014576 | BP56: 0.0594305337 | BQ56: 0.0679243364 | BR56: 0.070069186 | BS56: 0.06939358033
A57: Weighted Average Maturity Date (years) | B57: 20.85 | C57: 20.63 | D57: 20.4 | E57: 20.89 | F57: 19.91 | G57: 19.67 | H57: 19.4 | I57: 19.15 | J57: 18.87 | K57: 18.63 | L57: 18.37 | M57: 18.13 | N57: 17.89 | O57: 17.65 | P57: 17.38 | Q57: 17.13 | R57: 16.87 | S57: 16.61 | T57: 16.37 | U57: 16.12 | V57: 15.89 | W57: 15.64 | X57: 15.4 | Y57: 15.14 | Z57: 14.9 | AA57: 14.66 | AB57: 14.42 | AC57: 14.21 | AD57: 13.96 | AE57: 13.72 | AF57: 13.49 | AG57: 13.25 | AH57: 12.99673824 | AI57: 12.7515552 | AJ57: 12.5089754 | AK57: 12.2630329 | AL57: 12.02150569 | AM57: 11.81875031 | AN57: 11.70729482 | AO57: 11.52699352 | AP57: 11.27495246 | AQ57: 11.0440559 | AR57: 10.8156885 | AS57: 10.57046334 | AT57: 10.33731061 | AU57: 10.11613705 | AV57: 9.947984048 | AW57: 9.750238412 | AX57: 9.556730026 | AY57: 9.330507961 | AZ57: 9.12096945 | BA57: 8.879550272 | BB57: 8.636329702 | BC57: 8.415706846 | BD57: 8.180651465 | BE57: 7.954361753 | BF57: 7.736161451 | BG57: 7.656632329 | BH57: 7.649401011 | BI57: 7.554812823 | BJ57: 7.372925208 | BK57: 7.164980583 | BL57: 7.001233077 | BM57: 6.803383833 | BN57: 6.653012188 | BO57: 6.466690694 | BP57: 6.271391818 | BQ57: 6.098746496 | BR57: 5.902300886 | BS57: 5.701493505
A58: Weighted Average Seasoning (months) | B58: 12.8 | C58: 15.49 | D58: 18.08 | E58: 20.16 | F58: 23.73 | G58: 26.56 | H58: 29.6 | I58: 33.15 | J58: 36.22 | K58: 39.17 | L58: 42.13 | M58: 45.18 | N58: 48.22 | O58: 51.22 | P58: 54.19 | Q58: 57.22 | R58: 60.26 | S58: 63.3 | T58: 66.24 | U58: 69.26 | V58: 72.29 | W58: 75.33 | X58: 78.25 | Y58: 81.27 | Z58: 84.3 | AA58: 87.31 | AB58: 90.24 | AC58: 93.25 | AD58: 96.28 | AE58: 99.27 | AF58: 102.17 | AG58: 105.21 | AH58: 108.2535571 | AI58: 111.2701564 | AJ58: 114.2112096 | AK58: 117.1010309 | AL58: 120.1419333 | AM58: 123.2071951 | AN58: 126.2658305 | AO58: 129.3283309 | AP58: 132.2985479 | AQ58: 135.3023142 | AR58: 138.2558614 | AS58: 141.2852027 | AT58: 144.2168228 | AU58: 147.1886658 | AV58: 150.0723354 | AW58: 153.0821046 | AX58: 156.1616617 | AY58: 159.2260937 | AZ58: 162.1721986 | BA58: 165.2466017 | BB58: 168.2416796 | BC58: 171.2592255 | BD58: 174.2552112 | BE58: 177.2963971 | BF58: 180.344774 | BG58: 182.8475719 | BH58: 185.8904559 | BI58: 189.0441085 | BJ58: 192.1119209 | BK58: 195.1549932 | BL58: 198.1179479 | BM58: 201.3163867 | BN58: 204.3087802 | BO58: 207.014873 | BP58: 209.8700808 | BQ58: 212.441189 | BR58: 215.4642617 | BS58: 218.4997792
A59: % of Interest Only Mortgages | B59: 0.9292 | C59: 0.9311 | D59: 0.9324 | E59: 0.9343 | F59: 0.9357 | G59: 0.9372 | H59: 0.9397 | I59: 0.9407 | J59: 0.9433 | K59: 0.945 | L59: 0.9482 | M59: 0.9498 | N59: 0.9508 | O59: 0.9511 | P59: 0.9519 | Q59: 0.9526 | R59: 0.9537 | S59: 0.955 | T59: 0.9561 | U59: 0.9568 | V59: 0.9569 | W59: 0.9577 | X59: 0.9584 | Y59: 0.9595 | Z59: 0.9603 | AA59: 0.9607 | AB59: 0.9614 | AC59: 0.9626 | AD59: 0.9633 | AE59: 0.9639 | AF59: 0.9645 | AG59: 0.9651 | AH59: 0.9657641051 | AI59: 0.9665508561 | AJ59: 0.9672359119 | AK59: 0.9677051325 | AL59: 0.9682671091 | AM59: 0.9688851125 | AN59: 0.9692424233 | AO59: 0.969482029 | AP59: 0.969892191 | AQ59: 0.9707346852 | AR59: 0.9715957369 | AS59: 0.9718373527 | AT59: 0.972398498 | AU59: 0.9733645203 | AV59: 0.974037989 | AW59: 0.973937654 | AX59: 0.9744999435 | AY59: 0.9748486733 | AZ59: 0.9751133746 | BA59: 0.9757285383 | BB59: 0.9764297766 | BC59: 0.9769671366 | BD59: 0.9777928897 | BE59: 0.9783749225 | BF59: 0.9792333552 | BG59: 0.9793411769 | BH59: 0.9793378845 | BI59: 0.9797190368 | BJ59: 0.9799154346 | BK59: 0.9804971178 | BL59: 0.9809109396 | BM59: 0.980996241 | BN59: 0.9812396086 | BO59: 0.9815314604 | BP59: 0.9832064695 | BQ59: 0.9831848266 | BR59: 0.9834121292 | BS59: 0.983767134
A60: % of Repayment Mortgages | B60: 0.0708 | C60: 0.0689 | D60: 0.0676 | E60: 0.0657 | F60: 0.0643 | G60: 0.0628 | H60: 0.0603 | I60: 0.0593 | J60: 0.0567 | K60: 0.055 | L60: 0.0518 | M60: 0.0502 | N60: 0.0492 | O60: 0.0489 | P60: 0.0481 | Q60: 0.0474 | R60: 0.0463 | S60: 0.045 | T60: 0.0439 | U60: 0.0432 | V60: 0.0431 | W60: 0.0423 | X60: 0.0416 | Y60: 0.0405 | Z60: 0.0397 | AA60: 0.0393 | AB60: 0.0386 | AC60: 0.0374 | AD60: 0.0367 | AE60: 0.0361 | AF60: 0.0355 | AG60: 0.0349 | AH60: 0.03423589491 | AI60: 0.03344914395 | AJ60: 0.03276408815 | AK60: 0.03229486751 | AL60: 0.03173289088 | AM60: 0.03111488751 | AN60: 0.0307575767 | AO60: 0.03051797096 | AP60: 0.03010780896 | AQ60: 0.02926531478 | AR60: 0.02840426312 | AS60: 0.02816264734 | AT60: 0.02760150198 | AU60: 0.02663547968 | AV60: 0.02596201096 | AW60: 0.02606234596 | AX60: 0.02550005646 | AY60: 0.02515132666 | AZ60: 0.02488662536 | BA60: 0.02427146174 | BB60: 0.02357022343 | BC60: 0.02303286336 | BD60: 0.0222071103 | BE60: 0.02162507752 | BF60: 0.02076664479 | BG60: 0.02065882315 | BH60: 0.02066211553 | BI60: 0.02028096323 | BJ60: 0.02008456541 | BK60: 0.01950288218 | BL60: 0.01908906038 | BM60: 0.01900375896 | BN60: 0.01876039139 | BO60: 0.01846853956 | BP60: 0.01679353046 | BQ60: 0.01681517341 | BR60: 0.01658787077 | BS60: 0.01623286603
A61: % of Mortgages in London | B61: 0.1938 | C61: 0.1926 | D61: 0.1921 | E61: 0.1925 | F61: 0.1898 | G61: 0.1886 | H61: 0.1807 | I61: 0.1685 | J61: 0.1634 | K61: 0.1604 | L61: 0.1607 | M61: 0.1587 | N61: 0.159 | O61: 0.1587 | P61: 0.1563 | Q61: 0.1543 | R61: 0.1525 | S61: 0.1513 | T61: 0.15 | U61: 0.1497 | V61: 0.1492 | W61: 0.1476 | X61: 0.1478 | Y61: 0.1476 | Z61: 0.1467 | AA61: 0.1455 | AB61: 0.1452 | AC61: 0.1451 | AD61: 0.1452 | AE61: 0.1437 | AF61: 0.1421 | AG61: 0.1422 | AH61: 0.1421014039 | AI61: 0.142285367 | AJ61: 0.1422676299 | AK61: 0.1413953811 | AL61: 0.1407722372 | AM61: 0.1401223276 | AN61: 0.1374674965 | AO61: 0.1364244494 | AP61: 0.1382316635 | AQ61: 0.1386127054 | AR61: 0.1379712287 | AS61: 0.1392429713 | AT61: 0.1391418778 | AU61: 0.1380283867 | AV61: 0.1385659019 | AW61: 0.1384910079 | AX61: 0.1383524477 | AY61: 0.1375033727 | AZ61: 0.1364234499 | BA61: 0.1353050265 | BB61: 0.1328271376 | BC61: 0.1340024208 | BD61: 0.133203438 | BE61: 0.1332117978 | BF61: 0.1335702692 | BG61: 0.1185593795 | BH61: 0.1197728536 | BI61: 0.1206391425 | BJ61: 0.1232813255 | BK61: 0.1217510561 | BL61: 0.1207522531 | BM61: 0.1216829801 | BN61: 0.1243726565 | BO61: 0.1260093522 | BP61: 0.1245665977 | BQ61: 0.129029243 | BR61: 0.1310376306 | BS61: 0.1340690715
A62: % of Mortgages in the South East | B62: 0.2807 | C62: 0.2811 | D62: 0.2818 | E62: 0.2814 | F62: 0.2831 | G62: 0.2824 | H62: 0.2768 | I62: 0.2704 | J62: 0.269 | K62: 0.2688 | L62: 0.268 | M62: 0.2689 | N62: 0.2684 | O62: 0.2684 | P62: 0.2681 | Q62: 0.2692 | R62: 0.2694 | S62: 0.2694 | T62: 0.2703 | U62: 0.27 | V62: 0.2699 | W62: 0.2705 | X62: 0.2705 | Y62: 0.2707 | Z62: 0.2707 | AA62: 0.2703 | AB62: 0.2701 | AC62: 0.27 | AD62: 0.27 | AE62: 0.2703 | AF62: 0.2698 | AG62: 0.2677 | AH62: 0.2678684957 | AI62: 0.267193994 | AJ62: 0.266082447 | AK62: 0.2659890279 | AL62: 0.264108646 | AM62: 0.2627833628 | AN62: 0.2584063287 | AO62: 0.257607916 | AP62: 0.2550254074 | AQ62: 0.2531353692 | AR62: 0.2524669431 | AS62: 0.2517852986 | AT62: 0.2512130255 | AU62: 0.2497585444 | AV62: 0.2479792166 | AW62: 0.247525988 | AX62: 0.2450071191 | AY62: 0.2430421879 | AZ62: 0.2430013579 | BA62: 0.2428690067 | BB62: 0.2428327195 | BC62: 0.2412202524 | BD62: 0.240342222 | BE62: 0.2393736692 | BF62: 0.2375811831 | BG62: 0.2415390294 | BH62: 0.2417007721 | BI62: 0.2401466932 | BJ62: 0.2371566886 | BK62: 0.2354554512 | BL62: 0.2335401627 | BM62: 0.2286524478 | BN62: 0.2281904622 | BO62: 0.2331347487 | BP62: 0.2354244917 | BQ62: 0.236531339 | BR62: 0.2330791272 | BS62: 0.2359174004
A63: % of Owner Occupied Mortgages | B63: 0 | C63: 0 | D63: 0 | E63: 0 | F63: 0 | G63: 0 | H63: 0 | I63: 0 | J63: 0 | K63: 0 | L63: 0 | M63: 0 | N63: 0 | O63: 0 | P63: 0 | Q63: 0 | R63: 0 | S63: 0 | T63: 0 | U63: 0 | V63: 0 | W63: 0 | X63: 0 | Y63: 0 | Z63: 0 | AA63: 0 | AB63: 0 | AC63: 0 | AD63: 0 | AE63: 0 | AF63: 0 | AG63: 0 | AH63: 0 | AI63: 0 | AJ63: 0 | AK63: 0 | AL63: 0 | AM63: 0 | AN63: 0 | AO63: 0 | AP63: 0 | AQ63: 0 | AR63: 0 | AS63: 0 | AT63: 0 | AU63: 0 | AV63: 0 | AW63: 0 | AX63: 0 | AY63: 0 | AZ63: 0 | BA63: 0 | BB63: 0 | BC63: 0 | BD63: 0 | BE63: 0 | BF63: 0 | BG63: 0 | BH63: 0 | BI63: 0 | BJ63: 0 | BK63: 0 | BL63: 0 | BM63: 0 | BN63: 0 | BO63: 0 | BP63: 0 | BQ63: 0 | BR63: 0 | BS63: 0
A64: % of Investment Home Loans - Professional Landlords | B64: 0.6311 | C64: 0.631 | D64: 0.6283 | E64: 0.6278 | F64: 0.6271 | G64: 0.6269 | H64: 0.6368 | I64: 0.6615 | J64: 0.6663 | K64: 0.6673 | L64: 0.6683 | M64: 0.6687 | N64: 0.6704 | O64: 0.6704 | P64: 0.673 | Q64: 0.6734 | R64: 0.6743 | S64: 0.6741 | T64: 0.6753 | U64: 0.6754 | V64: 0.6762 | W64: 0.6775 | X64: 0.6773 | Y64: 0.6781 | Z64: 0.6792 | AA64: 0.6798 | AB64: 0.6807 | AC64: 0.682 | AD64: 0.6833 | AE64: 0.6842 | AF64: 0.6844 | AG64: 0.6864 | AH64: 0.6878436376 | AI64: 0.6887236326 | AJ64: 0.6905383835 | AK64: 0.6897332422 | AL64: 0.6913732538 | AM64: 0.6936322455 | AN64: 0.6978126768 | AO64: 0.6989677303 | AP64: 0.701066778 | AQ64: 0.7027477822 | AR64: 0.7039243207 | AS64: 0.7033649427 | AT64: 0.7033390998 | AU64: 0.7055425491 | AV64: 0.7082064586 | AW64: 0.7100509786 | AX64: 0.7112838777 | AY64: 0.7125444008 | AZ64: 0.7134871895 | BA64: 0.7153974421 | BB64: 0.7153657695 | BC64: 0.7168481299 | BD64: 0.7186423387 | BE64: 0.7200869526 | BF64: 0.7202461915 | BG64: 0.7179268839 | BH64: 0.7227395851 | BI64: 0.7260417145 | BJ64: 0.7256377717 | BK64: 0.7261037649 | BL64: 0.7273191457 | BM64: 0.7277959888 | BN64: 0.7308895384 | BO64: 0.7321426833 | BP64: 0.7268691238 | BQ64: 0.7284089703 | BR64: 0.7313876514 | BS64: 0.731965322
A65: % of Investment Home Loans - Emerging Professional Landlords | B65: 0.3689 | C65: 0.369 | D65: 0.3717 | E65: 0.3722 | F65: 0.3729 | G65: 0.3731 | H65: 0.3632 | I65: 0.3385 | J65: 0.3337 | K65: 0.3327 | L65: 0.3317 | M65: 0.3313 | N65: 0.3296 | O65: 0.3296 | P65: 0.327 | Q65: 0.3266 | R65: 0.3257 | S65: 0.3259 | T65: 0.3247 | U65: 0.3246 | V65: 0.3238 | W65: 0.3225 | X65: 0.3227 | Y65: 0.3219 | Z65: 0.3208 | AA65: 0.3202 | AB65: 0.3193 | AC65: 0.318 | AD65: 0.3167 | AE65: 0.3158 | AF65: 0.3156 | AG65: 0.3136 | AH65: 0.3121563624 | AI65: 0.3112763674 | AJ65: 0.3094616165 | AK65: 0.3102667578 | AL65: 0.3086267462 | AM65: 0.3063677545 | AN65: 0.3021873232 | AO65: 0.3010322697 | AP65: 0.298933222 | AQ65: 0.2972522178 | AR65: 0.2960756793 | AS65: 0.2966350573 | AT65: 0.2966609002 | AU65: 0.2944574509 | AV65: 0.2917935414 | AW65: 0.2899490214 | AX65: 0.2887161223 | AY65: 0.2874555992 | AZ65: 0.2865128105 | BA65: 0.2846025579 | BB65: 0.2846342305 | BC65: 0.2831518701 | BD65: 0.2813576613 | BE65: 0.2799130474 | BF65: 0.2797538085 | BG65: 0.2820731161 | BH65: 0.2772604149 | BI65: 0.2739582855 | BJ65: 0.2743622283 | BK65: 0.2738962351 | BL65: 0.2726808543 | BM65: 0.2722040112 | BN65: 0.2691104616 | BO65: 0.2678573167 | BP65: 0.2731308762 | BQ65: 0.2715910297 | BR65: 0.2686123486 | BS65: 0.268034678
A66: Weighted Average Interest Coverage Ratio (calculated at the origination date) | B66: 1.68 | C66: 1.68 | D66: 1.67 | E66: 1.67 | F66: 1.66 | G66: 1.66 | H66: 1.66 | I66: 1.67 | J66: 1.68 | K66: 1.68 | L66: 1.68 | M66: 1.68 | N66: 1.68 | O66: 1.67 | P66: 1.67 | Q66: 1.68 | R66: 1.68 | S66: 1.68 | T66: 1.67 | U66: 1.67 | V66: 1.67 | W66: 1.67 | X66: 1.67 | Y66: 1.67 | Z66: 1.67 | AA66: 1.67 | AB66: 1.67 | AC66: 1.67 | AD66: 1.67 | AE66: 1.66 | AF66: 1.66 | AG66: 1.66 | AH66: 1.663172062 | AI66: 1.655874838 | AJ66: 1.652882367 | AK66: 1.649662884 | AL66: 1.649619728 | AM66: 1.651425715 | AN66: 1.649247111 | AO66: 1.648788591 | AP66: 1.6488976 | AQ66: 1.647847083 | AR66: 1.647994439 | AS66: 1.648597876 | AT66: 1.646533859 | AU66: 1.644552375 | AV66: 1.64120644 | AW66: 1.640397086 | AX66: 1.639460061 | AY66: 1.637836217 | AZ66: 1.637177865 | BA66: 1.635065547 | BB66: 1.638254232 | BC66: 1.639667275 | BD66: 1.638359517 | BE66: 1.63688694 | BF66: 1.637724493 | BG66: 1.628595999 | BH66: 1.630235241 | BI66: 1.636135242 | BJ66: 1.636535304 | BK66: 1.635755566 | BL66: 1.634995784 | BM66: 1.638553403 | BN66: 1.63463149 | BO66: 1.629507707 | BP66: 1.633612028 | BQ66: 1.636042685 | BR66: 1.634830025 | BS66: 1.634118468
A67: % of Paragon Originated Assets | B67: 0.5959 | C67: 0.5921 | D67: 0.5889 | E67: 0.5885 | F67: 0.5872 | G67: 0.5847 | H67: 0.6033 | I67: 0.6355 | J67: 0.6389 | K67: 0.6388 | L67: 0.6425 | M67: 0.643 | N67: 0.6446 | O67: 0.6452 | P67: 0.6451 | Q67: 0.6452 | R67: 0.6451 | S67: 0.6438 | T67: 0.644 | U67: 0.6448 | V67: 0.6447 | W67: 0.6448 | X67: 0.6445 | Y67: 0.645 | Z67: 0.6461 | AA67: 0.647 | AB67: 0.6477 | AC67: 0.6483 | AD67: 0.6497 | AE67: 0.6496 | AF67: 0.6498 | AG67: 0.6516 | AH67: 0.65321473 | AI67: 0.6547363232 | AJ67: 0.6555317306 | AK67: 0.6558480974 | AL67: 0.6583012859 | AM67: 0.6589066606 | AN67: 0.6590139557 | AO67: 0.6615242267 | AP67: 0.6639285269 | AQ67: 0.6658446148 | AR67: 0.6661693065 | AS67: 0.6663776694 | AT67: 0.6667786636 | AU67: 0.6675326321 | AV67: 0.6681645118 | AW67: 0.669529436 | AX67: 0.6701429964 | AY67: 0.6712922473 | AZ67: 0.674974627 | BA67: 0.6776797126 | BB67: 0.6776502431 | BC67: 0.6767319207 | BD67: 0.6759486743 | BE67: 0.677113612 | BF67: 0.6781362553 | BG67: 0.6750850835 | BH67: 0.6792076116 | BI67: 0.6849513434 | BJ67: 0.6855407404 | BK67: 0.6863847209 | BL67: 0.6892845521 | BM67: 0.6982339803 | BN67: 0.7003331936 | BO67: 0.7004006489 | BP67: 0.6987829073 | BQ67: 0.6991987977 | BR67: 0.7036584134 | BS67: 0.7057221644
A68: % of Mortgage Trust Originated Assets | B68: 0.4041 | C68: 0.4079 | D68: 0.4111 | E68: 0.4115 | F68: 0.4128 | G68: 0.4153 | H68: 0.3967 | I68: 0.3645 | J68: 0.3611 | K68: 0.3612 | L68: 0.3575 | M68: 0.357 | N68: 0.3554 | O68: 0.3548 | P68: 0.3549 | Q68: 0.3548 | R68: 0.3549 | S68: 0.3562 | T68: 0.356 | U68: 0.3552 | V68: 0.3553 | W68: 0.3552 | X68: 0.3555 | Y68: 0.355 | Z68: 0.3539 | AA68: 0.353 | AB68: 0.3523 | AC68: 0.3517 | AD68: 0.3503 | AE68: 0.3504 | AF68: 0.3502 | AG68: 0.3484 | AH68: 0.34678527 | AI68: 0.3452636768 | AJ68: 0.3444682694 | AK68: 0.3441519026 | AL68: 0.3416987141 | AM68: 0.3410933394 | AN68: 0.3409860443 | AO68: 0.3384757733 | AP68: 0.3360714731 | AQ68: 0.3341553852 | AR68: 0.3338306935 | AS68: 0.3336223306 | AT68: 0.3332213364 | AU68: 0.3324673679 | AV68: 0.3318354882 | AW68: 0.330470564 | AX68: 0.3298570036 | AY68: 0.3287077527 | AZ68: 0.325025373 | BA68: 0.3223202874 | BB68: 0.3223497569 | BC68: 0.3232680793 | BD68: 0.3240513257 | BE68: 0.322886388 | BF68: 0.3218637447 | BG68: 0.3249149165 | BH68: 0.3207923884 | BI68: 0.3150486566 | BJ68: 0.3144592596 | BK68: 0.3136152791 | BL68: 0.3107154479 | BM68: 0.3017660197 | BN68: 0.2996668064 | BO68: 0.2995993511 | BP68: 0.3012170927 | BQ68: 0.3008012023 | BR68: 0.2963415866 | BS68: 0.2942778356
A70: Underlying Assets - Paragon Originated Assets | B70: 2006-10-31 | C70: 2007-01-31 | D70: 2007-04-30 | E70: 2007-07-31 | F70: 2007-10-31 | G70: 2008-01-31 | H70: 2008-04-30 | I70: 2008-07-31 | J70: 2008-10-31 | K70: 2009-01-30 | L70: 2009-04-30 | M70: 2009-07-31 | N70: 2009-10-30 | O70: 2010-01-29 | P70: 2010-04-30 | Q70: 2010-07-30 | R70: 2010-10-29 | S70: 2011-01-31 | T70: 2011-04-28 | U70: 2011-07-29 | V70: 2011-10-31 | W70: 2012-01-31 | X70: 2012-04-30 | Y70: 2012-07-31 | Z70: 2012-10-31 | AA70: 2013-01-31 | AB70: 2013-04-30 | AC70: 2013-07-31 | AD70: 2013-10-31 | AE70: 2014-01-31 | AF70: 2014-04-30 | AG70: 2014-07-31 | AH70: 2014-10-31 | AI70: 2015-01-30 | AJ70: 2015-04-30 | AK70: 2015-07-31 | AL70: =+AL47 -> 2015-10-30 | AM70: 2016-01-29 | AN70: 2016-04-29 | AO70: 2016-07-29 | AP70: 2016-10-31 | AQ70: 2017-01-31 | AR70: =+AR47 -> 2017-04-28 | AS70: 2017-07-31 | AT70: =+AT47 -> 2017-10-31 | AU70: 2018-01-31 | AV70: =+AV47 -> 2018-04-30 | AW70: 2018-07-31 | AX70: =+AX47 -> 2018-10-31 | AY70: 2019-01-31 | AZ70: =+AZ47 -> 2019-04-30 | BA70: 2019-07-31 | BB70: =+BB47 -> 2019-10-31 | BC70: 2020-01-31 | BD70: =+BD47 -> 2020-04-30 | BE70: 2020-07-31 | BF70: =+BF47 -> 2020-10-30 | BG70: 2021-01-29 | BH70: =+BH47 -> 2021-04-30 | BI70: 2021-07-30 | BJ70: =+BJ47 -> 2021-10-29 | BK70: 2022-01-31 | BL70: =+BL47 -> 2022-04-29 | BM70: 2022-07-29 | BN70: =+BN47 -> 2022-10-31 | BO70: 2023-01-31 | BP70: =+BP47 -> 2023-04-28 | BQ70: 2023-07-31 | BR70: =+BR47 -> 2023-10-31 | BS70: 2024-01-31
A71: Weighted Average LTV | B71: 0.7928 | C71: 0.7934 | D71: 0.7929 | E71: 0.7909 | F71: 0.7907 | G71: 0.79 | H71: 0.7899 | I71: 0.7913 | J71: 0.7903 | K71: 0.7912 | L71: 0.7908 | M71: 0.7901 | N71: 0.7897 | O71: 0.7893 | P71: 0.7885 | Q71: 0.7889 | R71: 0.7878 | S71: 0.7874 | T71: 0.7871 | U71: 0.7872 | V71: 0.7868 | W71: 0.7868 | X71: 0.7864 | Y71: 0.7861 | Z71: 0.7859 | AA71: 0.7857 | AB71: 0.7853 | AC71: 0.7854 | AD71: 0.7851 | AE71: 0.7848 | AF71: 0.7846 | AG71: 0.7841 | AH71: 0.7837184095 | AI71: 0.7837467492 | AJ71: 0.7834561102 | AK71: 0.7832635244 | AL71: 0.7829033222 | AM71: 0.7824162706 | AN71: 0.7820521995 | AO71: 0.7817626593 | AP71: 0.7794388399 | AQ71: 0.7784281146 | AR71: 0.7773314712 | AS71: 0.7766591598 | AT71: 0.7766323981 | AU71: 0.7758848659 | AV71: 0.7753532953 | AW71: 0.7748152883 | AX71: 0.7743854858 | AY71: 0.7749257543 | AZ71: 0.7741382544 | BA71: 0.773454089 | BB71: 0.7726293955 | BC71: 0.7734807098 | BD71: 0.7732557569 | BE71: 0.772665263 | BF71: 0.7722739835 | BG71: 0.7733134023 | BH71: 0.7729400584 | BI71: 0.7724675145 | BJ71: 0.7718567241 | BK71: 0.7716430901 | BL71: 0.7707125851 | BM71: 0.7692270248 | BN71: 0.7678818441 | BO71: 0.7648239865 | BP71: 0.7658261065 | BQ71: 0.7633378846 | BR71: 0.762583432 | BS71: 0.7622989743
A72: Weighted Average Nationwide Indexed LTV | B72: 0.7262 | C72: 0.7172 | D72: 0.7082 | E72: 0.689 | F72: 0.6852 | G72: 0.6878 | H72: 0.7074 | I72: 0.7332 | J72: 0.7917 | K72: 0.8227 | L72: 0.8556 | M72: 0.8379 | N72: 0.8089 | O72: 0.7977 | P72: 0.7952 | Q72: 0.7759 | R72: 0.7744 | S72: 0.7921 | T72: 0.7902 | U72: 0.7758 | V72: 0.7834 | W72: 0.7925 | X72: 0.8015 | Y72: 0.7918 | Z72: 0.7933 | AA72: 0.8015 | AB72: 0.8011 | AC72: 0.7872 | AD72: 0.7721 | AE72: 0.7555 | AF72: 0.7506 | AG72: 0.7187 | AH72: 0.7108985828 | AI72: 0.7140836886 | AJ72: 0.71271353 | AK72: 0.6950363503 | AL72: 0.6926709963 | AM72: 0.691669936 | AN72: 0.6916131378 | AO72: 0.6715040957 | AP72: 0.6667829354 | AQ72: 0.6690090578 | AR72: 0.6670596009 | AS72: 0.6549465465 | AT72: 0.6531809995 | AU72: 0.6555116494 | AV72: 0.6537373813 | AW72: 0.6474603777 | AX72: 0.6418661114 | AY72: 0.6480728559 | AZ72: 0.6520883503 | BA72: 0.64311519 | BB72: 0.6422153565 | BC72: 0.6476242595 | BD72: 0.6373554026 | BE72: 0.6319855445 | BF72: 0.6191819696 | BG72: 0.6054963085 | BH72: 0.5999146631 | BI72: 0.5748363848 | BJ72: 0.5667159805 | BK72: 0.5559358641 | BL72: 0.5420204533 | BM72: 0.5351034696 | BN72: 0.5231911121 | BO72: 0.5403749431 | BP72: 0.5579009144 | BQ72: 0.5588143423 | BR72: 0.5699016048 | BS72: 0.5751076874
A73: Weighted Average Halifax Indexed LTV | B73: 0.7265 | C73: 0.7049 | D73: 0.6902 | E73: 0.6765 | F73: 0.6746 | G73: 0.6774 | H73: 0.7052 | I73: 0.7278 | J73: 0.7868 | K73: 0.8446 | L73: 0.8642 | M73: 0.8695 | N73: 0.8478 | O73: 0.83 | P73: 0.8257 | Q73: 0.8163 | R73: 0.8251 | S73: 0.8303 | T73: 0.8487 | U73: 0.8418 | V73: 0.8373 | W73: 0.8479 | X73: 0.8451 | Y73: 0.8451 | Z73: 0.8499 | AA73: 0.8531 | AB73: 0.8375 | AC73: 0.8174 | AD73: 0.8045 | AE73: 0.7959 | AF73: 0.7846 | AG73: 0.7578 | AH73: 0.7359050003 | AI73: 0.7461887707 | AJ73: 0.7221644202 | AK73: 0.6924315373 | AL73: 0.6866020085 | AM73: 0.6910769016 | AN73: 0.669963045 | AO73: 0.6491452432 | AP73: n/a | AQ73: n/a | AR73: n/a | AS73: n/a | AT73: n/a | AU73: n/a | AV73: n/a | AW73: n/a | AX73: n/a | AY73: n/a | AZ73: n/a | BA73: n/a | BB73: n/a | BC73: n/a | BD73: n/a | BE73: n/a | BF73: n/a | BG73: n/a | BH73: n/a | BI73: n/a | BJ73: n/a | BK73: n/a | BL73: n/a | BM73: n/a | BN73: n/a | BO73: n/a | BP73: n/a | BQ73: n/a | BR73: n/a | BS73: n/a
A74: % of Variable Rate Mortgages | B74: 0.1112 | C74: 0.1299 | D74: 0.1379 | E74: 0.1408 | F74: 0.1547 | G74: 0.1578 | H74: 0.1422 | I74: 0.1241 | J74: 0.1196 | K74: 0.1205 | L74: 0.0826 | M74: 0.0832 | N74: 0.083 | O74: 0.0831 | P74: 0.0835 | Q74: 0.0839 | R74: 0.0839 | S74: 0.0845 | T74: 0.0849 | U74: 0.085 | V74: 0.0852 | W74: 0.0851 | X74: 0.0848 | Y74: 0.0849 | Z74: 0.0847 | AA74: 0.085 | AB74: 0.0847 | AC74: 0.084 | AD74: 0.0842 | AE74: 0.0845 | AF74: 0.0848 | AG74: 0.0849 | AH74: 0.08537306782 | AI74: 0.08585132751 | AJ74: 0.08539435247 | AK74: 0.08602424971 | AL74: 0.08586475224 | AM74: 0.08537804565 | AN74: 0.08570914033 | AO74: 0.08520180823 | AP74: 0.08497825304 | AQ74: 0.08369258413 | AR74: 0.08382285722 | AS74: 0.08432055961 | AT74: 0.08430079641 | AU74: 0.08303409474 | AV74: 0.08346102232 | AW74: 0.08299974017 | AX74: 0.08304136586 | AY74: 0.08295787169 | AZ74: 0.08228843281 | BA74: 0.08332679627 | BB74: 0.08263133152 | BC74: 0.07991299095 | BD74: 0.08014635291 | BE74: 0.07977183804 | BF74: 0.08036852943 | BG74: 0.08192922507 | BH74: 0.0820796279 | BI74: 0.08045754909 | BJ74: 0.08095252764 | BK74: 0.0807895333 | BL74: 0.08132003694 | BM74: 0.08289051409 | BN74: 0.08298170221 | BO74: 0.08284335297 | BP74: 0.08038037389 | BQ74: 0.08070109268 | BR74: 0.08103156237 | BS74: 0.07991387964
A75: % of Fixed Rate Mortgages | B75: 0.6493 | C75: 0.6581 | D75: 0.6688 | E75: 0.6693 | F75: 0.6653 | G75: 0.6294 | H75: 0.6129 | I75: 0.5864 | J75: 0.558 | K75: 0.5448 | L75: 0.2227 | M75: 0.2015 | N75: 0.1434 | O75: 0.1397 | P75: 0.0864 | Q75: 0.0503 | R75: 0.05 | S75: 0.0248 | T75: 0.0221 | U75: 0.01 | V75: 0.0097 | W75: 0.0092 | X75: 0.0083 | Y75: 0.0083 | Z75: 0.0084 | AA75: 0.0084 | AB75: 0.0069 | AC75: 0 | AD75: 0 | AE75: 0 | AF75: 0 | AG75: 0 | AH75: 0 | AI75: 0 | AJ75: 0 | AK75: 0 | AL75: 0 | AM75: 0 | AN75: 0 | AO75: 0 | AP75: 0 | AQ75: 0 | AR75: 0 | AS75: 0 | AT75: 0 | AU75: 0 | AV75: 0 | AW75: 0 | AX75: 0.00522462199 | AY75: 0.005299277611 | AZ75: 0.005372031527 | BA75: 0.005452211256 | BB75: 0.005552386757 | BC75: 0.005670330169 | BD75: 0.004455050028 | BE75: 0.004503393763 | BF75: 0.004579261194 | BG75: 0.004792755755 | BH75: 0.004979711216 | BI75: 0.00512264588 | BJ75: 0.005265991085 | BK75: 0.00539577313 | BL75: 0.005573361435 | BM75: 0.005742441873 | BN75: 0.006187140215 | BO75: 0.00657787144 | BP75: 0.006917109305 | BQ75: 0 | BR75: 0 | BS75: 0
A76: % of Base Rate Mortgages | B76: 0 | C76: 0 | D76: 0 | E76: 0 | F76: 0 | G76: 0 | H76: 0 | I76: 0 | J76: 0 | K76: 0 | L76: 0 | M76: 0 | N76: 0 | O76: 0 | P76: 0 | Q76: 0 | R76: 0 | S76: 0 | T76: 0 | U76: 0 | V76: 0 | W76: 0 | X76: 0 | Y76: 0 | Z76: 0 | AA76: 0 | AB76: 0 | AC76: 0 | AD76: 0 | AE76: 0 | AF76: 0 | AG76: 0 | AH76: 0 | AI76: 0 | AJ76: 0 | AK76: 0 | AL76: 0 | AM76: 0 | AN76: 0 | AO76: 0 | AP76: 0 | AQ76: 0 | AR76: 0 | AS76: 0 | AT76: 0 | AU76: 0 | AV76: 0 | AW76: 0 | AX76: 0 | AY76: 0 | AZ76: 0 | BA76: 0 | BB76: 0 | BC76: 0 | BD76: 0 | BE76: 0 | BF76: 0 | BG76: 0 | BH76: 0 | BI76: 0 | BJ76: 0 | BK76: 0 | BL76: 0 | BM76: 0 | BN76: 0 | BO76: 0 | BP76: 0 | BQ76: 0 | BR76: 0 | BS76: 0
A77: % of Term SONIA Linked Mortgages - Libor linked prior to 1st June / 1st July 2021 | B77: 0.2395 | C77: 0.212 | D77: 0.1932 | E77: 0.1899 | F77: 0.18 | G77: 0.2128 | H77: 0.2428 | I77: 0.2895 | J77: 0.3224 | K77: 0.3347 | L77: 0.6947 | M77: 0.7152 | N77: 0.7736 | O77: 0.7772 | P77: 0.8302 | Q77: 0.8658 | R77: 0.8662 | S77: 0.8907 | T77: 0.893 | U77: 0.905 | V77: 0.9052 | W77: 0.9057 | X77: 0.9069 | Y77: 0.9067 | Z77: 0.9069 | AA77: 0.9066 | AB77: 0.9084 | AC77: 0.916 | AD77: 0.9158 | AE77: 0.9155 | AF77: 0.9152 | AG77: 0.9151 | AH77: 0.9146269322 | AI77: 0.9141486725 | AJ77: 0.9146056475 | AK77: 0.9139757503 | AL77: 0.9141352478 | AM77: 0.9146219543 | AN77: 0.9142908597 | AO77: 0.9147981918 | AP77: 0.915021747 | AQ77: 0.9163074159 | AR77: 0.9161771428 | AS77: 0.9156794404 | AT77: 0.9156992036 | AU77: 0.9169659053 | AV77: 0.9165389777 | AW77: 0.9170002598 | AX77: 0.9117340121 | AY77: 0.9117428507 | AZ77: 0.9123395357 | BA77: 0.9112209925 | BB77: 0.9118162817 | BC77: 0.9144166789 | BD77: 0.9153985971 | BE77: 0.9157247682 | BF77: 0.9150522094 | BG77: 0.9132780192 | BH77: 0.9129406609 | BI77: 0.914419805 | BJ77: 0.9137814813 | BK77: 0.9138146936 | BL77: 0.9131066016 | BM77: 0.911367044 | BN77: 0.9108311576 | BO77: 0.9105787756 | BP77: 0.9127025168 | BQ77: 0.9192989073 | BR77: 0.9189684376 | BS77: 0.9200861204
A78: Weighted Average Loan Size | B78: 131416.92 | C78: 132955.59 | D78: 134132.75 | E78: 136022.84 | F78: 137079.05 | G78: 137650.84 | H78: 139773.54 | I78: 140894.3 | J78: 141489.46 | K78: 141597.16 | L78: 141833.07 | M78: 141799.68 | N78: 142215.71 | O78: 142083.01 | P78: 141539.46 | Q78: 141402.81 | R78: 141162.87 | S78: 140713.53 | T78: 140468.03 | U78: 140567.82 | V78: 140387.48 | W78: 140255.39 | X78: 140099.08 | Y78: 140325.91 | Z78: 140248.56 | AA78: 140238.63 | AB78: 140448.79 | AC78: 140666.02 | AD78: 140912.83 | AE78: 140855.66 | AF78: 140571.08 | AG78: 140828.72 | AH78: 140934.3691 | AI78: 140951.6066 | AJ78: 141342.6778 | AK78: 140824.9069 | AL78: 140890.7169 | AM78: 140698.274 | AN78: 139631.6513 | AO78: 139630.4221 | AP78: 140046.3159 | AQ78: 139930.1128 | AR78: 139812.9129 | AS78: 139673.651 | AT78: 139467.1821 | AU78: 139476.8449 | AV78: 139859.3304 | AW78: 140340.3644 | AX78: 140044.601 | AY78: 139814.4133 | AZ78: 139947.3178 | BA78: 139860.31 | BB78: 139889.6986 | BC78: 139486.2377 | BD78: 139489.5937 | BE78: 139560.7812 | BF78: 139883.6197 | BG78: 138552.6593 | BH78: 139989.3821 | BI78: 140850.9869 | BJ78: 140045.4658 | BK78: 139440.3157 | BL78: 139052.004 | BM78: 138793.0477 | BN78: 137662.2037 | BO78: 136896.141 | BP78: 136203.3925 | BQ78: 137770.1059 | BR78: 137431.9879 | BS78: 138293.3928
A79: Weighted Average Interest Rate | B79: 0.05482 | C79: 0.05532 | D79: 0.05597 | E79: 0.05716 | F79: 0.05798 | G79: 0.0577 | H79: 0.05885 | I79: 0.06027 | J79: 0.06184 | K79: 0.04697 | L79: 0.03626 | M79: 0.03238 | N79: 0.02626 | O79: 0.02688 | P79: 0.02545 | Q79: 0.02507 | R79: 0.02506 | S79: 0.02439 | T79: 0.02516 | U79: 0.0248 | V79: 0.02573 | W79: 0.02665 | X79: 0.02658 | Y79: 0.02486 | Z79: 0.02212 | AA79: 0.02206 | AB79: 0.02201 | AC79: 0.02186 | AD79: 0.02186 | AE79: 0.02186 | AF79: 0.02186 | AG79: 0.02188 | AH79: 0.02196370759 | AI79: 0.02196063276 | AJ79: 0.02197420234 | AK79: 0.02198006761 | AL79: 0.02198372909 | AM79: 0.02198743947 | AN79: 0.02207082722 | AO79: 0.02220763552 | AP79: 0.02022826199 | AQ79: 0.02017871351 | AR79: 0.02018866962 | AS79: 0.02016642961 | AT79: 0.02023697215 | AU79: 0.02231180563 | AV79: 0.0239599969 | AW79: 0.02335747222 | AX79: 0.02543123394 | AY79: 0.02635119389 | AZ79: 0.02551551099 | BA79: 0.02464707673 | BB79: 0.02462299404 | BC79: 0.02465172794 | BD79: 0.02227603049 | BE79: 0.01855467934 | BF79: 0.01761827275 | BG79: 0.01765751867 | BH79: 0.01762866856 | BI79: 0.01752109664 | BJ79: 0.01760036613 | BK79: 0.0195368295 | BL79: 0.02624823634 | BM79: 0.0321502554 | BN79: 0.0484285472 | BO79: 0.05398297433 | BP79: 0.05910554366 | BQ79: 0.06892744342 | BR79: 0.06909364345 | BS79: 0.06904988046
A80: Weighted Average Maturity Date (years) | B80: 20.48 | C80: 20.27 | D80: 20.06 | E80: 19.82 | F80: 19.57 | G80: 19.33 | H80: 19.09 | I80: 18.88 | J80: 18.61 | K80: 18.37 | L80: 18.11 | M80: 17.88 | N80: 17.64 | O80: 17.4 | P80: 17.13 | Q80: 16.87 | R80: 16.61 | S80: 16.34 | T80: 16.1 | U80: 15.85 | V80: 15.62 | W80: 15.38 | X80: 15.13 | Y80: 14.88 | Z80: 14.64 | AA80: 14.4 | AB80: 14.18 | AC80: 13.98 | AD80: 13.74 | AE80: 13.5 | AF80: 13.28 | AG80: 13.03 | AH80: 12.78507378 | AI80: 12.53604714 | AJ80: 12.29661956 | AK80: 12.04049304 | AL80: 11.80954064 | AM80: 11.60868071 | AN80: 11.49543162 | AO80: 11.29539627 | AP80: 11.03852309 | AQ80: 10.80036483 | AR80: 10.57445449 | AS80: 10.33302584 | AT80: 10.10438686 | AU80: 9.893542284 | AV80: 9.737055166 | AW80: 9.555646612 | AX80: 9.379922826 | AY80: 9.160147883 | AZ80: 8.9292955 | BA80: 8.679465753 | BB80: 8.43726877 | BC80: 8.23042613 | BD80: 7.995056293 | BE80: 7.763009381 | BF80: 7.546762375 | BG80: 7.513438186 | BH80: 7.487142636 | BI80: 7.362676089 | BJ80: 7.187388647 | BK80: 6.986508907 | BL80: 6.831028592 | BM80: 6.62859547 | BN80: 6.512223896 | BO80: 6.359301451 | BP80: 6.156263251 | BQ80: 5.9958884 | BR80: 5.810494513 | BS80: 5.623696005
A81: Weighted Average Seasoning (months) | B81: 17.57 | C81: 20.11 | D81: 22.53 | E81: 25.19 | F81: 27.94 | G81: 30.66 | H81: 33.52 | I81: 36.85 | J81: 39.89 | K81: 42.78 | L81: 45.7 | M81: 48.75 | N81: 51.78 | O81: 54.76 | P81: 57.75 | Q81: 60.78 | R81: 63.84 | S81: 66.9 | T81: 69.84 | U81: 72.85 | V81: 75.88 | W81: 78.93 | X81: 81.84 | Y81: 84.85 | Z81: 87.86 | AA81: 90.85 | AB81: 93.77 | AC81: 96.77 | AD81: 99.78 | AE81: 102.74 | AF81: 105.63 | AG81: 108.66 | AH81: 111.6830163 | AI81: 114.6744657 | AJ81: 117.6118363 | AK81: 120.427717 | AL81: 123.4415997 | AM81: 126.5172144 | AN81: 129.6282376 | AO81: 132.6692231 | AP81: 135.618663 | AQ81: 138.5834554 | AR81: 141.5485946 | AS81: 144.5789789 | AT81: 147.4589408 | AU81: 150.3932918 | AV81: 153.2436036 | AW81: 156.2291523 | AX81: 159.324208 | AY81: 162.3943304 | AZ81: 165.3021238 | BA81: 168.3630102 | BB81: 171.3446862 | BC81: 174.3737196 | BD81: 177.3985532 | BE81: 180.4340243 | BF81: 183.4794259 | BG81: 185.7803198 | BH81: 188.836966 | BI81: 191.9640652 | BJ81: 195.0394742 | BK81: 198.0811218 | BL81: 201.0292207 | BM81: 204.1803968 | BN81: 207.1392742 | BO81: 209.7089737 | BP81: 212.5572578 | BQ81: 214.9192367 | BR81: 217.8802286 | BS81: 220.8979779
A82: % of Interest Only Mortgages | B82: 0.9192 | C82: 0.9218 | D82: 0.9228 | E82: 0.9239 | F82: 0.926 | G82: 0.9274 | H82: 0.9294 | I82: 0.9307 | J82: 0.9342 | K82: 0.9364 | L82: 0.9412 | M82: 0.9437 | N82: 0.9446 | O82: 0.9455 | P82: 0.9468 | Q82: 0.9481 | R82: 0.9488 | S82: 0.9503 | T82: 0.9514 | U82: 0.952 | V82: 0.9519 | W82: 0.9527 | X82: 0.9535 | Y82: 0.955 | Z82: 0.9562 | AA82: 0.9569 | AB82: 0.9576 | AC82: 0.959 | AD82: 0.9598 | AE82: 0.9605 | AF82: 0.9611 | AG82: 0.9618 | AH82: 0.9625325254 | AI82: 0.9634712944 | AJ82: 0.9643670735 | AK82: 0.9650276772 | AL82: 0.9660360443 | AM82: 0.9663006418 | AN82: 0.9664355162 | AO82: 0.9667349821 | AP82: 0.9675076819 | AQ82: 0.9683636208 | AR82: 0.9694439279 | AS82: 0.9696725479 | AT82: 0.9702647369 | AU82: 0.9711505624 | AV82: 0.9724258323 | AW82: 0.9715617576 | AX82: 0.9719461554 | AY82: 0.9725351533 | AZ82: 0.9730346999 | BA82: 0.9739919612 | BB82: 0.9750092912 | BC82: 0.9755060745 | BD82: 0.9764469637 | BE82: 0.9772535398 | BF82: 0.9780200198 | BG82: 0.9780317529 | BH82: 0.9782843446 | BI82: 0.9788108007 | BJ82: 0.9789135233 | BK82: 0.9793810361 | BL82: 0.9796255366 | BM82: 0.9800314638 | BN82: 0.9801529636 | BO82: 0.9802626882 | BP82: 0.9823736796 | BQ82: 0.9818407134 | BR82: 0.9818805737 | BS82: 0.982228059
A83: % of Repayment Mortgages | B83: 0.0808 | C83: 0.0782 | D83: 0.0772 | E83: 0.0761 | F83: 0.074 | G83: 0.0726 | H83: 0.0706 | I83: 0.0693 | J83: 0.0658 | K83: 0.0636 | L83: 0.0588 | M83: 0.0563 | N83: 0.0554 | O83: 0.0545 | P83: 0.0532 | Q83: 0.0519 | R83: 0.0512 | S83: 0.0497 | T83: 0.0486 | U83: 0.048 | V83: 0.0481 | W83: 0.0473 | X83: 0.0465 | Y83: 0.045 | Z83: 0.0438 | AA83: 0.0431 | AB83: 0.0424 | AC83: 0.041 | AD83: 0.0402 | AE83: 0.0395 | AF83: 0.0389 | AG83: 0.0382 | AH83: 0.03746747457 | AI83: 0.03652870564 | AJ83: 0.03563292648 | AK83: 0.03497232281 | AL83: 0.03396395569 | AM83: 0.03369935816 | AN83: 0.03356448382 | AO83: 0.03326501787 | AP83: 0.03249231813 | AQ83: 0.03163637923 | AR83: 0.03055607215 | AS83: 0.03032745206 | AT83: 0.02973526312 | AU83: 0.0288494376 | AV83: 0.02757416771 | AW83: 0.0284382424 | AX83: 0.02805384465 | AY83: 0.02746484666 | AZ83: 0.02696530013 | BA83: 0.02600803881 | BB83: 0.02499070878 | BC83: 0.02449392551 | BD83: 0.02355303629 | BE83: 0.02274646017 | BF83: 0.02197998024 | BG83: 0.02196824705 | BH83: 0.02171565536 | BI83: 0.02118919931 | BJ83: 0.02108647671 | BK83: 0.02061896388 | BL83: 0.02037446336 | BM83: 0.01996853624 | BN83: 0.01984703638 | BO83: 0.01973731183 | BP83: 0.01762632039 | BQ83: 0.01815928655 | BR83: 0.01811942625 | BS83: 0.01777194095
A84: % of Mortgages in London | B84: 0.1798 | C84: 0.1779 | D84: 0.1779 | E84: 0.1786 | F84: 0.1753 | G84: 0.1739 | H84: 0.1713 | I84: 0.169 | J84: 0.1655 | K84: 0.1613 | L84: 0.1613 | M84: 0.1585 | N84: 0.1601 | O84: 0.1603 | P84: 0.1568 | Q84: 0.1539 | R84: 0.1516 | S84: 0.1504 | T84: 0.149 | U84: 0.1483 | V84: 0.148 | W84: 0.1469 | X84: 0.1471 | Y84: 0.1472 | Z84: 0.1467 | AA84: 0.1457 | AB84: 0.1455 | AC84: 0.1459 | AD84: 0.1464 | AE84: 0.1447 | AF84: 0.1436 | AG84: 0.1438 | AH84: 0.1439133106 | AI84: 0.1437519468 | AJ84: 0.1437690175 | AK84: 0.1439285325 | AL84: 0.144396367 | AM84: 0.1439887651 | AN84: 0.14089541 | AO84: 0.1395960722 | AP84: 0.14200136 | AQ84: 0.1416528358 | AR84: 0.1406357027 | AS84: 0.1423520138 | AT84: 0.141829852 | AU84: 0.1421302543 | AV84: 0.1431190047 | AW84: 0.1429952469 | AX84: 0.1426404758 | AY84: 0.1416279425 | AZ84: 0.1428780598 | BA84: 0.1418016628 | BB84: 0.1380237176 | BC84: 0.139372607 | BD84: 0.1381171299 | BE84: 0.1376219545 | BF84: 0.138320081 | BG84: 0.11720565 | BH84: 0.1196989526 | BI84: 0.1216330273 | BJ84: 0.1244962194 | BK84: 0.1215050519 | BL84: 0.1180146165 | BM84: 0.1191148972 | BN84: 0.1222481132 | BO84: 0.1255869237 | BP84: 0.1229659346 | BQ84: 0.1288111858 | BR84: 0.1308916757 | BS84: 0.1337743313
A85: % of Mortgages in the South East | B85: 0.2217 | C85: 0.2223 | D85: 0.2225 | E85: 0.2215 | F85: 0.2228 | G85: 0.221 | H85: 0.2193 | I85: 0.2186 | J85: 0.2183 | K85: 0.2183 | L85: 0.2192 | M85: 0.2201 | N85: 0.2194 | O85: 0.2194 | P85: 0.2194 | Q85: 0.2205 | R85: 0.22 | S85: 0.2199 | T85: 0.2209 | U85: 0.2213 | V85: 0.2211 | W85: 0.2214 | X85: 0.2216 | Y85: 0.2213 | Z85: 0.2214 | AA85: 0.2211 | AB85: 0.2209 | AC85: 0.2206 | AD85: 0.221 | AE85: 0.2216 | AF85: 0.2215 | AG85: 0.22 | AH85: 0.2204626373 | AI85: 0.2212410988 | AJ85: 0.2207873642 | AK85: 0.2217739483 | AL85: 0.2200765251 | AM85: 0.2186185113 | AN85: 0.2142320736 | AO85: 0.2134264881 | AP85: 0.210561467 | AQ85: 0.2105748935 | AR85: 0.2095442654 | AS85: 0.2086156423 | AT85: 0.2086410858 | AU85: 0.2065116593 | AV85: 0.2044644488 | AW85: 0.2042161997 | AX85: 0.2007758183 | AY85: 0.1986229142 | AZ85: 0.1985644594 | BA85: 0.1996520267 | BB85: 0.2001147701 | BC85: 0.1968548376 | BD85: 0.1967364363 | BE85: 0.1957255083 | BF85: 0.1940841418 | BG85: 0.1988391159 | BH85: 0.1989141019 | BI85: 0.197098297 | BJ85: 0.1932897396 | BK85: 0.1913689948 | BL85: 0.189793383 | BM85: 0.1851781943 | BN85: 0.1862686091 | BO85: 0.191723805 | BP85: 0.1936815829 | BQ85: 0.1990757698 | BR85: 0.1964998883 | BS85: 0.2002724118
A86: % of Owner Occupied Mortgages | B86: 0 | C86: 0 | D86: 0 | E86: 0 | F86: 0 | G86: 0 | H86: 0 | I86: 0 | J86: 0 | K86: 0 | L86: 0 | M86: 0 | N86: 0 | O86: 0 | P86: 0 | Q86: 0 | R86: 0 | S86: 0 | T86: 0 | U86: 0 | V86: 0 | W86: 0 | X86: 0 | Y86: 0 | Z86: 0 | AA86: 0 | AB86: 0 | AC86: 0 | AD86: 0 | AE86: 0 | AF86: 0 | AG86: 0 | AH86: 0 | AI86: 0 | AJ86: 0 | AK86: 0 | AL86: 0 | AM86: 0 | AN86: 0 | AO86: 0 | AP86: 0 | AQ86: 0 | AR86: 0 | AS86: 0 | AT86: 0 | AU86: 0 | AV86: 0 | AW86: 0 | AX86: 0 | AY86: 0 | AZ86: 0 | BA86: 0 | BB86: 0 | BC86: 0 | BD86: 0 | BE86: 0 | BF86: 0 | BG86: 0 | BH86: 0 | BI86: 0 | BJ86: 0 | BK86: 0 | BL86: 0 | BM86: 0 | BN86: 0 | BO86: 0 | BP86: 0 | BQ86: 0 | BR86: 0 | BS86: 0
A87: % of Investment Home Loans - Professional Landlords | B87: 0.7839 | C87: 0.7872 | D87: 0.7863 | E87: 0.7857 | F87: 0.7851 | G87: 0.7876 | H87: 0.7899 | I87: 0.7996 | J87: 0.8028 | K87: 0.8027 | L87: 0.8013 | M87: 0.801 | N87: 0.802 | O87: 0.8015 | P87: 0.8045 | Q87: 0.8042 | R87: 0.8056 | S87: 0.8054 | T87: 0.8064 | U87: 0.8061 | V87: 0.8068 | W87: 0.808 | X87: 0.808 | Y87: 0.8086 | Z87: 0.809 | AA87: 0.8092 | AB87: 0.81 | AC87: 0.8105 | AD87: 0.8111 | AE87: 0.8116 | AF87: 0.8126 | AG87: 0.8144 | AH87: 0.8153237547 | AI87: 0.8150668673 | AJ87: 0.8165017635 | AK87: 0.814829358 | AL87: 0.8161440702 | AM87: 0.8180778687 | AN87: 0.8241916442 | AO87: 0.8242432764 | AP87: 0.8252239041 | AQ87: 0.8258203438 | AR87: 0.8278158169 | AS87: 0.8278705876 | AT87: 0.8265250764 | AU87: 0.8257434815 | AV87: 0.8292067457 | AW87: 0.8301673181 | AX87: 0.8301720833 | AY87: 0.8300206073 | AZ87: 0.8307090962 | BA87: 0.83127153 | BB87: 0.8307687372 | BC87: 0.8332878201 | BD87: 0.8354323996 | BE87: 0.8377891126 | BF87: 0.8380351897 | BG87: 0.8362811137 | BH87: 0.8397897655 | BI87: 0.8438088841 | BJ87: 0.8437572932 | BK87: 0.844198925 | BL87: 0.8429942012 | BM87: 0.8460683435 | BN87: 0.849434131 | BO87: 0.847403595 | BP87: 0.841095935 | BQ87: 0.8394708849 | BR87: 0.8388801636 | BS87: 0.8371917314
A88: % of Investment Home Loans - Emerging Professional Landlords | B88: 0.2161 | C88: 0.2128 | D88: 0.2137 | E88: 0.2143 | F88: 0.2149 | G88: 0.2124 | H88: 0.2101 | I88: 0.2004 | J88: 0.1972 | K88: 0.1973 | L88: 0.1987 | M88: 0.199 | N88: 0.198 | O88: 0.1985 | P88: 0.1955 | Q88: 0.1958 | R88: 0.1944 | S88: 0.1946 | T88: 0.1936 | U88: 0.1939 | V88: 0.1932 | W88: 0.192 | X88: 0.192 | Y88: 0.1914 | Z88: 0.191 | AA88: 0.1908 | AB88: 0.19 | AC88: 0.1895 | AD88: 0.1889 | AE88: 0.1884 | AF88: 0.1874 | AG88: 0.1856 | AH88: 0.1846762453 | AI88: 0.1849331327 | AJ88: 0.1834982365 | AK88: 0.185170642 | AL88: 0.1838559298 | AM88: 0.1819221313 | AN88: 0.1758083558 | AO88: 0.1757567236 | AP88: 0.1747760959 | AQ88: 0.1741796562 | AR88: 0.1721841831 | AS88: 0.1721294124 | AT88: 0.1734749236 | AU88: 0.1742565185 | AV88: 0.1707932543 | AW88: 0.1698326819 | AX88: 0.1698279167 | AY88: 0.1699793927 | AZ88: 0.1692909038 | BA88: 0.16872847 | BB88: 0.1692312628 | BC88: 0.1667121799 | BD88: 0.1645676004 | BE88: 0.1622108874 | BF88: 0.1619648103 | BG88: 0.1637188863 | BH88: 0.1602102345 | BI88: 0.1561911159 | BJ88: 0.1562427068 | BK88: 0.155801075 | BL88: 0.1570057988 | BM88: 0.1539316565 | BN88: 0.150565869 | BO88: 0.152596405 | BP88: 0.158904065 | BQ88: 0.1605291151 | BR88: 0.1611198364 | BS88: 0.1628082686
A89: Weighted Average Interest Coverage Ratio (calculated at the origination date) | B89: 1.77 | C89: 1.77 | D89: 1.76 | E89: 1.76 | F89: 1.75 | G89: 1.75 | H89: 1.75 | I89: 1.76 | J89: 1.76 | K89: 1.76 | L89: 1.76 | M89: 1.76 | N89: 1.76 | O89: 1.75 | P89: 1.75 | Q89: 1.76 | R89: 1.76 | S89: 1.76 | T89: 1.75 | U89: 1.75 | V89: 1.75 | W89: 1.75 | X89: 1.75 | Y89: 1.75 | Z89: 1.75 | AA89: 1.75 | AB89: 1.75 | AC89: 1.74 | AD89: 1.74 | AE89: 1.74 | AF89: 1.74 | AG89: 1.74 | AH89: 1.739275345 | AI89: 1.729349512 | AJ89: 1.728809715 | AK89: 1.724098601 | AL89: 1.723197991 | AM89: 1.725013396 | AN89: 1.720983737 | AO89: 1.71907408 | AP89: 1.717951372 | AQ89: 1.716585316 | AR89: 1.715880422 | AS89: 1.716917731 | AT89: 1.716701464 | AU89: 1.714945416 | AV89: 1.709578288 | AW89: 1.709895776 | AX89: 1.709382146 | AY89: 1.707006037 | AZ89: 1.70522178 | BA89: 1.701170708 | BB89: 1.705013231 | BC89: 1.70810129 | BD89: 1.706741138 | BE89: 1.707171179 | BF89: 1.706893554 | BG89: 1.696024558 | BH89: 1.698014048 | BI89: 1.700884797 | BJ89: 1.70015821 | BK89: 1.699447513 | BL89: 1.697167335 | BM89: 1.695366157 | BN89: 1.692658244 | BO89: 1.686492363 | BP89: 1.692451984 | BQ89: 1.697672459 | BR89: 1.694064776 | BS89: 1.691948635
A90: PML Lifetime Redemption Rate | B90: 0.1104 | C90: 0.1121 | D90: 0.1141 | E90: 0.109 | F90: 0.1079 | G90: 0.1051 | H90: 0.1117 | I90: 0.1225 | J90: 0.124 | K90: 0.1183 | L90: 0.1099 | M90: 0.104 | N90: 0.0978 | O90: 0.0927 | P90: 0.0889 | Q90: 0.0853 | R90: 0.0824 | S90: 0.0801 | T90: 0.0774 | U90: 0.0745 | V90: 0.0721 | W90: 0.0701 | X90: 0.0679 | Y90: 0.0659 | Z90: 0.0639 | AA90: 0.0624 | AB90: 0.0609 | AC90: 0.0597 | AD90: 0.0583 | AE90: 0.0577 | AF90: 0.0572 | AG90: 0.0563 | AH90: 0.0555 | AI90: 0.0547 | AJ90: 0.054 | AK90: 0.0544 | AL90: 0.0539 | AM90: 0.0539 | AN90: 0.0554 | AO90: 0.0554 | AP90: 0.0551 | AQ90: 0.0547 | AR90: 0.0545 | AS90: 0.0547 | AT90: 0.0547 | AU90: 0.0552 | AV90: 0.0554 | AW90: 0.0553 | AX90: 0.0556 | AY90: 0.0556 | AZ90: 0.0555 | BA90: 0.0555 | BB90: 0.0558 | BC90: 0.0563 | BD90: 0.0565 | BE90: 0.0563 | BF90: 0.0564 | BG90: 0.058 | BH90: 0.0596 | BI90: 0.0607 | BJ90: 0.0614 | BK90: 0.0619 | BL90: 0.0629 | BM90: 0.0637 | BN90: 0.0671 | BO90: 0.0695 | BP90: 0.0713 | BQ90: 0.0746 | BR90: 0.0763 | BS90: 0.0771
A91: Number of Properties in Possession | B91: 0 | C91: 0 | D91: 0 | E91: 0 | F91: 0 | G91: 0 | H91: 0 | I91: 0 | J91: 0 | K91: 0 | L91: 0 | M91: 0 | N91: 0 | O91: 0 | P91: 0 | Q91: 0 | R91: 0 | S91: 0 | T91: 0 | U91: 0 | V91: 0 | W91: 0 | X91: 1 | Y91: 0 | Z91: 0 | AA91: 0 | AB91: 0 | AC91: 0 | AD91: 0 | AE91: 0 | AF91: 0 | AG91: 0 | AH91: 2 | AI91: 3 | AJ91: 1 | AK91: 1 | AL91: 1 | AM91: 0 | AN91: 0 | AO91: 0 | AP91: 0 | AQ91: 0 | AR91: 1 | AS91: 0 | AT91: 0 | AU91: 0 | AV91: 0 | AW91: 0 | AX91: 0 | AY91: 0 | AZ91: 0 | BA91: 0 | BB91: 0 | BC91: 0 | BD91: 0 | BE91: 0 | BF91: 0 | BG91: 0 | BH91: 0 | BI91: 0 | BJ91: 0 | BK91: 0 | BL91: 0 | BM91: 0 | BN91: 0 | BO91: 0 | BP91: 0 | BQ91: 0 | BR91: 0 | BS91: 18
A92: Appointment of a Receiver of Rent | B92: 7 | C92: 9 | D92: 7 | E92: 5 | F92: 8 | G92: 10 | H92: 12 | I92: 48 | J92: 90 | K92: 112 | L92: 134 | M92: 136 | N92: 143 | O92: 138 | P92: 106 | Q92: 100 | R92: 97 | S92: 99 | T92: 92 | U92: 85 | V92: 86 | W92: 95 | X92: 94 | Y92: 91 | Z92: 97 | AA92: 93 | AB92: 89 | AC92: 103 | AD92: 93 | AE92: 89 | AF92: 81 | AG92: 78 | AH92: 76 | AI92: 74 | AJ92: 70 | AK92: 67 | AL92: 66 | AM92: 67 | AN92: 67 | AO92: 66 | AP92: 66 | AQ92: 68 | AR92: 68 | AS92: 67 | AT92: 66 | AU92: 61 | AV92: 60 | AW92: 60 | AX92: 59 | AY92: 58 | AZ92: 61 | BA92: 63 | BB92: 58 | BC92: 58 | BD92: 54 | BE92: 55 | BF92: 53 | BG92: 52 | BH92: 49 | BI92: 48 | BJ92: 51 | BK92: 61 | BL92: 61 | BM92: 57 | BN92: 21 | BO92: 21 | BP92: 27 | BQ92: 28 | BR92: 25 | BS92: 24
A93: PML Quarterly Losses | B93: 0 | C93: 0 | D93: 0 | E93: 17 | F93: 59 | G93: 0 | H93: 51 | I93: 0 | J93: 89 | K93: 12 | L93: 1 | M93: 57 | N93: 71 | O93: 240 | P93: 1 | Q93: 75 | R93: 361 | S93: 460 | T93: 160 | U93: 1 | V93: 113 | W93: 231 | X93: 309 | Y93: 58 | Z93: -27 | AA93: 158 | AB93: 84 | AC93: 9 | AD93: 167 | AE93: 334 | AF93: 823 | AG93: 38 | AH93: 20 | AI93: 209 | AJ93: 230 | AK93: 5 | AL93: 3 | AM93: 200 | AN93: -438 | AO93: 90 | AP93: 79 | AQ93: -65 | AR93: 13 | AS93: 14 | AT93: -3 | AU93: 73 | AV93: -1 | AW93: -5 | AX93: 159 | AY93: 205 | AZ93: 56 | BA93: -1 | BB93: 62 | BC93: -70 | BD93: 857 | BE93: -22 | BF93: 57 | BG93: 117 | BH93: 46 | BI93: 80 | BJ93: 55 | BK93: 0 | BL93: 6 | BM93: 127 | BN93: 4 | BO93: 17 | BP93: 42 | BQ93: 40 | BR93: 159 | BS93: 150
A94: Arrears excluding Receiver of Rent and Possession Cases
A95: Performing Loans | B95: 0.9975 | C95: 0.9972 | D95: 0.9983 | E95: 0.9927 | F95: 0.9943 | G95: 0.9874 | H95: 0.9922 | I95: 0.9908 | J95: 0.9834 | K95: 0.9718 | L95: 0.9753 | M95: 0.9659 | N95: 0.9701 | O95: 0.9714 | P95: 0.9931 | Q95: 0.9949 | R95: 0.9916 | S95: 0.9942 | T95: 0.9947 | U95: 0.9875 | V95: 0.9914 | W95: 0.986 | X95: 0.9836 | Y95: 0.9851 | Z95: 0.9838 | AA95: 0.9853 | AB95: 0.9867 | AC95: 0.9975 | AD95: 0.9974 | AE95: 0.9963 | AF95: 0.9971 | AG95: 0.9964 | AH95: 0.9966788254 | AI95: 0.9988770209 | AJ95: 0.9990325741 | AK95: 0.9994285377 | AL95: 0.9998738577 | AM95: 0.9995311443 | AN95: 0.9987150358 | AO95: 0.9991170891 | AP95: 0.9986957237 | AQ95: 0.9995201495 | AR95: 0.9990027219 | AS95: 0.9999156493 | AT95: 0.999580843 | AU95: 0.9988990813 | AV95: 0.999429394 | AW95: 0.9757153611 | AX95: 0.9981380531 | AY95: 0.9977682632 | AZ95: 0.9735560637 | BA95: 0.9932404795 | BB95: 0.9963973472 | BC95: 0.9986726057 | BD95: 0.9777568696 | BE95: 0.9961996618 | BF95: 0.9957042277 | BG95: 0.990066244 | BH95: 0.9887785952 | BI95: 0.9908383621 | BJ95: 0.9926626207 | BK95: 0.9925161709 | BL95: 0.9910560325 | BM95: 0.9904656952 | BN95: 0.9961778958 | BO95: 0.978247908 | BP95: 0.9742328917 | BQ95: 0.9514218312 | BR95: 0.9516619967 | BS95: 0.9466904019
A96: >1 to 2 months arrears | B96: 0.0003 | C96: 0.0017 | D96: 0.0014 | E96: 0.0072 | F96: 0.0054 | G96: 0.0073 | H96: 0.0031 | I96: 0.0033 | J96: 0.0096 | K96: 0.0141 | L96: 0.0146 | M96: 0.0219 | N96: 0.0224 | O96: 0.0193 | P96: 0.0039 | Q96: 0.0041 | R96: 0.0063 | S96: 0.0042 | T96: 0.0045 | U96: 0.0091 | V96: 0.0075 | W96: 0.0118 | X96: 0.015 | Y96: 0.013 | Z96: 0.0141 | AA96: 0.013 | AB96: 0.0107 | AC96: 0 | AD96: 0.0002 | AE96: 0.0021 | AF96: 0.0012 | AG96: 0.002 | AH96: 0.001902200523 | AI96: 0.001122979122 | AJ96: 0.0009674258921 | AK96: 0.0005714623069 | AL96: 0.000126142312 | AM96: 0.0004688556642 | AN96: 0.00120978431 | AO96: 0.0006473323528 | AP96: 0.001001139331 | AQ96: 0.0004021858428 | AR96: 0.0008198472109 | AS96: 0 | AT96: 0.0004191570032 | AU96: 0 | AV96: 0.0005706060389 | AW96: 0.004552071675 | AX96: 0.0008574953879 | AY96: 0.0002020340735 | AZ96: 0.009445630244 | BA96: 0.00161530168 | BB96: 0.002271455983 | BC96: 0.0009719027881 | BD96: 0.01749640261 | BE96: 0.002125407339 | BF96: 0.002655280129 | BG96: 0.008293028019 | BH96: 0.00434710136 | BI96: 0.001482727152 | BJ96: 0 | BK96: 0.0003504343095 | BL96: 0.008461860579 | BM96: 0.008196196496 | BN96: 0.00353114041 | BO96: 0.009741691852 | BP96: 0.006868065724 | BQ96: 0.0355287831 | BR96: 0.006949235643 | BS96: 0.004952811721
A97: >2 to 3 months arrears | B97: 0.001 | C97: 0.001 | D97: 0.0003 | E97: 0.0001 | F97: 0 | G97: 0.0036 | H97: 0.0045 | I97: 0.0057 | J97: 0.0058 | K97: 0.0085 | L97: 0.0074 | M97: 0.0085 | N97: 0.0035 | O97: 0.0024 | P97: 0.0017 | Q97: 0.0003 | R97: 0.0009 | S97: 0.0005 | T97: 0.0001 | U97: 0.0021 | V97: 0.0006 | W97: 0.0017 | X97: 0.0005 | Y97: 0.0016 | Z97: 0.0006 | AA97: 0.0004 | AB97: 0.0013 | AC97: 0 | AD97: 0 | AE97: 0 | AF97: 0 | AG97: 0 | AH97: 0.000250914803 | AI97: 0 | AJ97: 0 | AK97: 0 | AL97: 0 | AM97: 0 | AN97: 0 | AO97: 0 | AP97: 0 | AQ97: 0 | AR97: 0 | AS97: 0 | AT97: 0 | AU97: 0.001100918718 | AV97: 0 | AW97: 0.01857252641 | AX97: 0.001004451549 | AY97: 0.0009631163694 | AZ97: 0.008697440966 | BA97: 0.0003800206794 | BB97: 0.0002120659371 | BC97: 0.0003554915143 | BD97: 0.003665153584 | BE97: 0 | BF97: 0.001092596944 | BG97: 0.001070870323 | BH97: 0 | BI97: 0.0001738160493 | BJ97: 0.00733737926 | BK97: 0 | BL97: 0 | BM97: 0.001062772677 | BN97: 0 | BO97: 0.008105056617 | BP97: 0.01198052079 | BQ97: 0.01000310816 | BR97: 0.03018504349 | BS97: 0.01663504763
A98: >3 months arrears | B98: 0.0012 | C98: 0.0001 | D98: 0 | E98: 0 | F98: 0.0003 | G98: 0.0017 | H98: 0.0002 | I98: 0.0002 | J98: 0.0012 | K98: 0.0056 | L98: 0.0027 | M98: 0.0037 | N98: 0.004 | O98: 0.0069 | P98: 0.0013 | Q98: 0.0007 | R98: 0.0012 | S98: 0.0011 | T98: 0.0007 | U98: 0.0013 | V98: 0.0005 | W98: 0.0005 | X98: 0.0009 | Y98: 0.0003 | Z98: 0.0015 | AA98: 0.0013 | AB98: 0.0013 | AC98: 0.0025 | AD98: 0.0024 | AE98: 0.0016 | AF98: 0.0017 | AG98: 0.0016 | AH98: 0.001168059271 | AI98: 0 | AJ98: 0 | AK98: 0 | AL98: 0 | AM98: 0 | AN98: 7.517993102e-05 | AO98: 0.0002355785231 | AP98: 0.0003031369841 | AQ98: 7.766469917e-05 | AR98: 0.0001774308546 | AS98: 8.43507365e-05 | AT98: 0 | AU98: 0 | AV98: 0 | AW98: 0.001160040866 | AX98: 0 | AY98: 0.001066586327 | AZ98: 0.008300865076 | BA98: 0.004764198119 | BB98: 0.00111913085 | BC98: 0 | BD98: 0.001081574214 | BE98: 0.001674930845 | BF98: 0.0005478952418 | BG98: 0.0005698576698 | BH98: 0.006874303462 | BI98: 0.007505094717 | BJ98: 0 | BK98: 0.007133394783 | BL98: 0.0004821068797 | BM98: 0.0002753356131 | BN98: 0.0002909637547 | BO98: 0.003905343547 | BP98: 0.006918521823 | BQ98: 0.003046277538 | BR98: 0.01120372416 | BS98: 0.03172173873
A99: Total | B99: =SUM(B95:B98) -> 1 | C99: 1 | D99: 1 | E99: 1 | F99: 1 | G99: 1 | H99: 1 | I99: 1 | J99: 1 | K99: 1 | L99: 1 | M99: 1 | N99: 1 | O99: 1 | P99: 1 | Q99: 1 | R99: 1 | S99: 1 | T99: 1 | U99: 1 | V99: 1 | W99: =SUM(W95:W98) -> 1 | X99: 1 | Y99: 1 | Z99: 1 | AA99: 1 | AB99: 1 | AC99: =SUM(AC95:AC98) -> 1 | AD99: 1 | AE99: 1 | AF99: 1 | AG99: 1 | AH99: 1 | AI99: 1 | AJ99: 1 | AK99: 1 | AL99: 1 | AM99: 1 | AN99: 1 | AO99: 1 | AP99: 1 | AQ99: 1 | AR99: 1 | AS99: 1 | AT99: 1 | AU99: 1 | AV99: 1 | AW99: 1 | AX99: 1 | AY99: 1 | AZ99: 1 | BA99: 1 | BB99: 1 | BC99: 1 | BD99: 1 | BE99: 1 | BF99: 1 | BG99: 1 | BH99: 1 | BI99: 1 | BJ99: 1 | BK99: 1 | BL99: 1 | BM99: 1 | BN99: 1 | BO99: 1 | BP99: 1 | BQ99: 1 | BR99: 1 | BS99: 1
A101: Underlying Assets - Mortgage Trust Originated Assets | B101: 2006-10-31 | C101: 2007-01-31 | D101: 2007-04-30 | E101: 2007-07-31 | F101: 2007-10-31 | G101: 2008-01-31 | H101: 2008-04-30 | I101: 2008-07-31 | J101: 2008-10-31 | K101: 2009-01-30 | L101: 2009-04-30 | M101: 2009-07-31 | N101: 2009-10-30 | O101: 2010-01-29 | P101: 2010-04-30 | Q101: 2010-07-30 | R101: 2010-10-29 | S101: 2011-01-31 | T101: 2011-04-28 | U101: 2011-07-29 | V101: 2011-10-31 | W101: 2012-01-31 | X101: 2012-04-30 | Y101: 2012-07-31 | Z101: 2012-10-31 | AA101: 2013-01-31 | AB101: 2013-04-30 | AC101: 2013-07-31 | AD101: 2013-10-31 | AE101: 2014-01-31 | AF101: 2014-04-30 | AG101: 2014-07-31 | AH101: 2014-10-31 | AI101: 2015-01-30 | AJ101: 2015-04-30 | AK101: 2015-07-31 | AL101: =+AL70 -> 2015-10-30 | AM101: 2016-01-29 | AN101: 2016-04-29 | AO101: 2016-07-29 | AP101: 2016-10-31 | AQ101: 2017-01-31 | AR101: =+AR70 -> 2017-04-28 | AS101: 2017-07-31 | AT101: =+AT70 -> 2017-10-31 | AU101: 2018-01-31 | AV101: =+AV70 -> 2018-04-30 | AW101: 2018-07-31 | AX101: =+AX70 -> 2018-10-31 | AY101: 2019-01-31 | AZ101: =+AZ70 -> 2019-04-30 | BA101: 2019-07-31 | BB101: =+BB70 -> 2019-10-31 | BC101: 2020-01-31 | BD101: =+BD70 -> 2020-04-30 | BE101: 2020-07-31 | BF101: =+BF70 -> 2020-10-30 | BG101: 2021-01-29 | BH101: =+BH70 -> 2021-04-30 | BI101: 2021-07-30 | BJ101: =+BJ70 -> 2021-10-29 | BK101: 2022-01-31 | BL101: =+BL70 -> 2022-04-29 | BM101: 2022-07-29 | BN101: =+BN70 -> 2022-10-31 | BO101: 2023-01-31 | BP101: =+BP70 -> 2023-04-28 | BQ101: 2023-07-31 | BR101: =+BR70 -> 2023-10-31 | BS101: 2024-01-31
A102: Weighted Average LTV | B102: 0.8075 | C102: 0.808 | D102: 0.808 | E102: 0.8077 | F102: 0.8077 | G102: 0.8076 | H102: 0.8092 | I102: 0.8125 | J102: 0.8131 | K102: 0.8131 | L102: 0.8127 | M102: 0.8125 | N102: 0.8124 | O102: 0.8119 | P102: 0.8115 | Q102: 0.8115 | R102: 0.8113 | S102: 0.8109 | T102: 0.8108 | U102: 0.8107 | V102: 0.8103 | W102: 0.8105 | X102: 0.81 | Y102: 0.8098 | Z102: 0.8092 | AA102: 0.8086 | AB102: 0.8085 | AC102: 0.8085 | AD102: 0.808 | AE102: 0.8076 | AF102: 0.8069 | AG102: 0.8061 | AH102: 0.805915646 | AI102: 0.8055850211 | AJ102: 0.8050518774 | AK102: 0.8049086464 | AL102: 0.8042852577 | AM102: 0.8040924747 | AN102: 0.8038256981 | AO102: 0.8033482754 | AP102: 0.8021024695 | AQ102: 0.802187898 | AR102: 0.801438653 | AS102: 0.8009447645 | AT102: 0.8005799501 | AU102: 0.8010014805 | AV102: 0.8006145943 | AW102: 0.8006367678 | AX102: 0.8001322771 | AY102: 0.79818027 | AZ102: 0.7973608974 | BA102: 0.7971652911 | BB102: 0.7972004986 | BC102: 0.796337739 | BD102: 0.7952670783 | BE102: 0.7947920493 | BF102: 0.7949208135 | BG102: 0.7954466401 | BH102: 0.7942959133 | BI102: 0.793876494 | BJ102: 0.7932203159 | BK102: 0.791805937 | BL102: 0.7909750748 | BM102: 0.7902360431 | BN102: 0.7890963896 | BO102: 0.7866870486 | BP102: 0.786986038 | BQ102: 0.7839753248 | BR102: 0.7829426449 | BS102: 0.7820699756
A103: Weighted Average Nationwide Indexed LTV | B103: 0.7793 | C103: 0.7626 | D103: 0.7462 | E103: 0.7222 | F103: 0.7132 | G103: 0.7139 | H103: 0.735 | I103: 0.7652 | J103: 0.8338 | K103: 0.8561 | L103: 0.8986 | M103: 0.8665 | N103: 0.8353 | O103: 0.8237 | P103: 0.8155 | Q103: 0.7984 | R103: 0.7909 | S103: 0.8136 | T103: 0.8107 | U103: 0.7958 | V103: 0.7975 | W103: 0.8037 | X103: 0.8154 | Y103: 0.804 | Z103: 0.8025 | AA103: 0.808 | AB103: 0.8058 | AC103: 0.7913 | AD103: 0.7694 | AE103: 0.7523 | AF103: 0.7391 | AG103: 0.704 | AH103: 0.6957697657 | AI103: 0.6954737237 | AJ103: 0.696618677 | AK103: 0.6762555646 | AL103: 0.670108541 | AM103: 0.6680483826 | AN103: 0.6631006858 | AO103: 0.6424114775 | AP103: 0.6367066224 | AQ103: 0.6369743124 | AR103: 0.6317936715 | AS103: 0.6207575377 | AT103: 0.6162367167 | AU103: 0.6184669995 | AV103: 0.6157182031 | AW103: 0.6084179171 | AX103: 0.6045593885 | AY103: 0.6086647722 | AZ103: 0.6151944465 | BA103: 0.6060105243 | BB103: 0.6044506217 | BC103: 0.6090768051 | BD103: 0.6023038238 | BE103: 0.5954169818 | BF103: 0.5809404649 | BG103: 0.5691698216 | BH103: 0.5644209473 | BI103: 0.5383296214 | BJ103: 0.5279040417 | BK103: 0.5144354283 | BL103: 0.5008450488 | BM103: 0.4815633996 | BN103: 0.4785502385 | BO103: 0.491908056 | BP103: 0.5048371 | BQ103: 0.4960289071 | BR103: 0.5010498447 | BS103: 0.5071325146
A104: Weighted Average Halifax Indexed LTV | B104: 0.7815 | C104: 0.7515 | D104: 0.7286 | E104: 0.7084 | F104: 0.6997 | G104: 0.7005 | H104: 0.733 | I104: 0.7576 | J104: 0.8144 | K104: 0.8724 | L104: 0.903 | M104: 0.8984 | N104: 0.8716 | O104: 0.8515 | P104: 0.8435 | Q104: 0.8309 | R104: 0.8426 | S104: 0.8519 | T104: 0.8649 | U104: 0.8593 | V104: 0.8537 | W104: 0.8536 | X104: 0.8566 | Y104: 0.8568 | Z104: 0.8569 | AA104: 0.856 | AB104: 0.8407 | AC104: 0.8201 | AD104: 0.8031 | AE104: 0.7963 | AF104: 0.7786 | AG104: 0.7484 | AH104: 0.7227035839 | AI104: 0.7287106053 | AJ104: 0.7136536118 | AK104: 0.6805929997 | AL104: 0.670908882 | AM104: 0.6707325319 | AN104: 0.6458738106 | AO104: 0.6270582398 | AP104: n/a | AQ104: n/a | AR104: n/a | AS104: n/a | AT104: n/a | AU104: n/a | AV104: n/a | AW104: n/a | AX104: n/a | AY104: n/a | AZ104: n/a | BA104: n/a | BB104: n/a | BC104: n/a | BD104: n/a | BE104: n/a | BF104: n/a | BG104: n/a | BH104: n/a | BI104: n/a | BJ104: n/a | BK104: n/a | BL104: n/a | BM104: n/a | BN104: n/a | BO104: n/a | BP104: n/a | BQ104: n/a | BR104: n/a | BS104: n/a
A105: % of Variable Rate Mortgages | B105: 0.0006 | C105: 0.0014 | D105: 0.001 | E105: 0.0016 | F105: 0.0021 | G105: 0.0021 | H105: 0.0024 | I105: 0.0023 | J105: 0.0025 | K105: 0.0025 | L105: 0.0024 | M105: 0.0024 | N105: 0.0024 | O105: 0.0024 | P105: 0.0022 | Q105: 0.0022 | R105: 0.0022 | S105: 0.0022 | T105: 0.0022 | U105: 0.0023 | V105: 0.0023 | W105: 0.0023 | X105: 0.0023 | Y105: 0.002 | Z105: 0.002 | AA105: 0.002 | AB105: 0.002 | AC105: 0.002 | AD105: 0.002 | AE105: 0.0021 | AF105: 0.0021 | AG105: 0.0014 | AH105: 0.001436059774 | AI105: 0.001455195034 | AJ105: 0.001471328773 | AK105: 0.001498973211 | AL105: 0.001528068547 | AM105: 0.001552204276 | AN105: 0.001597358774 | AO105: 0.001637363593 | AP105: 0.001670342723 | AQ105: 0.0007673895916 | AR105: 0.0007775240121 | AS105: 0.0007903556686 | AT105: 0.0008031184266 | AU105: 0.0008210188882 | AV105: 0.0008357386907 | AW105: 0.0008515079052 | AX105: 0.0008689102745 | AY105: 0.0008859985672 | AZ105: 0.0009133209061 | BA105: 0.0002821701914 | BB105: 0.0002873158442 | BC105: 0.0002921889594 | BD105: 0.0002963739892 | BE105: 0.0003011891426 | BF105: 0.0003077002876 | BG105: 0.0003161475571 | BH105: 0.0003376922165 | BI105: 0.0003551926799 | BJ105: 0.0003661310691 | BK105: 0.0003766271796 | BL105: 0.0003943124505 | BM105: 0.0004237550005 | BN105: 0.0004611514858 | BO105: 0.0004904318143 | BP105: 0.0005117700682 | BQ105: 0.0005560612819 | BR105: 0.0005967019914 | BS105: 0.0006240382832
A106: % of Fixed Rate Mortgages | B106: 0.964 | C106: 0.9597 | D106: 0.9452 | E106: 0.9266 | F106: 0.9312 | G106: 0.9321 | H106: 0.8698 | I106: 0.6816 | J106: 0.701 | K106: 0.7024 | L106: 0.4101 | M106: 0.2042 | N106: 0.204 | O106: 0.2061 | P106: 0.1573 | Q106: 0.0784 | R106: 0.0788 | S106: 0.0776 | T106: 0.0379 | U106: 0.0063 | V106: 0.0047 | W106: 0.0041 | X106: 0.003 | Y106: 0.0025 | Z106: 0.0026 | AA106: 0.0026 | AB106: 0.0026 | AC106: 0 | AD106: 0 | AE106: 0 | AF106: 0 | AG106: 0 | AH106: 0 | AI106: 0 | AJ106: 0 | AK106: 0 | AL106: 0 | AM106: 0 | AN106: 0 | AO106: 0 | AP106: 0 | AQ106: 0 | AR106: 0 | AS106: 0 | AT106: 0 | AU106: 0 | AV106: 0 | AW106: 0 | AX106: 0 | AY106: 0 | AZ106: 0 | BA106: 0 | BB106: 0 | BC106: 0 | BD106: 0 | BE106: 0 | BF106: 0 | BG106: 0 | BH106: 0 | BI106: 0 | BJ106: 0 | BK106: 0 | BL106: 0 | BM106: 0 | BN106: 0 | BO106: 0 | BP106: 0 | BQ106: 0 | BR106: 0 | BS106: 0
A107: % of Base Rate Mortgages | B107: 0 | C107: 0 | D107: 0 | E107: 0 | F107: 0 | G107: 0 | H107: 0 | I107: 0 | J107: 0 | K107: 0 | L107: 0 | M107: 0 | N107: 0 | O107: 0 | P107: 0 | Q107: 0 | R107: 0 | S107: 0 | T107: 0 | U107: 0 | V107: 0 | W107: 0 | X107: 0 | Y107: 0 | Z107: 0 | AA107: 0 | AB107: 0 | AC107: 0 | AD107: 0 | AE107: 0 | AF107: 0 | AG107: 0 | AH107: 0 | AI107: 0 | AJ107: 0 | AK107: 0 | AL107: 0 | AM107: 0 | AN107: 0 | AO107: 0 | AP107: 0 | AQ107: 0 | AR107: 0 | AS107: 0 | AT107: 0 | AU107: 0 | AV107: 0 | AW107: 0 | AX107: 0 | AY107: 0 | AZ107: 0 | BA107: 0 | BB107: 0 | BC107: 0 | BD107: 0 | BE107: 0 | BF107: 0 | BG107: 0 | BH107: 0 | BI107: 0 | BJ107: 0 | BK107: 0 | BL107: 0 | BM107: 0 | BN107: 0 | BO107: 0 | BP107: 0 | BQ107: 0 | BR107: 0 | BS107: 0
A108: % of Term SONIA Linked Mortgages - Libor linked prior to 1st June 2021 | B108: 0.0355 | C108: 0.039 | D108: 0.0537 | E108: 0.0718 | F108: 0.0667 | G108: 0.0657 | H108: 0.1278 | I108: 0.3161 | J108: 0.2965 | K108: 0.2951 | L108: 0.5875 | M108: 0.7934 | N108: 0.7936 | O108: 0.7914 | P108: 0.8405 | Q108: 0.9194 | R108: 0.9189 | S108: 0.9202 | T108: 0.9599 | U108: 0.9914 | V108: 0.9931 | W108: 0.9936 | X108: 0.9947 | Y108: 0.9955 | Z108: 0.9955 | AA108: 0.9954 | AB108: 0.9954 | AC108: 0.998 | AD108: 0.998 | AE108: 0.9979 | AF108: 0.9979 | AG108: 0.9986 | AH108: 0.9985639402 | AI108: 0.998544805 | AJ108: 0.9985286712 | AK108: 0.9985010268 | AL108: 0.9984719315 | AM108: 0.9984477957 | AN108: 0.9984026412 | AO108: 0.9983626364 | AP108: 0.9983296573 | AQ108: 0.9992326104 | AR108: 0.999222476 | AS108: 0.9992096443 | AT108: 0.9991968816 | AU108: 0.9991789811 | AV108: 0.9991642613 | AW108: 0.9991484921 | AX108: 0.9991310897 | AY108: 0.9991140014 | AZ108: 0.9990866791 | BA108: 0.9997178298 | BB108: 0.9997126842 | BC108: 0.999707811 | BD108: 0.999703626 | BE108: 0.9996988109 | BF108: 0.9996922997 | BG108: 0.9996838524 | BH108: 0.9996623078 | BI108: 0.9996448073 | BJ108: 0.9996338689 | BK108: 0.9996233728 | BL108: 0.9996056875 | BM108: 0.999576245 | BN108: 0.9995388485 | BO108: 0.9995095682 | BP108: 0.9994882299 | BQ108: 0.9994439387 | BR108: 0.999403298 | BS108: 0.9993759617
A109: Weighted Average Loan Size | B109: 131195.77 | C109: 131140.96 | D109: 130991.22 | E109: 131128.65 | F109: 131000.68 | G109: 130849.32 | H109: 129188.55 | I109: 126522.02 | J109: 125681.14 | K109: 125398.41 | L109: 125188.47 | M109: 125137.98 | N109: 124845.18 | O109: 124686.68 | P109: 124578.23 | Q109: 124457.15 | R109: 124391.31 | S109: 124183.73 | T109: 124147.54 | U109: 124009 | V109: 123934.69 | W109: 123708.91 | X109: 123591.68 | Y109: 123492.36 | Z109: 123238.16 | AA109: 122952.37 | AB109: 122661.7 | AC109: 122539.38 | AD109: 122258.63 | AE109: 121954.04 | AF109: 121566.76 | AG109: 121491.7 | AH109: 121329.2659 | AI109: 121219.4789 | AJ109: 121206.1823 | AK109: 120817.9472 | AL109: 120192.1533 | AM109: 119920.9007 | AN109: 119463.7756 | AO109: 119092.686 | AP109: 118829.6331 | AQ109: 118776.1772 | AR109: 118650.5645 | AS109: 118535.5677 | AT109: 118545.5585 | AU109: 118097.2072 | AV109: 118080.937 | AW109: 117993.0924 | AX109: 117997.9951 | AY109: 117423.0967 | AZ109: 116811.3835 | BA109: 116588.7426 | BB109: 116677.5283 | BC109: 116503.5018 | BD109: 116399.2438 | BE109: 116293.4806 | BF109: 116072.3948 | BG109: 115634.0547 | BH109: 114902.877 | BI109: 115069.3423 | BJ109: 114669.1694 | BK109: 114671.8181 | BL109: 114329.0637 | BM109: 113693.7573 | BN109: 113512.3639 | BO109: 112760.698 | BP109: 112599.4405 | BQ109: 110688.2309 | BR109: 110031.0467 | BS109: 109522.0594
A110: Weighted Average Interest Rate | B110: 0.04859 | C110: 0.04877 | D110: 0.04922 | E110: 0.0499 | F110: 0.05037 | G110: 0.05026 | H110: 0.05153 | I110: 0.0577 | J110: 0.05672 | K110: 0.05105 | L110: 0.04326 | M110: 0.03515 | N110: 0.03043 | O110: 0.02994 | P110: 0.02878 | Q110: 0.02679 | R110: 0.02691 | S110: 0.02702 | T110: 0.02689 | U110: 0.02632 | V110: 0.02691 | W110: 0.0284 | X110: 0.02856 | Y110: 0.02792 | Z110: 0.02484 | AA110: 0.02325 | AB110: 0.0231 | AC110: 0.02302 | AD110: 0.02312 | AE110: 0.02319 | AF110: 0.02319 | AG110: 0.02329 | AH110: 0.02358071632 | AI110: 0.0235138122 | AJ110: 0.02361398328 | AK110: 0.02366816887 | AL110: 0.02384393109 | AM110: 0.02371707022 | AN110: 0.02394315646 | AO110: 0.02410487284 | AP110: 0.02209558061 | AQ110: 0.02207736647 | AR110: 0.02177532238 | AS110: 0.02119505453 | AT110: 0.02104479171 | AU110: 0.02345917763 | AV110: 0.02408189836 | AW110: 0.02449760313 | AX110: 0.02633757612 | AY110: 0.0272923095 | AZ110: 0.02685048274 | BA110: 0.02631692194 | BB110: 0.02601698454 | BC110: 0.02624043721 | BD110: 0.02438226301 | BE110: 0.02049315007 | BF110: 0.01897571461 | BG110: 0.01878765824 | BH110: 0.01897460576 | BI110: 0.01870438068 | BJ110: 0.01871283634 | BK110: 0.01923020078 | BL110: 0.02559916363 | BM110: 0.03105819147 | BN110: 0.04266779883 | BO110: 0.05370650988 | BP110: 0.06018446663 | BQ110: 0.06559265947 | BR110: 0.07238559638 | BS110: 0.0702178239
A111: Weighted Average Maturity Date (years) | B111: 21.39 | C111: 21.14 | D111: 20.9 | E111: 20.64 | F111: 20.39 | G111: 20.14 | H111: 19.89 | I111: 19.62 | J111: 19.34 | K111: 19.09 | L111: 18.84 | M111: 18.58 | N111: 18.34 | O111: 18.1 | P111: 17.84 | Q111: 17.6 | R111: 17.35 | S111: 17.1 | T111: 16.86 | U111: 16.61 | V111: 16.37 | W111: 16.12 | X111: 15.87 | Y111: 15.62 | Z111: 15.37 | AA111: 15.13 | AB111: 14.87 | AC111: 14.63 | AD111: 14.37 | AE111: 14.13 | AF111: 13.89 | AG111: 13.65 | AH111: 13.3954355 | AI111: 13.16023115 | AJ111: 12.91309387 | AK111: 12.6871257 | AL111: 12.42986795 | AM111: 12.22455201 | AN111: 12.11675677 | AO111: 11.97963209 | AP111: 11.74203229 | AQ111: 11.52963952 | AR111: 11.29707832 | AS111: 11.04472131 | AT111: 10.80339296 | AU111: 10.56306595 | AV111: 10.3726981 | AW111: 10.14447909 | AX111: 9.915934486 | AY111: 9.678420046 | AZ111: 9.51901546 | BA111: 9.300228786 | BB111: 9.054799659 | BC111: 8.803574942 | BD111: 8.567790169 | BE111: 8.355640036 | BF111: 8.135207267 | BG111: 7.954150927 | BH111: 7.992947578 | BI111: 7.972539772 | BJ111: 7.777406449 | BK111: 7.555587291 | BL111: 7.378811092 | BM111: 7.207813645 | BN111: 6.982039999 | BO111: 6.717744293 | BP111: 6.53847452 | BQ111: 6.33783549 | BR111: 6.12029367 | BS111: 5.888063522
A112: Weighted Average Seasoning (months) | B112: 5.77 | C112: 8.79 | D112: 11.71 | E112: 14.73 | F112: 17.76 | G112: 20.78 | H112: 23.63 | I112: 26.71 | J112: 29.75 | K112: 32.78 | L112: 35.7 | M112: 38.73 | N112: 41.76 | O112: 44.79 | P112: 47.71 | Q112: 50.74 | R112: 53.76 | S112: 56.79 | T112: 59.71 | U112: 62.74 | V112: 65.77 | W112: 68.79 | X112: 71.75 | Y112: 74.77 | Z112: 77.79 | AA112: 80.81 | AB112: 83.74 | AC112: 86.76 | AD112: 89.8 | AE112: 92.82 | AF112: 95.75 | AG112: 98.77 | AH112: 101.793729 | AI112: 104.8144383 | AJ112: 107.7397321 | AK112: 110.7613864 | AL112: 113.7849452 | AM112: 116.8130692 | AN112: 119.7674026 | AO112: 122.7988203 | AP112: 125.7394695 | AQ112: 128.7642473 | AR112: 131.6851121 | AS112: 134.70621 | AT112: 137.7293177 | AU112: 140.754373 | AV112: 143.6868556 | AW112: 146.7062234 | AX112: 149.7365796 | AY112: 152.7558697 | AZ112: 155.6723364 | BA112: 158.6943403 | BB112: 161.7184757 | BC112: 164.7393193 | BD112: 167.6984171 | BE112: 170.7165901 | BF112: 173.7403609 | BG112: 176.7541171 | BH112: 179.6518662 | BI112: 182.6957931 | BJ112: 185.7296726 | BK112: 188.7508091 | BL112: 191.6596422 | BM112: 194.6895665 | BN112: 197.6938037 | BO112: 200.7166287 | BP112: 203.6361937 | BQ112: 206.6810792 | BR112: 209.7275863 | BS112: 212.7485407
A113: % of Interest Only Mortgages | B113: 0.944 | C113: 0.9446 | D113: 0.9463 | E113: 0.9491 | F113: 0.9496 | G113: 0.951 | H113: 0.9553 | I113: 0.9582 | J113: 0.9595 | K113: 0.9602 | L113: 0.9608 | M113: 0.9607 | N113: 0.9619 | O113: 0.9614 | P113: 0.9613 | Q113: 0.9609 | R113: 0.9624 | S113: 0.9633 | T113: 0.9646 | U113: 0.9655 | V113: 0.9691 | W113: 0.9668 | X113: 0.9673 | Y113: 0.9678 | Z113: 0.9679 | AA113: 0.9975 | AB113: 0.9684 | AC113: 0.9693 | AD113: 0.9698 | AE113: 0.9701 | AF113: 0.9709 | AG113: 0.9713 | AH113: 0.9718512017 | AI113: 0.9723907432 | AJ113: 0.9726953829 | AK113: 0.9728075421 | AL113: 0.9725653777 | AM113: 0.9738776606 | AN113: 0.9746672522 | AO113: 0.9748509158 | AP113: 0.9746029261 | AQ113: 0.975459315 | AR113: 0.9758897373 | AS113: 0.9761613364 | AT113: 0.9766681718 | AU113: 0.977809736 | AV113: 0.9772841335 | AW113: 0.978751192 | AX113: 0.9796882623 | AY113: 0.979573381 | AZ113: 0.979430123 | BA113: 0.9793796986 | BB113: 0.9794159499 | BC113: 0.9800257356 | BD113: 0.9806003983 | BE113: 0.9807265343 | BF113: 0.9817897374 | BG113: 0.9820618046 | BH113: 0.9815685243 | BI113: 0.9816936445 | BJ113: 0.9820996635 | BK113: 0.9829397967 | BL113: 0.9837624503 | BM113: 0.9832285675 | BN113: 0.983779141 | BO113: 0.9844975848 | BP113: 0.9851384295 | BQ113: 0.9863091568 | BR113: 0.9870487835 | BS113: 0.9874580653
A114: % of Repayment Mortgages | B114: 0.056 | C114: 0.0554 | D114: 0.0537 | E114: 0.0509 | F114: 0.0504 | G114: 0.049 | H114: 0.0447 | I114: 0.0418 | J114: 0.0405 | K114: 0.0398 | L114: 0.0392 | M114: 0.0393 | N114: 0.0381 | O114: 0.0386 | P114: 0.0387 | Q114: 0.0391 | R114: 0.0376 | S114: 0.0367 | T114: 0.0354 | U114: 0.0345 | V114: 0.0339 | W114: 0.0332 | X114: 0.0327 | Y114: 0.0322 | Z114: 0.0321 | AA114: 0.0325 | AB114: 0.0316 | AC114: 0.0307 | AD114: 0.0302 | AE114: 0.0299 | AF114: 0.0291 | AG114: 0.0287 | AH114: 0.02814879833 | AI114: 0.02760925683 | AJ114: 0.02730461706 | AK114: 0.02719245793 | AL114: 0.02743462235 | AM114: 0.02612233936 | AN114: 0.02533274775 | AO114: 0.02514908425 | AP114: 0.02539707394 | AQ114: 0.02454068497 | AR114: 0.02411026274 | AS114: 0.02383866362 | AT114: 0.0233318282 | AU114: 0.02219026399 | AV114: 0.02271586651 | AW114: 0.021248808 | AX114: 0.02031173774 | AY114: 0.020426619 | AZ114: 0.02056987704 | BA114: 0.02062030139 | BB114: 0.0205840501 | BC114: 0.01997426445 | BD114: 0.01939960168 | BE114: 0.01927346566 | BF114: 0.01821026256 | BG114: 0.01793819538 | BH114: 0.01843147573 | BI114: 0.01830635547 | BJ114: 0.01790033646 | BK114: 0.01706020328 | BL114: 0.01623754973 | BM114: 0.01677143247 | BN114: 0.016220859 | BO114: 0.01550241524 | BP114: 0.01486157046 | BQ114: 0.01369084316 | BR114: 0.01295121647 | BS114: 0.01254193469
A115: % of Mortgages in London | B115: 0.2144 | C115: 0.214 | D115: 0.2124 | E115: 0.2125 | F115: 0.2105 | G115: 0.2093 | H115: 0.195 | I115: 0.1676 | J115: 0.1597 | K115: 0.1588 | L115: 0.1594 | M115: 0.1589 | N115: 0.157 | O115: 0.1557 | P115: 0.1553 | Q115: 0.1551 | R115: 0.1541 | S115: 0.153 | T115: 0.152 | U115: 0.1522 | V115: 0.1512 | W115: 0.1487 | X115: 0.1491 | Y115: 0.1483 | Z115: 0.1468 | AA115: 0.145 | AB115: 0.1445 | AC115: 0.1437 | AD115: 0.143 | AE115: 0.1417 | AF115: 0.1393 | AG115: 0.1393 | AH115: 0.1386884442 | AI115: 0.1395042373 | AJ115: 0.1394104518 | AK115: 0.1365679707 | AL115: 0.1337901526 | AM115: 0.1326533415 | AN115: 0.1308424662 | AO115: 0.1302257625 | AP115: 0.1307844112 | AQ115: 0.1325548816 | AR115: 0.1326541896 | AS115: 0.133032966 | AT115: 0.133763219 | AU115: 0.1297925994 | AV115: 0.1293980408 | AW115: 0.1293654732 | AX115: 0.1296408181 | AY115: 0.1290801103 | AZ115: 0.123019272 | BA115: 0.1216458221 | BB115: 0.121902781 | BC115: 0.1227604309 | BD115: 0.1229538164 | BE115: 0.1239634144 | BF115: 0.123562868 | BG115: 0.1213720623 | BH115: 0.1199293228 | BI115: 0.1184783247 | BJ115: 0.1206327814 | BK115: 0.122289466 | BL115: 0.1268253681 | BM115: 0.1276250763 | BN115: 0.1293377983 | BO115: 0.1269969017 | BP115: 0.1282799197 | BQ115: 0.1295361071 | BR115: 0.1313841982 | BS115: 0.1347759024
A116: % of Mortgages in the South East | B116: 0.3676 | C116: 0.3666 | D116: 0.3669 | E116: 0.3672 | F116: 0.3689 | G116: 0.3689 | H116: 0.3641 | I116: 0.3607 | J116: 0.3588 | K116: 0.3581 | L116: 0.3558 | M116: 0.3568 | N116: 0.3573 | O116: 0.3574 | P116: 0.3568 | Q116: 0.3578 | R116: 0.3592 | S116: 0.3589 | T116: 0.3597 | U116: 0.3585 | V116: 0.3584 | W116: 0.3596 | X116: 0.3592 | Y116: 0.3603 | Z116: 0.3609 | AA116: 0.3604 | AB116: 0.3606 | AC116: 0.3612 | AD116: 0.3611 | AE116: 0.3607 | AF116: 0.3594 | AG116: 0.3571 | AH116: 0.3571635368 | AI116: 0.3543361744 | AJ116: 0.3522801221 | AK116: 0.3502494244 | AL116: 0.3489389382 | AM116: 0.3480987633 | AN116: 0.3437806454 | AO116: 0.3439570355 | AP116: 0.3428664794 | AQ116: 0.3379422131 | AR116: 0.3381204525 | AS116: 0.3380124254 | AT116: 0.3363998308 | AU116: 0.3365902452 | AV116: 0.3355980056 | AW116: 0.3352711046 | AX116: 0.3348681682 | AY116: 0.3337559414 | AZ116: 0.335282704 | BA116: 0.3337328827 | BB116: 0.3326352654 | BC116: 0.3340951578 | BD116: 0.331300878 | BE116: 0.330906682 | BF116: 0.3292253066 | BG116: 0.3302578701 | BH116: 0.3322921736 | BI116: 0.3337387661 | BJ116: 0.3327893654 | BK116: 0.3319439582 | BL116: 0.33058709 | BM116: 0.3292442941 | BN116: 0.3261634932 | BO116: 0.3299448777 | BP116: 0.3322623934 | BQ116: 0.3235951166 | BR116: 0.3199359518 | BS116: 0.3213994023
A117: % of Owner Occupied Mortgages | B117: 0 | C117: 0 | D117: 0 | E117: 0 | F117: 0 | G117: 0 | H117: 0 | I117: 0 | J117: 0 | K117: 0 | L117: 0 | M117: 0 | N117: 0 | O117: 0 | P117: 0 | Q117: 0 | R117: 0 | S117: 0 | T117: 0 | U117: 0 | V117: 0 | W117: 0 | X117: 0 | Y117: 0 | Z117: 0 | AA117: 0 | AB117: 0 | AC117: 0 | AD117: 0 | AE117: 0 | AF117: 0 | AG117: 0 | AH117: 0 | AI117: 0 | AJ117: 0 | AK117: 0 | AL117: 0 | AM117: 0 | AN117: 0 | AO117: 0 | AP117: 0 | AQ117: 0 | AR117: 0 | AS117: 0 | AT117: 0 | AU117: 0 | AV117: 0 | AW117: 0 | AX117: 0 | AY117: 0 | AZ117: 0 | BA117: 0 | BB117: 0 | BC117: 0 | BD117: 0 | BE117: 0 | BF117: 0 | BG117: 0 | BH117: 0 | BI117: 0 | BJ117: 0 | BK117: 0 | BL117: 0 | BM117: 0 | BN117: 0 | BO117: 0 | BP117: 0 | BQ117: 0 | BR117: 0 | BS117: 0
A118: % of Investment Home Loans - Professional Landlords | B118: 0.4057 | C118: 0.4042 | D118: 0.4019 | E118: 0.402 | F118: 0.4023 | G118: 0.4005 | H118: 0.4039 | I118: 0.4206 | J118: 0.4249 | K118: 0.4278 | L118: 0.4294 | M118: 0.4305 | N118: 0.4318 | O118: 0.432 | P118: 0.434 | Q118: 0.4354 | R118: 0.4356 | S118: 0.4368 | T118: 0.4382 | U118: 0.4382 | V118: 0.4393 | W118: 0.4407 | X118: 0.4405 | Y118: 0.4409 | Z118: 0.4422 | AA118: 0.4427 | AB118: 0.443 | AC118: 0.445 | AD118: 0.4462 | AE118: 0.4479 | AF118: 0.4465 | AG118: 0.4471 | AH118: 0.4477184148 | AI118: 0.4491342678 | AJ118: 0.4508269213 | AK118: 0.451338368 | AL118: 0.4509954428 | AM118: 0.453234558 | AN118: 0.4535636683 | AO118: 0.4541265472 | AP118: 0.4557872336 | AQ118: 0.4575109673 | AR118: 0.4566950704 | AS118: 0.4546772084 | AT118: 0.4568429367 | AU118: 0.4642014356 | AV118: 0.4645673643 | AW118: 0.4666967018 | AX118: 0.4697486139 | AY118: 0.4726326069 | AZ118: 0.4700544631 | BA118: 0.4717717021 | BB118: 0.4727632935 | BC118: 0.4730923735 | BD118: 0.4750263418 | BE118: 0.4732579203 | BF118: 0.4720759906 | BG118: 0.4720188907 | BH118: 0.4749114683 | BI118: 0.4700025937 | BJ118: 0.4681298698 | BK118: 0.4676383174 | BL118: 0.4707080586 | BM118: 0.4541343714 | BN118: 0.4538461312 | BO118: 0.4626867681 | BP118: 0.4618783739 | BQ118: 0.47025057 | BR118: 0.4761483801 | BS118: 0.4796166894
A119: % of Investment Home Loans - Emerging Professional Landlords | B119: 0.5943 | C119: 0.5958 | D119: 0.5981 | E119: 0.598 | F119: 0.5977 | G119: 0.5995 | H119: 0.5961 | I119: 0.5794 | J119: 0.5751 | K119: 0.5722 | L119: 0.5706 | M119: 0.5695 | N119: 0.5682 | O119: 0.568 | P119: 0.566 | Q119: 0.5646 | R119: 0.5644 | S119: 0.5632 | T119: 0.5618 | U119: 0.5618 | V119: 0.5607 | W119: 0.5593 | X119: 0.5595 | Y119: 0.5591 | Z119: 0.5578 | AA119: 0.5573 | AB119: 0.557 | AC119: 0.555 | AD119: 0.5538 | AE119: 0.5521 | AF119: 0.5535 | AG119: 0.5529 | AH119: 0.5522815852 | AI119: 0.5508657322 | AJ119: 0.5491730787 | AK119: 0.548661632 | AL119: 0.5490045572 | AM119: 0.546765442 | AN119: 0.5464363317 | AO119: 0.5458734528 | AP119: 0.5442127664 | AQ119: 0.5424890327 | AR119: 0.5433049296 | AS119: 0.5453227916 | AT119: 0.5431570633 | AU119: 0.5357985644 | AV119: 0.5354326357 | AW119: 0.5333032982 | AX119: 0.5302513861 | AY119: 0.5273673931 | AZ119: 0.5299455369 | BA119: 0.5282282979 | BB119: 0.5272367065 | BC119: 0.5269076265 | BD119: 0.5249736582 | BE119: 0.5267420797 | BF119: 0.5279240094 | BG119: 0.5279811093 | BH119: 0.5250885317 | BI119: 0.5299974063 | BJ119: 0.5318701302 | BK119: 0.5323616826 | BL119: 0.5292919414 | BM119: 0.5458656286 | BN119: 0.5461538688 | BO119: 0.5373132319 | BP119: 0.5381216261 | BQ119: 0.52974943 | BR119: 0.5238516199 | BS119: 0.5203833106
A120: Weighted Average Interest Coverage Ratio (calculated at the origination date) | B120: 1.42 | C120: 1.42 | D120: 1.42 | E120: 1.42 | F120: 1.42 | G120: 1.41 | H120: 1.4 | I120: 1.41 | J120: 1.41 | K120: 1.41 | L120: 1.4 | M120: 1.4 | N120: 1.41 | O120: 1.41 | P120: 1.41 | Q120: 1.41 | R120: 1.41 | S120: 1.41 | T120: 1.41 | U120: 1.41 | V120: 1.41 | W120: 1.41 | X120: 1.41 | Y120: 1.41 | Z120: 1.41 | AA120: 1.41 | AB120: 1.41 | AC120: 1.41 | AD120: 1.41 | AE120: 1.41 | AF120: 1.4 | AG120: 1.4 | AH120: 1.402121968 | AI120: 1.403020586 | AJ120: 1.39119063 | AK120: 1.393569197 | AL120: 1.39309717 | AM120: 1.394842996 | AN120: 1.397311883 | AO120: 1.399465582 | AP120: 1.401903417 | AQ120: 1.400613843 | AR120: 1.402441089 | AS120: 1.40012927 | AT120: 1.392509911 | AU120: 1.393136973 | AV120: 1.39547992 | AW120: 1.389933604 | AX120: 1.388410906 | AY120: 1.38976092 | AZ120: 1.387453878 | BA120: 1.390168679 | BB120: 1.391636407 | BC120: 1.387333758 | BD120: 1.387498641 | BE120: 1.375967419 | BF120: 1.379018119 | BG120: 1.380382357 | BH120: 1.376471059 | BI120: 1.383401796 | BJ120: 1.386539008 | BK120: 1.384109801 | BL120: 1.38799385 | BM120: 1.393648457 | BN120: 1.380817576 | BO120: 1.385520627 | BP120: 1.38503963 | BQ120: 1.380308971 | BR120: 1.38702879 | BS120: 1.392037142
A121: MTL Lifetime Redemption Rate | B121: 0.0257 | C121: 0.0281 | D121: 0.0357 | E121: 0.0452 | F121: 0.0491 | G121: 0.0486 | H121: 0.102 | I121: 0.1701 | J121: 0.1715 | K121: 0.1613 | L121: 0.1537 | M121: 0.1448 | N121: 0.137 | O121: 0.13 | P121: 0.1237 | Q121: 0.1181 | R121: 0.1133 | S121: 0.1082 | T121: 0.1041 | U121: 0.1006 | V121: 0.097 | W121: 0.094 | X121: 0.0906 | Y121: 0.088 | Z121: 0.0859 | AA121: 0.0841 | AB121: 0.0823 | AC121: 0.0807 | AD121: 0.0794 | AE121: 0.078 | AF121: 0.077 | AG121: 0.0764 | AH121: 0.0759 | AI121: 0.0752 | AJ121: 0.0744 | AK121: 0.0743 | AL121: 0.0743 | AM121: 0.074 | AN121: 0.0749 | AO121: 0.0754 | AP121: 0.0754 | AQ121: 0.0753 | AR121: 0.0748 | AS121: 0.0745 | AT121: 0.0743 | AU121: 0.0745 | AV121: 0.0744 | AW121: 0.0743 | AX121: 0.0744 | AY121: 0.0745 | AZ121: 0.0753 | BA121: 0.0737 | BB121: 0.0757 | BC121: 0.0755 | BD121: 0.0751 | BE121: 0.0749 | BF121: 0.075 | BG121: 0.0754 | BH121: 0.0778 | BI121: 0.0803 | BJ121: 0.0808 | BK121: 0.0812 | BL121: 0.0827 | BM121: 0.0856 | BN121: 0.0891 | BO121: 0.0912 | BP121: 0.0922 | BQ121: 0.0952 | BR121: 0.0977 | BS121: 0.0987
A122: Aggregate Potential Redraw Amount | B122: 368375.45 | C122: 340676.44 | D122: 429666.68 | E122: 184264.99 | F122: 258127.14 | G122: 183982.05 | H122: 192764.64 | I122: 170085.66 | J122: 70134.93 | K122: 79803.12 | L122: 84662.7 | M122: 95842.17 | N122: 97194.53 | O122: 107826.59 | P122: 91734.61 | Q122: 227950.62 | R122: 118434.7 | S122: 124329.28 | T122: 148340.27 | U122: 168552.42 | V122: 167382.93 | W122: 154534.33 | X122: 114883.16 | Y122: 122043.79 | Z122: 112843.22 | AA122: 177210.61 | AB122: 185862.6 | AC122: 195294.05 | AD122: 0 | AE122: 0 | AF122: 0 | AG122: 0 | AH122: 0 | AI122: 0 | AJ122: 0 | AK122: 0 | AL122: 0 | AM122: 0 | AN122: 0 | AO122: 0 | AP122: 0 | AQ122: 0 | AR122: 0 | AS122: 0 | AT122: 0 | AU122: 0 | AV122: 0 | AW122: 0 | AX122: 0 | AY122: 0 | AZ122: 0 | BA122: 0 | BB122: 0 | BC122: 0 | BD122: 0 | BE122: 0 | BF122: 0 | BG122: 0 | BH122: 0 | BI122: 0 | BJ122: 0 | BK122: 0 | BL122: 0 | BM122: 0 | BN122: 0 | BO122: 0 | BP122: 0 | BQ122: 0 | BR122: 0 | BS122: 0
A123: Number of Properties in Possession | B123: 0 | C123: 0 | D123: 0 | E123: 0 | F123: 0 | G123: 0 | H123: 0 | I123: 0 | J123: 0 | K123: 0 | L123: 0 | M123: 0 | N123: 0 | O123: 0 | P123: 0 | Q123: 0 | R123: 0 | S123: 0 | T123: 0 | U123: 0 | V123: 0 | W123: 0 | X123: 0 | Y123: 2 | Z123: 3 | AA123: 3 | AB123: 2 | AC123: 1 | AD123: 0 | AE123: 0 | AF123: 0 | AG123: 0 | AH123: 0 | AI123: 0 | AJ123: 0 | AK123: 0 | AL123: 0 | AM123: 0 | AN123: 0 | AO123: 0 | AP123: 0 | AQ123: 0 | AR123: 0 | AS123: 0 | AT123: 0 | AU123: 0 | AV123: 0 | AW123: 0 | AX123: 0 | AY123: 0 | AZ123: 0 | BA123: 1 | BB123: 0 | BC123: 0 | BD123: 0 | BE123: 0 | BF123: 0 | BG123: 0 | BH123: 0 | BI123: 0 | BJ123: 0 | BK123: 0 | BL123: 0 | BM123: 0 | BN123: 0 | BO123: 0 | BP123: 0 | BQ123: 0 | BR123: 0 | BS123: 0
A124: Appointment of a Receiver of Rent | B124: 0 | C124: 1 | D124: 4 | E124: 11 | F124: 7 | G124: 9 | H124: 14 | I124: 28 | J124: 46 | K124: 53 | L124: 56 | M124: 55 | N124: 51 | O124: 51 | P124: 51 | Q124: 49 | R124: 44 | S124: 45 | T124: 46 | U124: 46 | V124: 52 | W124: 54 | X124: 54 | Y124: 55 | Z124: 51 | AA124: 44 | AB124: 39 | AC124: 38 | AD124: 40 | AE124: 37 | AF124: 35 | AG124: 34 | AH124: 33 | AI124: 31 | AJ124: 28 | AK124: 27 | AL124: 25 | AM124: 25 | AN124: 23 | AO124: 23 | AP124: 21 | AQ124: 21 | AR124: 19 | AS124: 17 | AT124: 18 | AU124: 17 | AV124: 17 | AW124: 17 | AX124: 18 | AY124: 17 | AZ124: 18 | BA124: 17 | BB124: 17 | BC124: 17 | BD124: 17 | BE124: 17 | BF124: 17 | BG124: 17 | BH124: 15 | BI124: 15 | BJ124: 14 | BK124: 15 | BL124: 15 | BM124: 15 | BN124: 18 | BO124: 18 | BP124: 14 | BQ124: 16 | BR124: 17 | BS124: 19
A125: MTL Quarterly Losses | B125: 0 | C125: 0 | D125: 0 | E125: 3 | F125: 3 | G125: 9 | H125: 0 | I125: 1 | J125: 79 | K125: 40 | L125: 318 | M125: 163 | N125: 187 | O125: 0 | P125: 233 | Q125: 125 | R125: 175 | S125: 1 | T125: 31 | U125: 37 | V125: 1 | W125: 53 | X125: -4 | Y125: 92 | Z125: 31 | AA125: 267 | AB125: 277 | AC125: 190 | AD125: 118 | AE125: 79 | AF125: 66 | AG125: 18 | AH125: -4 | AI125: 26 | AJ125: -1 | AK125: 12 | AL125: 50 | AM125: -4 | AN125: 141 | AO125: 10 | AP125: -2 | AQ125: -1 | AR125: 30 | AS125: -53 | AT125: -6 | AU125: 7 | AV125: 63 | AW125: -4 | AX125: 0 | AY125: 0 | AZ125: 9 | BA125: 48 | BB125: 28 | BC125: 5 | BD125: 2 | BE125: 1 | BF125: 2 | BG125: -51 | BH125: 81 | BI125: -55 | BJ125: 1 | BK125: -1 | BL125: 13 | BM125: -52 | BN125: -50 | BO125: -31 | BP125: 40 | BQ125: 338 | BR125: 0 | BS125: -31
A126: Arrears excluding Receiver of Rent and Possession Cases
A127: Performing Loans | B127: 0.9954 | C127: 0.9941 | D127: 0.9931 | E127: 0.9954 | F127: 0.9938 | G127: 0.993 | H127: 0.9908 | I127: 0.991 | J127: 0.9832 | K127: 0.9793 | L127: 0.9811 | M127: 0.9822 | N127: 0.9899 | O127: 0.9918 | P127: 0.9969 | Q127: 0.9963 | R127: 0.9976 | S127: 0.9946 | T127: 0.9918 | U127: 0.9973 | V127: 0.9962 | W127: 0.9947 | X127: 0.9878 | Y127: 0.9943 | Z127: 0.9966 | AA127: 0.9944 | AB127: 0.9988 | AC127: 0.999 | AD127: 0.9971 | AE127: 0.9997 | AF127: 0.9978 | AG127: 0.9991 | AH127: 0.9991301613 | AI127: 1 | AJ127: 0.9980285421 | AK127: 0.9969369538 | AL127: 0.9967984409 | AM127: 0.9970548743 | AN127: 0.9989302294 | AO127: 0.9986132195 | AP127: 0.9996591985 | AQ127: 0.9989454175 | AR127: 0.9996372654 | AS127: 1 | AT127: 0.9988202416 | AU127: 0.9987942775 | AV127: 0.9981826834 | AW127: 0.9968052441 | AX127: 0.9971071919 | AY127: 0.9977852144 | AZ127: 0.9932108207 | BA127: 0.9951501789 | BB127: 0.9924874328 | BC127: 0.992373651 | BD127: 0.992013538 | BE127: 0.9919434424 | BF127: 0.9927766197 | BG127: 0.9894658409 | BH127: 0.9907131139 | BI127: 0.9944713214 | BJ127: 0.9942486758 | BK127: 0.9936388629 | BL127: 0.9948754601 | BM127: 0.9941917834 | BN127: 0.9944061924 | BO127: 0.9849069148 | BP127: 0.9801787375 | BQ127: 0.9845805811 | BR127: 0.9721330288 | BS127: 0.9738276202
A128: >1 to 2 months arrears | B128: 0.0041 | C128: 0.0034 | D128: 0.0045 | E128: 0.003 | F128: 0.0044 | G128: 0.0053 | H128: 0.0066 | I128: 0.007 | J128: 0.012 | K128: 0.0102 | L128: 0.0076 | M128: 0.0098 | N128: 0.0046 | O128: 0.0061 | P128: 0.0017 | Q128: 0.0034 | R128: 0.0022 | S128: 0.0046 | T128: 0.0053 | U128: 0.0013 | V128: 0.0023 | W128: 0.0033 | X128: 0.0095 | Y128: 0.0041 | Z128: 0.0034 | AA128: 0.0047 | AB128: 0.0005 | AC128: 0.001 | AD128: 0.0029 | AE128: 0.0003 | AF128: 0.0022 | AG128: 0.0009 | AH128: 0.0008698386529 | AI128: 0 | AJ128: 0.001971457944 | AK128: 0.002635390194 | AL128: 0.003201559108 | AM128: 0.002945125659 | AN128: 0.0003643061595 | AO128: 0.001013314555 | AP128: 0.000340801521 | AQ128: 0.0008326483811 | AR128: 0.0003627346103 | AS128: 0 | AT128: 0.001179758387 | AU128: 0.001205722473 | AV128: 0 | AW128: 0.001299131212 | AX128: 0.001411420775 | AY128: 0.0007056736663 | AZ128: 0.005231884031 | BA128: 0.003964577795 | BB128: 0.002599414736 | BC128: 0.002629007738 | BD128: 0.002564851408 | BE128: 0.002545933962 | BF128: 0.001474067728 | BG128: 0.006474014935 | BH128: 0.00532330335 | BI128: 0.002245947708 | BJ128: 0.001753978509 | BK128: 0.002878535571 | BL128: 0.001599056182 | BM128: 0.002994037759 | BN128: 0.002468324078 | BO128: 0.00960996745 | BP128: 0.009761214732 | BQ128: 0.00745316319 | BR128: 0.01883894463 | BS128: 0.01250211729
A129: >2 to 3 months arrears | B129: 0.0005 | C129: 0.001 | D129: 0.0022 | E129: 0.0008 | F129: 0.001 | G129: 0.0017 | H129: 0.0019 | I129: 0.0016 | J129: 0.0041 | K129: 0.007 | L129: 0.0057 | M129: 0.0032 | N129: 0.0026 | O129: 0.0006 | P129: 0.0014 | Q129: 0.0003 | R129: 0.0002 | S129: 0.0008 | T129: 0.0029 | U129: 0 | V129: 0 | W129: 0.0006 | X129: 0.0004 | Y129: 0 | Z129: 0 | AA129: 0.0009 | AB129: 0 | AC129: 0 | AD129: 0 | AE129: 0 | AF129: 0 | AG129: 0 | AH129: 0 | AI129: 0 | AJ129: 0 | AK129: 0.0004276559803 | AL129: 0 | AM129: 0 | AN129: 0.0005322058393 | AO129: 0 | AP129: 0 | AQ129: 0 | AR129: 0 | AS129: 0 | AT129: 0 | AU129: 0 | AV129: 0.001817316611 | AW129: 0.0006439035779 | AX129: 0.001481387374 | AY129: 0.00130167265 | AZ129: 0.001343232784 | BA129: 0.0008852433271 | BB129: 0.002543725767 | BC129: 0.003758973386 | BD129: 0.004165318233 | BE129: 0.004036369233 | BF129: 0.002938018854 | BG129: 0.0003748275 | BH129: 0.0005116203933 | BI129: 0 | BJ129: 0 | BK129: 0 | BL129: 0.0004690217287 | BM129: 0.0007349631032 | BN129: 0.0008571147361 | BO129: 0.002247010198 | BP129: 0.004346922354 | BQ129: 0.007302116215 | BR129: 0.003464908848 | BS129: 0.00102735349
A130: >3 months arrears | B130: 0 | C130: 0.0015 | D130: 0.0002 | E130: 0.0008 | F130: 0.0008 | G130: 0 | H130: 0.0007 | I130: 0.0004 | J130: 0.0007 | K130: 0.0035 | L130: 0.0056 | M130: 0.0048 | N130: 0.0029 | O130: 0.0015 | P130: 0 | Q130: 0 | R130: 0 | S130: 0 | T130: 0 | U130: 0.0014 | V130: 0.0015 | W130: 0.0014 | X130: 0.0023 | Y130: 0.0016 | Z130: 0 | AA130: 0 | AB130: 0.0007 | AC130: 0 | AD130: 0 | AE130: 0 | AF130: 0 | AG130: 0 | AH130: 0 | AI130: 0 | AJ130: 0 | AK130: 0 | AL130: 0 | AM130: 0 | AN130: 0.0001732585993 | AO130: 0.0003734659717 | AP130: 0 | AQ130: 0.0002219341494 | AR130: 0 | AS130: 0 | AT130: 0 | AU130: 0 | AV130: 0 | AW130: 0.001251721129 | AX130: 0 | AY130: 0.0002074393126 | AZ130: 0.0002140624874 | BA130: 0 | BB130: 0.002369426676 | BC130: 0.001238367887 | BD130: 0.001256292325 | BE130: 0.001474254427 | BF130: 0.002811293672 | BG130: 0.003685316684 | BH130: 0.003451962331 | BI130: 0.003282730878 | BJ130: 0.003997345724 | BK130: 0.003482601553 | BL130: 0.003056461995 | BM130: 0.00207921576 | BN130: 0.002268368789 | BO130: 0.003236107521 | BP130: 0.00571312543 | BQ130: 0.0006641394908 | BR130: 0.005563117762 | BS130: 0.01264290905
A131: Total | B131: =SUM(B127:B130) -> 1 | C131: 1 | D131: 1 | E131: 1 | F131: 1 | G131: 1 | H131: 1 | I131: 1 | J131: 1 | K131: 1 | L131: 1 | M131: 1 | N131: 1 | O131: 1 | P131: 1 | Q131: 1 | R131: 1 | S131: 1 | T131: 1 | U131: 1 | V131: 1 | W131: =SUM(W127:W130) -> 1 | X131: 1 | Y131: 1 | Z131: 1 | AA131: 1 | AB131: 1 | AC131: =SUM(AC127:AC130) -> 1 | AD131: 1 | AE131: 1 | AF131: 1 | AG131: 1 | AH131: 1 | AI131: 1 | AJ131: 1 | AK131: 1 | AL131: 1 | AM131: 1 | AN131: 1 | AO131: 1 | AP131: 1 | AQ131: 1 | AR131: 1 | AS131: 1 | AT131: 1 | AU131: 1 | AV131: 1 | AW131: 1 | AX131: 1 | AY131: 1 | AZ131: 1 | BA131: 1 | BB131: 1 | BC131: 1 | BD131: 1 | BE131: 1 | BF131: 1 | BG131: 1 | BH131: 1 | BI131: 1 | BJ131: 1 | BK131: 1 | BL131: 1 | BM131: 1 | BN131: 1 | BO131: 1 | BP131: 1 | BQ131: 1 | BR131: 1 | BS131: 1

Sheet Graphs
P2: PARAGON MORTGAGES (NO.12) PLC
